Workbook

Sheet Information

Sheet Tidsvärden
A2: Projektspecifika | J2: EVA
A3: Färg för celler som kan ändras | J3: Färg för celler som kan ändras
A4: Färg för celler som EJ kan ändras | J4: Färg för celler som EJ kan ändras
A6: Andel långväga personbilstrafik >10 mil | B6: 0.044 | J6: Andel Privatresor | K6: 0.9
A7: Andel långväga tung trafik >10 mil | B7: 0.28 | J7: Andel Tjänsteresor | K7: 0.1
A8: Andel arbetsresor av privata resor | B8: 0.338 | J8: Andel Lbu av tung trafik | K8: 0.56 | M8: Bedöms av användare
A9: Andel tjänsteresor av personbilsresor | B9: 0.083
A10: Andel Pby av personbilstrafik | B10: 0.11
A11: Andel Lbu av tung trafik | B11: 0.557
A13: Långväga (värden enligt ASEK 8) | B13: Arbetsresor | C13: Tjänsteresor | D13: Övriga Resor | E13: Pby | F13: Lbu | G13: Lbs | J13: Tidsvärden enligt EVA | K13: Privatresor | L13: Privatresor, KA* | M13: Tjänsteresor | N13: Lbu | O13: Lbs
A14: Tidsvärde kr/tim | B14: 139 | C14: 389 | D14: 139 | E14: 341 | F14: 341 | G14: 365 | J14: Tidsvärde kr/tim | K14: 114 | L14: 95 | M14: 389 | N14: 341 | O14: 365
A15: Tidsvärde Gods kr/tim | B15: 0 | C15: 0 | D15: 0 | E15: 0.31 | F15: 15.16 | G15: 17.85 | J15: Tidsvärde Gods kr/tim | K15: 0 | L15: 0 | M15: 0 | N15: 12.53 | O15: 14.75
A16: Beläggningsgrad personer/bil | B16: 2.2 | C16: 1.17 | D16: 2.2 | E16: 1 | F16: 1 | G16: 1 | J16: Beläggningsgrad personer/bil | K16: 1.75 | L16: 1.75 | M16: 1.18 | N16: 1 | O16: 1
A17: Tidskostnad kr/ftim | B17: =B14*B16+B15 -> 305.8 | C17: 455.13 | D17: 305.8 | E17: 341.31 | F17: 356.16 | G17: 382.85 | J17: Tidskostnad kr/ftim | K17: =K14*K16 -> 199.5 | L17: =L14*L16 -> 166.25 | M17: =M14*M16 -> 459.02 | N17: =N14*N16+N15 -> 353.53 | O17: =O14*O16+O15 -> 379.75
A19: Regionalt (värden enligt ASEK 8) | B19: Arbetsresor | C19: Tjänsteresor | D19: Övriga Resor | E19: Pby | F19: Lbu | G19: Lbs
A20: Tidsvärde kr/tim | B20: 112 | C20: 389 | D20: 76 | E20: 341 | F20: 341 | G20: 365
A21: Tidsvärde Gods kr/tim | B21: 0 | C21: 0 | D21: 0 | E21: 0.31 | F21: 15.16 | G21: 17.85
A22: Beläggningsgrad personer/bil | B22: 1.1 | C22: 1.2 | D22: 1.9 | E22: 1 | F22: 1 | G22: 1
A23: Tidskostnad kr/ftim | B23: =B20*B22+B21 -> 123.2 | C23: 466.8 | D23: 144.4 | E23: 341.31 | F23: 356.16 | G23: 382.85
A26: Sammanviktade Tidsvärden | B26: Tidsvärde | C26: Enhet | J26: Sammanviktade Tidsvärden | K26: Tidsvärde | L26: Enhet
A27: Tidsvärde per fordon personbil exkl. pby | B27: =Stödberäkningar!B21 -> 176.9963078 | C27: kr/ftim | J27: Tidsvärde per fordon personbil | K27: =K17*K6+M17*K7 -> 225.452 | L27: kr/ftim
A28: Tidsvärde per fordon personbil exkl. pby, KA* | B28: =Stödberäkningar!B22 -> 182.8507626 | C28: kr/ftim | J28: Tidsvärde per fordon personbil, KA* | K28: =L17*K6+M17*K7 -> 195.527 | L28: kr/ftim
A29: Tidsvärde per tungt fordon | B29: =F14*F16*B7*B11+F20*F22*(1-B7)*B11+G14*G16*B7*(1-B11)+G20*G22*(1-B7)*(1-B11) -> 351.632 | C29: kr/ftim | J29: Tidsvärde per tungt fordon | K29: =(N14*N16*K8)+(O14*O16*(1-K8)) -> 351.56 | L29: kr/ftim
A30: Godstidsvärde tung trafik per fordon | B30: =F15*B7*B11+G15*B7*(1-B11)+F21*(1-B7)*B11+G21*(1-B7)*(1-B11) -> 16.35167 | C30: kr/ftim | J30: Godstidsvärde tung trafik per fordon | K30: =N15*K8+O15*(1-K8) -> 13.5068 | L30: kr/ftim
A31: Godstidsvärde Pby per fordon | B31: =E15 -> 0.31 | C31: kr/ftim | J31: *Känslighetsanalys enhetligt åktidsvärde för privata resor om 95kr per timme
A33: Ärendeuppdelade sammanviktade tidsvärden | C33: Enhet
A34: Tidsvärde personbil | B34: =Stödberäkningar!B21 -> 176.9963078 | C34: kr/ftim
A35: Tidsvärde personbil, KA* | B35: =Stödberäkningar!B22 -> 182.8507626 | C35: kr/ftim
A36: Tidsvärde Pby | B36: =(E14*E16)*B6+E20*E22*(1-B6) -> 341 | C36: kr/ftim
A37: Tidsvärde Lbu exkl. godstidsvärde | B37: =(F14*F16*B7+F20*F22*(1-B7)) -> 341 | C37: kr/ftim
A38: Tidsvärde Lbs exkl. godstidsvärde | B38: =G14*G16*B7+G20*G22*(1-B7) -> 365 | C38: kr/ftim
A39: Godstidsvärde Pby | B39: =E15 -> 0.31 | C39: kr/ftim
A40: Godstidsvärde Lbu | B40: =F15 -> 15.16 | C40: kr/ftim
A41: Godstidsvärde Lbs | B41: =G15 -> 17.85 | C41: kr/ftim
A42: *Känslighetsanalys enhetligt åktidsvärde för privata resor om 95kr per timme

Sheet Indata
A1: Färg för celler som kan ändras
A2: Färg för celler som EJ kan ändras
A5: Kalkylförutsättningar
A6: Förutsättningar
A7: Kalkylränta [%] | B7: 0.035
A8: Prognosår | B8: 2045
A9: Diskonteringsår | B9: 2028
A10: Trafikstartår* | B10: 2030
A11: Kalkylperiod [år] | B11: 60
A12: Brytår 1 | B12: 2045
A13: Brytår 2** | B13: 2065
A14: Årlig trafiktillväxt före brytår 1 [%] | B14: 0.01
A15: Årlig trafiktillväxt efter brytår 1 [%]** | B15: 0.01
A16: Årlig värdeökning [%] fram till brytår 2 | B16: 0.0115
A17: Värdeökningsår | B17: 2019
A19: *Trafikstartsår = Byggstartsår (år 2028) + byggtid
A20: **Efter brytår 2 antas trafiktillväxten vara 0 %
A25: INDATA från modell
A26: Förutsättningar för beräkning
A27: Tidsvärden (Projektspecifika, EVA, med/utan KA*) | B27: Projektspecifika | C27: (Projektspecifika/EVA/KA*) | E27: Ska projektspecifika eller EVA:s tidsvärden användas?
A28: Separata restider för tung trafik | B28: NEJ | C28: (JA/NEJ) | E28: Har du genererat separarta restider för tung trafik?
A29: Bedömd tung trafikandel | B29: 0.1 | C29: % | E29: Ange bedömd andel tung trafik (om svar på ovanstående är "nej")
A30: Tidsvärde Personbil exkl. pby | B30: =IF(B27="eva",Tidsvärden!K27,IF(Indata!B27="projektspecifika",Tidsvärden!B27,IF(B27="EVA, KA tidsvärde privatresor 95kr",Tidsvärden!K28, IF(B27="projektspecifika, KA tidsvärde privatresor 95kr",Tidsvärden!B28,"Felaktig inmatning")))) -> 176.9963078 | C30: SEK
A31: Tidsväde Tung trafik | B31: =IF(B27="eva",Tidsvärden!K29,IF(Indata!B27="projektspecifika",Tidsvärden!B29,IF(B27="EVA, KA tidsvärde privatresor 95kr",Tidsvärden!K29,IF(B27="projektspecifika, KA tidsvärde privatresor 95kr",Tidsvärden!B29,"Felaktig inmatning")) )) -> 351.632 | C31: SEK
A32: Antal Dagar för nyttor | B32: 230 | C32: Dagar | E32: För hur många dagar per år antas restiderna vara representativa?
A33: *Känslighetsanalys enhetligt åktidsvärde för privata resor om 95kr per timme
A36: Relevanta Tidsperioder | B36: JA/NEJ | C36: Tidsperiodens omfattning [h] | D36: Antal extraherade timmar från modell
A37: Förmiddag | B37: JA | E37: Ange: 1. För vilka tidsperioder finns simuleringar?
A38: Lågtrafik | B38: JA | C38: 1 | D38: 1 | E38: 2. Hur många timmar omfattar tidsperioden i "verkligheten"?
A39: Eftermiddag | B39: JA | E39: 3. Hur många timmar resultat har extraherats från modell?
E40: Notera att det bara är lågtrafikperiodens resultat som kan räknas upp till en längre tidsperiod än som simulerats.
A41: Om enbart totala restider | E41: För för- och eftermiddag så måste hela perioden som restidskostnader ska beräknas för simuleras.
A42: Restider Totalt | B42: Antal timmar JA | C42: Antal timmar UA | D42: Diff antal timmar UA-JA
A43: Förmiddag | B43: 0 | C43: 0 | D43: =C43-B43 -> 0 | E43: Ange: Totalt antal timmar från simulering i JA och UA för respektive tidsperiod
A44: Lågtrafik | B44: 0 | C44: 0 | D44: =C44-B44 -> 0 | E44: Total Trafik
A45: Eftermiddag | B45: 0 | C45: 0 | D45: =C45-B45 -> 0
A47: Om separata restider för tung trafik
A48: Restider Personbil | B48: Antal timmar JA | C48: Antal timmar UA | D48: Diff antal timmar UA-JA
A49: Förmiddag | B49: 0 | C49: 0 | D49: =C49-B49 -> 0 | E49: Ange; Totalt antal timmar från simulering i JA och UA för respektive tidsperiod
A50: Lågtrafik | B50: 0 | C50: 0 | D50: =C50-B50 -> 0 | E50: Personbilstrafik
A51: Eftermiddag | B51: 0 | C51: 0 | D51: =C51-B51 -> 0
A54: Restider Tung Trafik | B54: Antal timmar JA | C54: Antal timmar UA | D54: Diff antal timmar UA-JA
A55: Förmiddag | B55: 0 | C55: 0 | D55: =C55-B55 -> 0
A56: Lågtrafik | B56: 0 | C56: 0 | D56: =C56-B56 -> 0 | E56: Ange; Totalt antal timmar från simulering i JA och UA för respektive tidsperiod
A57: Eftermiddag | B57: 0 | C57: 0 | D57: =C57-B57 -> 0 | E57: Tung Trafik

Sheet Utdata
A1: UTDATA
A3: Restidsnytta persontrafik [MSEK] Nuvärde | B3: Personbil | C3: Personbil yrkestrafik | D3: Tung Trafik | E3: Summa
A4: Förmiddag | B4: =-IF(AND(Indata!$B$28="NEJ",Indata!$B$27="EVA"),Indata!D43*(1-Indata!$B$29)*Tidsvärden!$K$27*Stödberäkningar!$P$8*Stödberäkningar!O3,IF(AND(Indata!$B$28="NEJ",Indata!$B$27="EVA, KA tidsvärde privatresor 95kr"),Indata!D43*(1-Indata!$B$29)*Tidsvärden!$K$28*Stödberäkningar!$P$8*Stödberäkningar!O3,IF(AND(Indata!$B$28="NEJ",Indata!$B$27="Projektspecifika"),Indata!D43*(1-Indata!$B$29)*Tidsvärden!$B$27*Stödberäkningar!$P$8*Stödberäkningar!O3*(1-Tidsvärden!$B$10),IF(AND(Indata!$B$28="NEJ",Indata!$B$27="Projektspecifika, KA tidsvärde privatresor 95kr"),Indata!D43*(1-Indata!$B$29)*Tidsvärden!$B$28*Stödberäkningar!$P$8*Stödberäkningar!O3*(1-Tidsvärden!$B$10),IF(AND(Indata!$B$28="ja",Indata!$B$27="EVA"),Indata!D49*Tidsvärden!$K$27*Stödberäkningar!$P$8*Stödberäkningar!O3,IF(AND(Indata!$B$28="ja",Indata!$B$27="EVA, KA tidsvärde privatresor 95kr"),Indata!D49*Tidsvärden!$K$28*Stödberäkningar!$P$8*Stödberäkningar!O3,IF(AND(Indata!$B$28="ja",Indata!$B$27="Projektspecifika"),Indata!D49*Tidsvärden!$B$27*Stödberäkningar!$P$8*Stödberäkningar!O3*(1-Tidsvärden!$B$10),IF(AND(Indata!$B$28="ja",Indata!$B$27="Projektspecifika, KA tidsvärde privatresor 95kr"),Indata!D49*Tidsvärden!$B$28*Stödberäkningar!$P$8*Stödberäkningar!O3*(1-Tidsvärden!$B$10),"FELAKTIG INDATA"))))))))*Indata!$B$32/1000000 -> 0 | C4: =-IF(AND(Indata!$B$28="NEJ",Indata!$B$27="EVA"),Indata!D43*(1-Indata!$B$29)*Tidsvärden!$K$27*Stödberäkningar!$P$8*Stödberäkningar!O3*0,IF(AND(Indata!$B$28="NEJ",Indata!$B$27="EVA, KA tidsvärde privatresor 95kr"),Indata!D43*(1-Indata!$B$29)*Tidsvärden!$K$28*Stödberäkningar!$P$8*Stödberäkningar!O3*0,IF(AND(Indata!$B$28="NEJ",Indata!$B$27="Projektspecifika"),Indata!D43*(1-Indata!$B$29)*Tidsvärden!$B$36*Stödberäkningar!$P$9*Stödberäkningar!O3*Tidsvärden!$B$10,IF(AND(Indata!$B$28="NEJ",Indata!$B$27="Projektspecifika, KA tidsvärde privatresor 95kr"),Indata!D43*(1-Indata!$B$29)*Tidsvärden!$B$36*Stödberäkningar!$P$9*Stödberäkningar!O3*Tidsvärden!$B$10,IF(AND(Indata!$B$28="ja",Indata!$B$27="EVA"),Indata!D49*Tidsvärden!$K$27*Stödberäkningar!$P$8*Stödberäkningar!O3*0,IF(AND(Indata!$B$28="ja",Indata!$B$27="EVA, KA tidsvärde privatresor 95kr"),Indata!D49*Tidsvärden!$K$28*Stödberäkningar!$P$8*Stödberäkningar!O3*0,IF(AND(Indata!$B$28="ja",Indata!$B$27="Projektspecifika"),Indata!D49*Tidsvärden!$B$36*Stödberäkningar!$P$9*Stödberäkningar!O3*Tidsvärden!$B$10,IF(AND(Indata!$B$28="ja",Indata!$B$27="Projektspecifika, KA tidsvärde privatresor 95kr"),Indata!D49*Tidsvärden!$B$36*Stödberäkningar!$P$9*Stödberäkningar!O3*Tidsvärden!$B$10,"FELAKTIG INDATA"))))))))*Indata!$B$32/1000000 -> 0 | D4: =-IF(AND(Indata!$B$28="NEJ",Indata!$B$27="EVA"),Indata!D43*(Indata!$B$29)*Tidsvärden!$K$29*Stödberäkningar!$P$9*Stödberäkningar!O3,IF(AND(Indata!$B$28="NEJ",Indata!$B$27="EVA, KA tidsvärde privatresor 95kr"),Indata!D43*(Indata!$B$29)*Tidsvärden!$K$29*Stödberäkningar!$P$9*Stödberäkningar!O3,IF(AND(Indata!$B$28="NEJ",Indata!$B$27="Projektspecifika"),Indata!D43*(Indata!$B$29)*Tidsvärden!$B$29*Stödberäkningar!$P$9*Stödberäkningar!O3,IF(AND(Indata!$B$28="NEJ",Indata!$B$27="Projektspecifika, KA tidsvärde privatresor 95kr"),Indata!D43*(Indata!$B$29)*Tidsvärden!$B$29*Stödberäkningar!$P$9*Stödberäkningar!O3,IF(AND(Indata!$B$28="ja",Indata!$B$27="EVA"),Indata!D55*Tidsvärden!$K$29*Stödberäkningar!$P$9*Stödberäkningar!O3,IF(AND(Indata!$B$28="ja",Indata!$B$27="EVA, KA tidsvärde privatresor 95kr"),Indata!D55*Tidsvärden!$K$29*Stödberäkningar!$P$9*Stödberäkningar!O3,IF(AND(Indata!$B$28="ja",Indata!$B$27="Projektspecifika"),Indata!D55*Tidsvärden!$B$29*Stödberäkningar!$P$9*Stödberäkningar!O3,IF(AND(Indata!$B$28="ja",Indata!$B$27="Projektspecifika, KA tidsvärde privatresor 95kr"),Indata!D55*Tidsvärden!$B$29*Stödberäkningar!$P$9*Stödberäkningar!O3,"FELAKTIG INDATA"))))))))*Indata!$B$32/1000000 -> 0 | E4: =SUM(B4:D4) -> 0
A5: Lågtrafik | B5: =-IF(AND(Indata!$B$28="NEJ",Indata!$B$27="EVA"),Indata!D44*(1-Indata!$B$29)*Tidsvärden!$K$27*Stödberäkningar!$P$8*Stödberäkningar!O4,IF(AND(Indata!$B$28="NEJ",Indata!$B$27="EVA, KA tidsvärde privatresor 95kr"),Indata!D44*(1-Indata!$B$29)*Tidsvärden!$K$28*Stödberäkningar!$P$8*Stödberäkningar!O4,IF(AND(Indata!$B$28="NEJ",Indata!$B$27="Projektspecifika"),Indata!D44*(1-Indata!$B$29)*Tidsvärden!$B$27*Stödberäkningar!$P$8*Stödberäkningar!O4*(1-Tidsvärden!$B$10),IF(AND(Indata!$B$28="NEJ",Indata!$B$27="Projektspecifika, KA tidsvärde privatresor 95kr"),Indata!D44*(1-Indata!$B$29)*Tidsvärden!$B$28*Stödberäkningar!$P$8*Stödberäkningar!O4*(1-Tidsvärden!$B$10),IF(AND(Indata!$B$28="ja",Indata!$B$27="EVA"),Indata!D50*Tidsvärden!$K$27*Stödberäkningar!$P$8*Stödberäkningar!O4,IF(AND(Indata!$B$28="ja",Indata!$B$27="EVA, KA tidsvärde privatresor 95kr"),Indata!D50*Tidsvärden!$K$28*Stödberäkningar!$P$8*Stödberäkningar!O4,IF(AND(Indata!$B$28="ja",Indata!$B$27="Projektspecifika"),Indata!D50*Tidsvärden!$B$27*Stödberäkningar!$P$8*Stödberäkningar!O4*(1-Tidsvärden!$B$10),IF(AND(Indata!$B$28="ja",Indata!$B$27="Projektspecifika, KA tidsvärde privatresor 95kr"),Indata!D50*Tidsvärden!$B$28*Stödberäkningar!$P$8*Stödberäkningar!O4*(1-Tidsvärden!$B$10),"FELAKTIG INDATA"))))))))*Indata!$B$32/1000000 -> 0 | C5: =-IF(AND(Indata!$B$28="NEJ",Indata!$B$27="EVA"),Indata!D44*(1-Indata!$B$29)*Tidsvärden!$K$27*Stödberäkningar!$P$8*Stödberäkningar!O4*0,IF(AND(Indata!$B$28="NEJ",Indata!$B$27="EVA, KA tidsvärde privatresor 95kr"),Indata!D44*(1-Indata!$B$29)*Tidsvärden!$K$28*Stödberäkningar!$P$8*Stödberäkningar!O4*0,IF(AND(Indata!$B$28="NEJ",Indata!$B$27="Projektspecifika"),Indata!D44*(1-Indata!$B$29)*Tidsvärden!$B$36*Stödberäkningar!$P$9*Stödberäkningar!O4*Tidsvärden!$B$10,IF(AND(Indata!$B$28="NEJ",Indata!$B$27="Projektspecifika, KA tidsvärde privatresor 95kr"),Indata!D44*(1-Indata!$B$29)*Tidsvärden!$B$36*Stödberäkningar!$P$9*Stödberäkningar!O4*Tidsvärden!$B$10,IF(AND(Indata!$B$28="ja",Indata!$B$27="EVA"),Indata!D50*Tidsvärden!$K$27*Stödberäkningar!$P$8*Stödberäkningar!O4*0,IF(AND(Indata!$B$28="ja",Indata!$B$27="EVA, KA tidsvärde privatresor 95kr"),Indata!D50*Tidsvärden!$K$28*Stödberäkningar!$P$8*Stödberäkningar!O4*0,IF(AND(Indata!$B$28="ja",Indata!$B$27="Projektspecifika"),Indata!D50*Tidsvärden!$B$36*Stödberäkningar!$P$9*Stödberäkningar!O4*Tidsvärden!$B$10,IF(AND(Indata!$B$28="ja",Indata!$B$27="Projektspecifika, KA tidsvärde privatresor 95kr"),Indata!D50*Tidsvärden!$B$36*Stödberäkningar!$P$9*Stödberäkningar!O4*Tidsvärden!$B$10,"FELAKTIG INDATA"))))))))*Indata!$B$32/1000000 -> 0 | D5: =-IF(AND(Indata!$B$28="NEJ",Indata!$B$27="EVA"),Indata!D44*(Indata!$B$29)*Tidsvärden!$K$29*Stödberäkningar!$P$9*Stödberäkningar!O4,IF(AND(Indata!$B$28="NEJ",Indata!$B$27="EVA, KA tidsvärde privatresor 95kr"),Indata!D44*(Indata!$B$29)*Tidsvärden!$K$29*Stödberäkningar!$P$9*Stödberäkningar!O4,IF(AND(Indata!$B$28="NEJ",Indata!$B$27="Projektspecifika"),Indata!D44*(Indata!$B$29)*Tidsvärden!$B$29*Stödberäkningar!$P$9*Stödberäkningar!O4,IF(AND(Indata!$B$28="NEJ",Indata!$B$27="Projektspecifika, KA tidsvärde privatresor 95kr"),Indata!D44*(Indata!$B$29)*Tidsvärden!$B$29*Stödberäkningar!$P$9*Stödberäkningar!O4,IF(AND(Indata!$B$28="ja",Indata!$B$27="EVA"),Indata!D56*Tidsvärden!$K$29*Stödberäkningar!$P$9*Stödberäkningar!O4,IF(AND(Indata!$B$28="ja",Indata!$B$27="EVA, KA tidsvärde privatresor 95kr"),Indata!D56*Tidsvärden!$K$29*Stödberäkningar!$P$9*Stödberäkningar!O4,IF(AND(Indata!$B$28="ja",Indata!$B$27="Projektspecifika"),Indata!D56*Tidsvärden!$B$29*Stödberäkningar!$P$9*Stödberäkningar!O4,IF(AND(Indata!$B$28="ja",Indata!$B$27="Projektspecifika, KA tidsvärde privatresor 95kr"),Indata!D56*Tidsvärden!$B$29*Stödberäkningar!$P$9*Stödberäkningar!O4,"FELAKTIG INDATA"))))))))*Indata!$B$32/1000000 -> 0 | E5: =SUM(B5:D5) -> 0
A6: Eftermiddag | B6: =-IF(AND(Indata!$B$28="NEJ",Indata!$B$27="EVA"),Indata!D45*(1-Indata!$B$29)*Tidsvärden!$K$27*Stödberäkningar!$P$8*Stödberäkningar!O5,IF(AND(Indata!$B$28="NEJ",Indata!$B$27="EVA, KA tidsvärde privatresor 95kr"),Indata!D45*(1-Indata!$B$29)*Tidsvärden!$K$28*Stödberäkningar!$P$8*Stödberäkningar!O5,IF(AND(Indata!$B$28="NEJ",Indata!$B$27="Projektspecifika"),Indata!D45*(1-Indata!$B$29)*Tidsvärden!$B$27*Stödberäkningar!$P$8*Stödberäkningar!O5*(1-Tidsvärden!$B$10),IF(AND(Indata!$B$28="NEJ",Indata!$B$27="Projektspecifika, KA tidsvärde privatresor 95kr"),Indata!D45*(1-Indata!$B$29)*Tidsvärden!$B$28*Stödberäkningar!$P$8*Stödberäkningar!O5*(1-Tidsvärden!$B$10),IF(AND(Indata!$B$28="ja",Indata!$B$27="EVA"),Indata!D51*Tidsvärden!$K$27*Stödberäkningar!$P$8*Stödberäkningar!O5,IF(AND(Indata!$B$28="ja",Indata!$B$27="EVA, KA tidsvärde privatresor 95kr"),Indata!D51*Tidsvärden!$K$28*Stödberäkningar!$P$8*Stödberäkningar!O5,IF(AND(Indata!$B$28="ja",Indata!$B$27="Projektspecifika"),Indata!D51*Tidsvärden!$B$27*Stödberäkningar!$P$8*Stödberäkningar!O5*(1-Tidsvärden!$B$10),IF(AND(Indata!$B$28="ja",Indata!$B$27="Projektspecifika, KA tidsvärde privatresor 95kr"),Indata!D51*Tidsvärden!$B$28*Stödberäkningar!$P$8*Stödberäkningar!O5*(1-Tidsvärden!$B$10),"FELAKTIG INDATA"))))))))*Indata!$B$32/1000000 -> 0 | C6: =-IF(AND(Indata!$B$28="NEJ",Indata!$B$27="EVA"),Indata!D45*(1-Indata!$B$29)*Tidsvärden!$K$27*Stödberäkningar!$P$8*Stödberäkningar!O5*0,IF(AND(Indata!$B$28="NEJ",Indata!$B$27="EVA, KA tidsvärde privatresor 95kr"),Indata!D45*(1-Indata!$B$29)*Tidsvärden!$K$28*Stödberäkningar!$P$8*Stödberäkningar!O5*0,IF(AND(Indata!$B$28="NEJ",Indata!$B$27="Projektspecifika"),Indata!D45*(1-Indata!$B$29)*Tidsvärden!$B$36*Stödberäkningar!$P$9*Stödberäkningar!O5*Tidsvärden!$B$10,IF(AND(Indata!$B$28="NEJ",Indata!$B$27="Projektspecifika, KA tidsvärde privatresor 95kr"),Indata!D45*(1-Indata!$B$29)*Tidsvärden!$B$36*Stödberäkningar!$P$9*Stödberäkningar!O5*Tidsvärden!$B$10,IF(AND(Indata!$B$28="ja",Indata!$B$27="EVA"),Indata!D51*Tidsvärden!$K$27*Stödberäkningar!$P$8*Stödberäkningar!O5*0,IF(AND(Indata!$B$28="ja",Indata!$B$27="EVA, KA tidsvärde privatresor 95kr"),Indata!D51*Tidsvärden!$K$28*Stödberäkningar!$P$8*Stödberäkningar!O5*0,IF(AND(Indata!$B$28="ja",Indata!$B$27="Projektspecifika"),Indata!D51*Tidsvärden!$B$36*Stödberäkningar!$P$9*Stödberäkningar!O5*Tidsvärden!$B$10,IF(AND(Indata!$B$28="ja",Indata!$B$27="Projektspecifika, KA tidsvärde privatresor 95kr"),Indata!D51*Tidsvärden!$B$36*Stödberäkningar!$P$9*Stödberäkningar!O5*Tidsvärden!$B$10,"FELAKTIG INDATA"))))))))*Indata!$B$32/1000000 -> 0 | D6: =-IF(AND(Indata!$B$28="NEJ",Indata!$B$27="EVA"),Indata!D45*(Indata!$B$29)*Tidsvärden!$K$29*Stödberäkningar!$P$9*Stödberäkningar!O5,IF(AND(Indata!$B$28="NEJ",Indata!$B$27="EVA, KA tidsvärde privatresor 95kr"),Indata!D45*(Indata!$B$29)*Tidsvärden!$K$29*Stödberäkningar!$P$9*Stödberäkningar!O5,IF(AND(Indata!$B$28="NEJ",Indata!$B$27="Projektspecifika"),Indata!D45*(Indata!$B$29)*Tidsvärden!$B$29*Stödberäkningar!$P$9*Stödberäkningar!O5,IF(AND(Indata!$B$28="NEJ",Indata!$B$27="Projektspecifika, KA tidsvärde privatresor 95kr"),Indata!D45*(Indata!$B$29)*Tidsvärden!$B$29*Stödberäkningar!$P$9*Stödberäkningar!O5,IF(AND(Indata!$B$28="ja",Indata!$B$27="EVA"),Indata!D57*Tidsvärden!$K$29*Stödberäkningar!$P$9*Stödberäkningar!O5,IF(AND(Indata!$B$28="ja",Indata!$B$27="EVA, KA tidsvärde privatresor 95kr"),Indata!D57*Tidsvärden!$K$29*Stödberäkningar!$P$9*Stödberäkningar!O5,IF(AND(Indata!$B$28="ja",Indata!$B$27="Projektspecifika"),Indata!D57*Tidsvärden!$B$29*Stödberäkningar!$P$9*Stödberäkningar!O5,IF(AND(Indata!$B$28="ja",Indata!$B$27="Projektspecifika, KA tidsvärde privatresor 95kr"),Indata!D57*Tidsvärden!$B$29*Stödberäkningar!$P$9*Stödberäkningar!O5,"FELAKTIG INDATA"))))))))*Indata!$B$32/1000000 -> 0 | E6: =SUM(B6:D6) -> 0
A7: Summa | B7: =SUM(B4:B6) -> 0 | C7: =SUM(C4:C6) -> 0 | D7: =SUM(D4:D6) -> 0 | E7: =SUM(E4:E6) -> 0
A9: Godskostnad [MSEK] Nuvärde | B9: Personbil | C9: Personbil yrkestrafik | D9: Tung Trafik | E9: Summa
A10: Förmiddag | B10: 0 | C10: =-IF(AND(Indata!$B$28="NEJ",Indata!$B$27="EVA"),Indata!D43*(1-Indata!$B$29)*0*Stödberäkningar!$P$9*Stödberäkningar!O3,IF(AND(Indata!$B$28="NEJ",Indata!$B$27="EVA, KA tidsvärde privatresor 95kr"),Indata!D43*(1-Indata!$B$29)*0*Stödberäkningar!$P$9*Stödberäkningar!O3,IF(AND(Indata!$B$28="NEJ",Indata!$B$27="Projektspecifika"),Indata!D43*(1-Indata!$B$29)*Tidsvärden!$B$31*Tidsvärden!$B$10*Stödberäkningar!$P$9*Stödberäkningar!O3,IF(AND(Indata!$B$28="NEJ",Indata!$B$27="Projektspecifika, KA tidsvärde privatresor 95kr"),Indata!D43*(1-Indata!$B$29)*Tidsvärden!$B$31*Tidsvärden!$B$10*Stödberäkningar!$P$9*Stödberäkningar!O3,IF(AND(Indata!$B$28="ja",Indata!$B$27="EVA"),Indata!D49*0*Stödberäkningar!$P$9*Stödberäkningar!O3,IF(AND(Indata!$B$28="ja",Indata!$B$27="EVA, KA tidsvärde privatresor 95kr"),Indata!D49*0*Stödberäkningar!$P$9*Stödberäkningar!O3,IF(AND(Indata!$B$28="ja",Indata!$B$27="Projektspecifika"),Indata!D49*Tidsvärden!$B$31*Tidsvärden!$B$10*Stödberäkningar!$P$9*Stödberäkningar!O3,IF(AND(Indata!$B$28="ja",Indata!$B$27="Projektspecifika, KA tidsvärde privatresor 95kr"),Indata!D49*Tidsvärden!$B$31*Tidsvärden!$B$10*Stödberäkningar!$P$9*Stödberäkningar!O3,"FELAKTIG INDATA"))))))))*Indata!$B$32/1000000 -> 0 | D10: =-IF(AND(Indata!$B$28="NEJ",Indata!$B$27="EVA"),Indata!D43*(Indata!$B$29)*Tidsvärden!$K$30*Stödberäkningar!$P$9*Stödberäkningar!O3,IF(AND(Indata!$B$28="NEJ",Indata!$B$27="EVA, KA tidsvärde privatresor 95kr"),Indata!D43*(Indata!$B$29)*Tidsvärden!$K$30*Stödberäkningar!$P$9*Stödberäkningar!O3,IF(AND(Indata!$B$28="NEJ",Indata!$B$27="Projektspecifika"),Indata!D43*(Indata!$B$29)*Tidsvärden!$B$30*Stödberäkningar!$P$9*Stödberäkningar!O3,IF(AND(Indata!$B$28="NEJ",Indata!$B$27="Projektspecifika, KA tidsvärde privatresor 95kr"),Indata!D43*(Indata!$B$29)*Tidsvärden!$B$30*Stödberäkningar!$P$9*Stödberäkningar!O3,IF(AND(Indata!$B$28="ja",Indata!$B$27="EVA"),Indata!D55*Tidsvärden!$K$30*Stödberäkningar!$P$9*Stödberäkningar!O3,IF(AND(Indata!$B$28="ja",Indata!$B$27="EVA, KA tidsvärde privatresor 95kr"),Indata!D55*Tidsvärden!$K$30*Stödberäkningar!$P$9*Stödberäkningar!O3,IF(AND(Indata!$B$28="ja",Indata!$B$27="Projektspecifika"),Indata!D55*Tidsvärden!$B$30*Stödberäkningar!$P$9*Stödberäkningar!O3,IF(AND(Indata!$B$28="ja",Indata!$B$27="Projektspecifika, KA tidsvärde privatresor 95kr"),Indata!D55*Tidsvärden!$B$30*Stödberäkningar!$P$9*Stödberäkningar!O3,"FELAKTIG INDATA"))))))))*Indata!$B$32/1000000 -> 0 | E10: =SUM(C10:D10) -> 0
A11: Lågtrafik | B11: 0 | C11: =-IF(AND(Indata!$B$28="NEJ",Indata!$B$27="EVA"),Indata!D44*(1-Indata!$B$29)*0*Stödberäkningar!$P$9*Stödberäkningar!O4,IF(AND(Indata!$B$28="NEJ",Indata!$B$27="EVA, KA tidsvärde privatresor 95kr"),Indata!D44*(1-Indata!$B$29)*0*Stödberäkningar!$P$9*Stödberäkningar!O4,IF(AND(Indata!$B$28="NEJ",Indata!$B$27="Projektspecifika"),Indata!D44*(1-Indata!$B$29)*Tidsvärden!$B$31*Tidsvärden!$B$10*Stödberäkningar!$P$9*Stödberäkningar!O4,IF(AND(Indata!$B$28="NEJ",Indata!$B$27="Projektspecifika, KA tidsvärde privatresor 95kr"),Indata!D44*(1-Indata!$B$29)*Tidsvärden!$B$31*Tidsvärden!$B$10*Stödberäkningar!$P$9*Stödberäkningar!O4,IF(AND(Indata!$B$28="ja",Indata!$B$27="EVA"),Indata!D50*0*Stödberäkningar!$P$9*Stödberäkningar!O4,IF(AND(Indata!$B$28="ja",Indata!$B$27="EVA, KA tidsvärde privatresor 95kr"),Indata!D50*0*Stödberäkningar!$P$9*Stödberäkningar!O4,IF(AND(Indata!$B$28="ja",Indata!$B$27="Projektspecifika"),Indata!D50*Tidsvärden!$B$31*Tidsvärden!$B$10*Stödberäkningar!$P$9*Stödberäkningar!O4,IF(AND(Indata!$B$28="ja",Indata!$B$27="Projektspecifika, KA tidsvärde privatresor 95kr"),Indata!D50*Tidsvärden!$B$31*Tidsvärden!$B$10*Stödberäkningar!$P$9*Stödberäkningar!O4,"FELAKTIG INDATA"))))))))*Indata!$B$32/1000000 -> 0 | D11: =-IF(AND(Indata!$B$28="NEJ",Indata!$B$27="EVA"),Indata!D44*(Indata!$B$29)*Tidsvärden!$K$30*Stödberäkningar!$P$9*Stödberäkningar!O4,IF(AND(Indata!$B$28="NEJ",Indata!$B$27="EVA, KA tidsvärde privatresor 95kr"),Indata!D44*(Indata!$B$29)*Tidsvärden!$K$30*Stödberäkningar!$P$9*Stödberäkningar!O4,IF(AND(Indata!$B$28="NEJ",Indata!$B$27="Projektspecifika"),Indata!D44*(Indata!$B$29)*Tidsvärden!$B$30*Stödberäkningar!$P$9*Stödberäkningar!O4,IF(AND(Indata!$B$28="NEJ",Indata!$B$27="Projektspecifika, KA tidsvärde privatresor 95kr"),Indata!D44*(Indata!$B$29)*Tidsvärden!$B$30*Stödberäkningar!$P$9*Stödberäkningar!O4,IF(AND(Indata!$B$28="ja",Indata!$B$27="EVA"),Indata!D56*Tidsvärden!$K$30*Stödberäkningar!$P$9*Stödberäkningar!O4,IF(AND(Indata!$B$28="ja",Indata!$B$27="EVA, KA tidsvärde privatresor 95kr"),Indata!D56*Tidsvärden!$K$30*Stödberäkningar!$P$9*Stödberäkningar!O4,IF(AND(Indata!$B$28="ja",Indata!$B$27="Projektspecifika"),Indata!D56*Tidsvärden!$B$30*Stödberäkningar!$P$9*Stödberäkningar!O4,IF(AND(Indata!$B$28="ja",Indata!$B$27="Projektspecifika, KA tidsvärde privatresor 95kr"),Indata!D56*Tidsvärden!$B$30*Stödberäkningar!$P$9*Stödberäkningar!O4,"FELAKTIG INDATA"))))))))*Indata!$B$32/1000000 -> 0 | E11: =SUM(C11:D11) -> 0
A12: Eftermiddag | B12: 0 | C12: =-IF(AND(Indata!$B$28="NEJ",Indata!$B$27="EVA"),Indata!D45*(1-Indata!$B$29)*0*Stödberäkningar!$P$9*Stödberäkningar!O5,IF(AND(Indata!$B$28="NEJ",Indata!$B$27="EVA, KA tidsvärde privatresor 95kr"),Indata!D45*(1-Indata!$B$29)*0*Stödberäkningar!$P$9*Stödberäkningar!O5,IF(AND(Indata!$B$28="NEJ",Indata!$B$27="Projektspecifika"),Indata!D45*(1-Indata!$B$29)*Tidsvärden!$B$31*Tidsvärden!$B$10*Stödberäkningar!$P$9*Stödberäkningar!O5,IF(AND(Indata!$B$28="NEJ",Indata!$B$27="Projektspecifika, KA tidsvärde privatresor 95kr"),Indata!D45*(1-Indata!$B$29)*Tidsvärden!$B$31*Tidsvärden!$B$10*Stödberäkningar!$P$9*Stödberäkningar!O5,IF(AND(Indata!$B$28="ja",Indata!$B$27="EVA"),Indata!D51*0*Stödberäkningar!$P$9*Stödberäkningar!O5,IF(AND(Indata!$B$28="ja",Indata!$B$27="EVA, KA tidsvärde privatresor 95kr"),Indata!D51*0*Stödberäkningar!$P$9*Stödberäkningar!O5,IF(AND(Indata!$B$28="ja",Indata!$B$27="Projektspecifika"),Indata!D51*Tidsvärden!$B$31*Tidsvärden!$B$10*Stödberäkningar!$P$9*Stödberäkningar!O5,IF(AND(Indata!$B$28="ja",Indata!$B$27="Projektspecifika, KA tidsvärde privatresor 95kr"),Indata!D51*Tidsvärden!$B$31*Tidsvärden!$B$10*Stödberäkningar!$P$9*Stödberäkningar!O5,"FELAKTIG INDATA"))))))))*Indata!$B$32/1000000 -> 0 | D12: =-IF(AND(Indata!$B$28="NEJ",Indata!$B$27="EVA"),Indata!D45*(Indata!$B$29)*Tidsvärden!$K$30*Stödberäkningar!$P$9*Stödberäkningar!O5,IF(AND(Indata!$B$28="NEJ",Indata!$B$27="EVA, KA tidsvärde privatresor 95kr"),Indata!D45*(Indata!$B$29)*Tidsvärden!$K$30*Stödberäkningar!$P$9*Stödberäkningar!O5,IF(AND(Indata!$B$28="NEJ",Indata!$B$27="Projektspecifika"),Indata!D45*(Indata!$B$29)*Tidsvärden!$B$30*Stödberäkningar!$P$9*Stödberäkningar!O5,IF(AND(Indata!$B$28="NEJ",Indata!$B$27="Projektspecifika, KA tidsvärde privatresor 95kr"),Indata!D45*(Indata!$B$29)*Tidsvärden!$B$30*Stödberäkningar!$P$9*Stödberäkningar!O5,IF(AND(Indata!$B$28="ja",Indata!$B$27="EVA"),Indata!D57*Tidsvärden!$K$30*Stödberäkningar!$P$9*Stödberäkningar!O5,IF(AND(Indata!$B$28="ja",Indata!$B$27="EVA, KA tidsvärde privatresor 95kr"),Indata!D57*Tidsvärden!$K$30*Stödberäkningar!$P$9*Stödberäkningar!O5,IF(AND(Indata!$B$28="ja",Indata!$B$27="Projektspecifika"),Indata!D57*Tidsvärden!$B$30*Stödberäkningar!$P$9*Stödberäkningar!O5,IF(AND(Indata!$B$28="ja",Indata!$B$27="Projektspecifika, KA tidsvärde privatresor 95kr"),Indata!D57*Tidsvärden!$B$30*Stödberäkningar!$P$9*Stödberäkningar!O5,"FELAKTIG INDATA"))))))))*Indata!$B$32/1000000 -> 0 | E12: =SUM(C12:D12) -> 0
A13: Summa | B13: =SUM(B10:B12) -> 0 | C13: =SUM(C10:C12) -> 0 | D13: =SUM(D10:D12) -> 0 | E13: =SUM(E10:E12) -> 0
A15: Summa restidsnyttor [MSEK] Nuvärde | B15: Personbil | C15: Personbil yrkestrafik | D15: Tung Trafik | E15: Summa
A16: Förmiddag | B16: =B4+B10 -> 0 | C16: =C4+C10 -> 0 | D16: =D4+D10 -> 0 | E16: =SUM(B16:D16) -> 0
A17: Lågtrafik | B17: =B5+B11 -> 0 | C17: =C5+C11 -> 0 | D17: =D5+D11 -> 0 | E17: =SUM(B17:D17) -> 0
A18: Eftermiddag | B18: =B6+B12 -> 0 | C18: 0 | D18: =D6+D12 -> 0 | E18: =SUM(B18:D18) -> 0
A19: Summa | B19: =SUM(B16:B18) -> 0 | C19: =SUM(C16:C18) -> 0 | D19: =SUM(D16:D18) -> 0 | E19: =SUM(E16:E18) -> 0
A22: Total nytta | B22: =E19 -> 0 | C22: MSEK

Sheet Stödberäkningar (hidden)
A1: Tidsvärden | F1: Nuvärdefaktor personbilstrafik | J1: Investering | T1: Nuvärdefaktor Yrkestrafik
A2: Delberäkning | F2: År efter trafikstart | G2: Nytta, ackumulerad | H2: Nytta, diskonterad | J2: År efter byggstart | K2: Investeringskostnad, diskonterad, del utan skattefaktor | L2: Investeringskostnad, diskonterad del med skattefaktor | O2: Viktfaktor | T2: År efter trafikstart | U2: Nytta, ackumulerad | V2: Nytta, diskonterad
A3: Privatresor | B3: Reg | C3: Nat | F3: 0 | G3: =H3 -> 0.9118501037 | H3: =IF((Indata!B$10+F3)<Indata!B$13,IF((Indata!B$10+F3)<Indata!B$12,(1+Indata!B$14)^(F3-Indata!B$8+Indata!B$10)*(1+Indata!B$16)^(F3+Indata!B$10-Indata!B$17)/(1+Indata!B$7)^(F3+Indata!B$10-Indata!B$9),(1+Indata!B$14)^((Indata!B$12-Indata!B$10)-Indata!B$8+Indata!B$10)*(1+Indata!B$15)^(F3+Indata!B$10-Indata!B$12)*(1+Indata!B$16)^(F3+Indata!B$10-Indata!B$17)/(1+Indata!B$7)^(F3+Indata!B$10-Indata!B$9)),(1+Indata!B$14)^((Indata!B$12-Indata!B$10)-Indata!B$8+Indata!B$10)*(1+Indata!B$15)^((Indata!B$13-Indata!B$10)+Indata!B$10-Indata!B$12)*(1+Stödberäkningar!G$106)^(F3+Indata!B$10-Indata!B$13)*(1+Indata!B$16)^(Indata!B$13-Indata!B$17)/(1+Indata!B$7)^(F3+Indata!B$10-Indata!B$9)) -> 0.9118501037 | J3: 0 | K3: =(Indata!F10)/(1+Indata!B$7)^(Stödberäkningar!F3+Indata!E$7-Indata!B$9) -> 0 | L3: =(Indata!E$8*Indata!E10)/(1+Indata!B$7)^(Stödberäkningar!F3+Indata!E$7-Indata!B$9) -> 0 | O3: =IF(Indata!B37="ja",1,0) -> 1 | T3: 0 | U3: =V3 -> 0.8040789515 | V3: =IF((Indata!B$10+F3)<Indata!B$13,IF((Indata!B$10+F3)<Indata!B$12,(1+Indata!B$14)^(F3-Indata!B$8+Indata!B$10)*(1)^(F3+Indata!B$10-Indata!B$17)/(1+Indata!B$7)^(F3+Indata!B$10-Indata!B$9),(1+Indata!B$14)^((Indata!B$12-Indata!B$10)-Indata!B$8+Indata!B$10)*(1+Indata!B$15)^(F3+Indata!B$10-Indata!B$12)*(1)^(F3+Indata!B$10-Indata!B$17)/(1+Indata!B$7)^(F3+Indata!B$10-Indata!B$9)),(1+Indata!B$14)^((Indata!B$12-Indata!B$10)-Indata!B$8+Indata!B$10)*(1+Indata!B$15)^((Indata!B$13-Indata!B$10)+Indata!B$10-Indata!B$12)*(1+Stödberäkningar!G$106)^(F3+Indata!B$10-Indata!B$13)*(1)^(F3+Indata!B$10-Indata!B$17)/(1+Indata!B$7)^(F3+Indata!B$10-Indata!B$9)) -> 0.8040789515
A4: Tid kr/tim | B4: =Tidsvärden!B20*Tidsvärden!B8+Tidsvärden!D20*(1-Tidsvärden!B8) -> 88.168 | C4: =Tidsvärden!B14 -> 139 | F4: 1 | G4: =G3+H4 -> 1.811907827 | H4: =IF((Indata!B$10+F4)<Indata!B$13,IF((Indata!B$10+F4)<Indata!B$12,(1+Indata!B$14)^(F4-Indata!B$8+Indata!B$10)*(1+Indata!B$16)^(F4+Indata!B$10-Indata!B$17)/(1+Indata!B$7)^(F4+Indata!B$10-Indata!B$9),(1+Indata!B$14)^((Indata!B$12-Indata!B$10)-Indata!B$8+Indata!B$10)*(1+Indata!B$15)^(F4+Indata!B$10-Indata!B$12)*(1+Indata!B$16)^(F4+Indata!B$10-Indata!B$17)/(1+Indata!B$7)^(F4+Indata!B$10-Indata!B$9)),(1+Indata!B$14)^((Indata!B$12-Indata!B$10)-Indata!B$8+Indata!B$10)*(1+Indata!B$15)^((Indata!B$13-Indata!B$10)+Indata!B$10-Indata!B$12)*(1+Stödberäkningar!G$106)^(F4+Indata!B$10-Indata!B$13)*(1+Indata!B$16)^(Indata!B$13-Indata!B$17)/(1+Indata!B$7)^(F4+Indata!B$10-Indata!B$9)) -> 0.9000577234 | J4: 1 | K4: =(Indata!F11)/(1+Indata!B$7)^(Stödberäkningar!F4+Indata!E$7-Indata!B$9) -> 0 | L4: =(Indata!E$8*Indata!E11)/(1+Indata!B$7)^(Stödberäkningar!F4+Indata!E$7-Indata!B$9) -> 0 | O4: =IF(Indata!B38="ja",Indata!C38*(1/Indata!D38),0) -> 1 | T4: 1 | U4: =U3+V4 -> 1.588735706 | V4: =IF((Indata!B$10+F4)<Indata!B$13,IF((Indata!B$10+F4)<Indata!B$12,(1+Indata!B$14)^(F4-Indata!B$8+Indata!B$10)*(1)^(F4+Indata!B$10-Indata!B$17)/(1+Indata!B$7)^(F4+Indata!B$10-Indata!B$9),(1+Indata!B$14)^((Indata!B$12-Indata!B$10)-Indata!B$8+Indata!B$10)*(1+Indata!B$15)^(F4+Indata!B$10-Indata!B$12)*(1)^(F4+Indata!B$10-Indata!B$17)/(1+Indata!B$7)^(F4+Indata!B$10-Indata!B$9)),(1+Indata!B$14)^((Indata!B$12-Indata!B$10)-Indata!B$8+Indata!B$10)*(1+Indata!B$15)^((Indata!B$13-Indata!B$10)+Indata!B$10-Indata!B$12)*(1+Stödberäkningar!G$106)^(F4+Indata!B$10-Indata!B$13)*(1)^(F4+Indata!B$10-Indata!B$17)/(1+Indata!B$7)^(F4+Indata!B$10-Indata!B$9)) -> 0.7846567546
A5: Beläggningsgrad | B5: =Tidsvärden!B22*Tidsvärden!B8+Tidsvärden!D22*(1-Tidsvärden!B8) -> 1.6296 | C5: =Tidsvärden!B16 -> 2.2 | F5: 2 | G5: 2.700325674 | H5: =IF((Indata!B$10+F5)<Indata!B$13,IF((Indata!B$10+F5)<Indata!B$12,(1+Indata!B$14)^(F5-Indata!B$8+Indata!B$10)*(1+Indata!B$16)^(F5+Indata!B$10-Indata!B$17)/(1+Indata!B$7)^(F5+Indata!B$10-Indata!B$9),(1+Indata!B$14)^((Indata!B$12-Indata!B$10)-Indata!B$8+Indata!B$10)*(1+Indata!B$15)^(F5+Indata!B$10-Indata!B$12)*(1+Indata!B$16)^(F5+Indata!B$10-Indata!B$17)/(1+Indata!B$7)^(F5+Indata!B$10-Indata!B$9)),(1+Indata!B$14)^((Indata!B$12-Indata!B$10)-Indata!B$8+Indata!B$10)*(1+Indata!B$15)^((Indata!B$13-Indata!B$10)+Indata!B$10-Indata!B$12)*(1+Stödberäkningar!G$106)^(F5+Indata!B$10-Indata!B$13)*(1+Indata!B$16)^(Indata!B$13-Indata!B$17)/(1+Indata!B$7)^(F5+Indata!B$10-Indata!B$9)) -> 0.8884178465 | J5: 2 | K5: =(Indata!F12)/(1+Indata!B$7)^(Stödberäkningar!F5+Indata!E$7-Indata!B$9) -> 0 | L5: =(Indata!E$8*Indata!E12)/(1+Indata!B$7)^(Stödberäkningar!F5+Indata!E$7-Indata!B$9) -> 0 | O5: =IF(Indata!B39="ja",1,0) -> 1 | T5: 2 | U5: =U4+V5 -> 2.354439399 | V5: =IF((Indata!B$10+F5)<Indata!B$13,IF((Indata!B$10+F5)<Indata!B$12,(1+Indata!B$14)^(F5-Indata!B$8+Indata!B$10)*(1)^(F5+Indata!B$10-Indata!B$17)/(1+Indata!B$7)^(F5+Indata!B$10-Indata!B$9),(1+Indata!B$14)^((Indata!B$12-Indata!B$10)-Indata!B$8+Indata!B$10)*(1+Indata!B$15)^(F5+Indata!B$10-Indata!B$12)*(1)^(F5+Indata!B$10-Indata!B$17)/(1+Indata!B$7)^(F5+Indata!B$10-Indata!B$9)),(1+Indata!B$14)^((Indata!B$12-Indata!B$10)-Indata!B$8+Indata!B$10)*(1+Indata!B$15)^((Indata!B$13-Indata!B$10)+Indata!B$10-Indata!B$12)*(1+Stödberäkningar!G$106)^(F5+Indata!B$10-Indata!B$13)*(1)^(F5+Indata!B$10-Indata!B$17)/(1+Indata!B$7)^(F5+Indata!B$10-Indata!B$9)) -> 0.7657036929
A6: Tid kr/ftim | B6: =B4*B5 -> 143.6785728 | C6: =C4*C5 -> 305.8 | F6: 3 | G6: 3.577254174 | H6: =IF((Indata!B$10+F6)<Indata!B$13,IF((Indata!B$10+F6)<Indata!B$12,(1+Indata!B$14)^(F6-Indata!B$8+Indata!B$10)*(1+Indata!B$16)^(F6+Indata!B$10-Indata!B$17)/(1+Indata!B$7)^(F6+Indata!B$10-Indata!B$9),(1+Indata!B$14)^((Indata!B$12-Indata!B$10)-Indata!B$8+Indata!B$10)*(1+Indata!B$15)^(F6+Indata!B$10-Indata!B$12)*(1+Indata!B$16)^(F6+Indata!B$10-Indata!B$17)/(1+Indata!B$7)^(F6+Indata!B$10-Indata!B$9)),(1+Indata!B$14)^((Indata!B$12-Indata!B$10)-Indata!B$8+Indata!B$10)*(1+Indata!B$15)^((Indata!B$13-Indata!B$10)+Indata!B$10-Indata!B$12)*(1+Stödberäkningar!G$106)^(F6+Indata!B$10-Indata!B$13)*(1+Indata!B$16)^(Indata!B$13-Indata!B$17)/(1+Indata!B$7)^(F6+Indata!B$10-Indata!B$9)) -> 0.8769285007 | J6: 3 | K6: =(Indata!F13)/(1+Indata!B$7)^(Stödberäkningar!F6+Indata!E$7-Indata!B$9) -> 0 | L6: =(Indata!E$8*Indata!E13)/(1+Indata!B$7)^(Stödberäkningar!F6+Indata!E$7-Indata!B$9) -> 0 | T6: 3 | U6: 3.101647834 | V6: =IF((Indata!B$10+F6)<Indata!B$13,IF((Indata!B$10+F6)<Indata!B$12,(1+Indata!B$14)^(F6-Indata!B$8+Indata!B$10)*(1)^(F6+Indata!B$10-Indata!B$17)/(1+Indata!B$7)^(F6+Indata!B$10-Indata!B$9),(1+Indata!B$14)^((Indata!B$12-Indata!B$10)-Indata!B$8+Indata!B$10)*(1+Indata!B$15)^(F6+Indata!B$10-Indata!B$12)*(1)^(F6+Indata!B$10-Indata!B$17)/(1+Indata!B$7)^(F6+Indata!B$10-Indata!B$9)),(1+Indata!B$14)^((Indata!B$12-Indata!B$10)-Indata!B$8+Indata!B$10)*(1+Indata!B$15)^((Indata!B$13-Indata!B$10)+Indata!B$10-Indata!B$12)*(1+Stödberäkningar!G$106)^(F6+Indata!B$10-Indata!B$13)*(1)^(F6+Indata!B$10-Indata!B$17)/(1+Indata!B$7)^(F6+Indata!B$10-Indata!B$9)) -> 0.7472084346
A7: Reg+Nat kr/ftim | B7: =C6*Tidsvärden!B6+B6*(1-Tidsvärden!B6) -> 150.8119156 | F7: 4 | G7: 4.442841914 | H7: =IF((Indata!B$10+F7)<Indata!B$13,IF((Indata!B$10+F7)<Indata!B$12,(1+Indata!B$14)^(F7-Indata!B$8+Indata!B$10)*(1+Indata!B$16)^(F7+Indata!B$10-Indata!B$17)/(1+Indata!B$7)^(F7+Indata!B$10-Indata!B$9),(1+Indata!B$14)^((Indata!B$12-Indata!B$10)-Indata!B$8+Indata!B$10)*(1+Indata!B$15)^(F7+Indata!B$10-Indata!B$12)*(1+Indata!B$16)^(F7+Indata!B$10-Indata!B$17)/(1+Indata!B$7)^(F7+Indata!B$10-Indata!B$9)),(1+Indata!B$14)^((Indata!B$12-Indata!B$10)-Indata!B$8+Indata!B$10)*(1+Indata!B$15)^((Indata!B$13-Indata!B$10)+Indata!B$10-Indata!B$12)*(1+Stödberäkningar!G$106)^(F7+Indata!B$10-Indata!B$13)*(1+Indata!B$16)^(Indata!B$13-Indata!B$17)/(1+Indata!B$7)^(F7+Indata!B$10-Indata!B$9)) -> 0.8655877394 | J7: 4 | K7: =(Indata!F14)/(1+Indata!B$7)^(Stödberäkningar!F7+Indata!E$7-Indata!B$9) -> 0 | L7: =(Indata!E$8*Indata!E14)/(1+Indata!B$7)^(Stödberäkningar!F7+Indata!E$7-Indata!B$9) -> 0 | T7: 4 | U7: 3.830807755 | V7: =IF((Indata!B$10+F7)<Indata!B$13,IF((Indata!B$10+F7)<Indata!B$12,(1+Indata!B$14)^(F7-Indata!B$8+Indata!B$10)*(1)^(F7+Indata!B$10-Indata!B$17)/(1+Indata!B$7)^(F7+Indata!B$10-Indata!B$9),(1+Indata!B$14)^((Indata!B$12-Indata!B$10)-Indata!B$8+Indata!B$10)*(1+Indata!B$15)^(F7+Indata!B$10-Indata!B$12)*(1)^(F7+Indata!B$10-Indata!B$17)/(1+Indata!B$7)^(F7+Indata!B$10-Indata!B$9)),(1+Indata!B$14)^((Indata!B$12-Indata!B$10)-Indata!B$8+Indata!B$10)*(1+Indata!B$15)^((Indata!B$13-Indata!B$10)+Indata!B$10-Indata!B$12)*(1+Stödberäkningar!G$106)^(F7+Indata!B$10-Indata!B$13)*(1)^(F7+Indata!B$10-Indata!B$17)/(1+Indata!B$7)^(F7+Indata!B$10-Indata!B$9)) -> 0.7291599217
F8: 5 | G8: 5.297235555 | H8: =IF((Indata!B$10+F8)<Indata!B$13,IF((Indata!B$10+F8)<Indata!B$12,(1+Indata!B$14)^(F8-Indata!B$8+Indata!B$10)*(1+Indata!B$16)^(F8+Indata!B$10-Indata!B$17)/(1+Indata!B$7)^(F8+Indata!B$10-Indata!B$9),(1+Indata!B$14)^((Indata!B$12-Indata!B$10)-Indata!B$8+Indata!B$10)*(1+Indata!B$15)^(F8+Indata!B$10-Indata!B$12)*(1+Indata!B$16)^(F8+Indata!B$10-Indata!B$17)/(1+Indata!B$7)^(F8+Indata!B$10-Indata!B$9)),(1+Indata!B$14)^((Indata!B$12-Indata!B$10)-Indata!B$8+Indata!B$10)*(1+Indata!B$15)^((Indata!B$13-Indata!B$10)+Indata!B$10-Indata!B$12)*(1+Stödberäkningar!G$106)^(F8+Indata!B$10-Indata!B$13)*(1+Indata!B$16)^(Indata!B$13-Indata!B$17)/(1+Indata!B$7)^(F8+Indata!B$10-Indata!B$9)) -> 0.8543936409 | J8: 5 | K8: =(Indata!F15)/(1+Indata!B$7)^(Stödberäkningar!F8+Indata!E$7-Indata!B$9) -> 0 | L8: =(Indata!E$8*Indata!E15)/(1+Indata!B$7)^(Stödberäkningar!F8+Indata!E$7-Indata!B$9) -> 0 | O8: Nuvärdesfaktor pb | P8: =Stödberäkningar!G104 -> 35.66378671 | T8: 5 | U8: 4.542355119 | V8: =IF((Indata!B$10+F8)<Indata!B$13,IF((Indata!B$10+F8)<Indata!B$12,(1+Indata!B$14)^(F8-Indata!B$8+Indata!B$10)*(1)^(F8+Indata!B$10-Indata!B$17)/(1+Indata!B$7)^(F8+Indata!B$10-Indata!B$9),(1+Indata!B$14)^((Indata!B$12-Indata!B$10)-Indata!B$8+Indata!B$10)*(1+Indata!B$15)^(F8+Indata!B$10-Indata!B$12)*(1)^(F8+Indata!B$10-Indata!B$17)/(1+Indata!B$7)^(F8+Indata!B$10-Indata!B$9)),(1+Indata!B$14)^((Indata!B$12-Indata!B$10)-Indata!B$8+Indata!B$10)*(1+Indata!B$15)^((Indata!B$13-Indata!B$10)+Indata!B$10-Indata!B$12)*(1+Stödberäkningar!G$106)^(F8+Indata!B$10-Indata!B$13)*(1)^(F8+Indata!B$10-Indata!B$17)/(1+Indata!B$7)^(F8+Indata!B$10-Indata!B$9)) -> 0.7115473632
A9: Privatresor, KA tidsvärde 95kr | B9: Reg | C9: Nat | F9: 6 | G9: 6.140579863 | H9: =IF((Indata!B$10+F9)<Indata!B$13,IF((Indata!B$10+F9)<Indata!B$12,(1+Indata!B$14)^(F9-Indata!B$8+Indata!B$10)*(1+Indata!B$16)^(F9+Indata!B$10-Indata!B$17)/(1+Indata!B$7)^(F9+Indata!B$10-Indata!B$9),(1+Indata!B$14)^((Indata!B$12-Indata!B$10)-Indata!B$8+Indata!B$10)*(1+Indata!B$15)^(F9+Indata!B$10-Indata!B$12)*(1+Indata!B$16)^(F9+Indata!B$10-Indata!B$17)/(1+Indata!B$7)^(F9+Indata!B$10-Indata!B$9)),(1+Indata!B$14)^((Indata!B$12-Indata!B$10)-Indata!B$8+Indata!B$10)*(1+Indata!B$15)^((Indata!B$13-Indata!B$10)+Indata!B$10-Indata!B$12)*(1+Stödberäkningar!G$106)^(F9+Indata!B$10-Indata!B$13)*(1+Indata!B$16)^(Indata!B$13-Indata!B$17)/(1+Indata!B$7)^(F9+Indata!B$10-Indata!B$9)) -> 0.8433443087 | J9: 6 | K9: =(Indata!F16)/(1+Indata!B$7)^(Stödberäkningar!F9+Indata!E$7-Indata!B$9) -> 0 | L9: =(Indata!E$8*Indata!E16)/(1+Indata!B$7)^(Stödberäkningar!F9+Indata!E$7-Indata!B$9) -> 0 | O9: Nuvärdesfaktor yrkestrafik | P9: =U104 -> 24.97153285 | T9: 6 | U9: 5.236715347 | V9: =IF((Indata!B$10+F9)<Indata!B$13,IF((Indata!B$10+F9)<Indata!B$12,(1+Indata!B$14)^(F9-Indata!B$8+Indata!B$10)*(1)^(F9+Indata!B$10-Indata!B$17)/(1+Indata!B$7)^(F9+Indata!B$10-Indata!B$9),(1+Indata!B$14)^((Indata!B$12-Indata!B$10)-Indata!B$8+Indata!B$10)*(1+Indata!B$15)^(F9+Indata!B$10-Indata!B$12)*(1)^(F9+Indata!B$10-Indata!B$17)/(1+Indata!B$7)^(F9+Indata!B$10-Indata!B$9)),(1+Indata!B$14)^((Indata!B$12-Indata!B$10)-Indata!B$8+Indata!B$10)*(1+Indata!B$15)^((Indata!B$13-Indata!B$10)+Indata!B$10-Indata!B$12)*(1+Stödberäkningar!G$106)^(F9+Indata!B$10-Indata!B$13)*(1)^(F9+Indata!B$10-Indata!B$17)/(1+Indata!B$7)^(F9+Indata!B$10-Indata!B$9)) -> 0.6943602288
A10: Tid kr/tim | B10: 95 | C10: 95 | F10: 7 | G10: 6.973017734 | H10: =IF((Indata!B$10+F10)<Indata!B$13,IF((Indata!B$10+F10)<Indata!B$12,(1+Indata!B$14)^(F10-Indata!B$8+Indata!B$10)*(1+Indata!B$16)^(F10+Indata!B$10-Indata!B$17)/(1+Indata!B$7)^(F10+Indata!B$10-Indata!B$9),(1+Indata!B$14)^((Indata!B$12-Indata!B$10)-Indata!B$8+Indata!B$10)*(1+Indata!B$15)^(F10+Indata!B$10-Indata!B$12)*(1+Indata!B$16)^(F10+Indata!B$10-Indata!B$17)/(1+Indata!B$7)^(F10+Indata!B$10-Indata!B$9)),(1+Indata!B$14)^((Indata!B$12-Indata!B$10)-Indata!B$8+Indata!B$10)*(1+Indata!B$15)^((Indata!B$13-Indata!B$10)+Indata!B$10-Indata!B$12)*(1+Stödberäkningar!G$106)^(F10+Indata!B$10-Indata!B$13)*(1+Indata!B$16)^(Indata!B$13-Indata!B$17)/(1+Indata!B$7)^(F10+Indata!B$10-Indata!B$9)) -> 0.8324378704 | J10: 7 | K10: =(Indata!F17)/(1+Indata!B$7)^(Stödberäkningar!F10+Indata!E$7-Indata!B$9) -> 0 | L10: =(Indata!E$8*Indata!E17)/(1+Indata!B$7)^(Stödberäkningar!F10+Indata!E$7-Indata!B$9) -> 0 | T10: 7 | U10: 5.91430359 | V10: =IF((Indata!B$10+F10)<Indata!B$13,IF((Indata!B$10+F10)<Indata!B$12,(1+Indata!B$14)^(F10-Indata!B$8+Indata!B$10)*(1)^(F10+Indata!B$10-Indata!B$17)/(1+Indata!B$7)^(F10+Indata!B$10-Indata!B$9),(1+Indata!B$14)^((Indata!B$12-Indata!B$10)-Indata!B$8+Indata!B$10)*(1+Indata!B$15)^(F10+Indata!B$10-Indata!B$12)*(1)^(F10+Indata!B$10-Indata!B$17)/(1+Indata!B$7)^(F10+Indata!B$10-Indata!B$9)),(1+Indata!B$14)^((Indata!B$12-Indata!B$10)-Indata!B$8+Indata!B$10)*(1+Indata!B$15)^((Indata!B$13-Indata!B$10)+Indata!B$10-Indata!B$12)*(1+Stödberäkningar!G$106)^(F10+Indata!B$10-Indata!B$13)*(1)^(F10+Indata!B$10-Indata!B$17)/(1+Indata!B$7)^(F10+Indata!B$10-Indata!B$9)) -> 0.6775882426
A11: Beläggningsgrad | B11: =$B$5 -> 1.6296 | C11: =$C$5 -> 2.2 | F11: 8 | G11: 7.794690212 | H11: =IF((Indata!B$10+F11)<Indata!B$13,IF((Indata!B$10+F11)<Indata!B$12,(1+Indata!B$14)^(F11-Indata!B$8+Indata!B$10)*(1+Indata!B$16)^(F11+Indata!B$10-Indata!B$17)/(1+Indata!B$7)^(F11+Indata!B$10-Indata!B$9),(1+Indata!B$14)^((Indata!B$12-Indata!B$10)-Indata!B$8+Indata!B$10)*(1+Indata!B$15)^(F11+Indata!B$10-Indata!B$12)*(1+Indata!B$16)^(F11+Indata!B$10-Indata!B$17)/(1+Indata!B$7)^(F11+Indata!B$10-Indata!B$9)),(1+Indata!B$14)^((Indata!B$12-Indata!B$10)-Indata!B$8+Indata!B$10)*(1+Indata!B$15)^((Indata!B$13-Indata!B$10)+Indata!B$10-Indata!B$12)*(1+Stödberäkningar!G$106)^(F11+Indata!B$10-Indata!B$13)*(1+Indata!B$16)^(Indata!B$13-Indata!B$17)/(1+Indata!B$7)^(F11+Indata!B$10-Indata!B$9)) -> 0.8216724783 | J11: 8 | K11: =(Indata!F18)/(1+Indata!B$7)^(Stödberäkningar!F11+Indata!E$7-Indata!B$9) -> 0 | L11: =(Indata!E$8*Indata!E18)/(1+Indata!B$7)^(Stödberäkningar!F11+Indata!E$7-Indata!B$9) -> 0 | T11: 8 | U11: 6.575524967 | V11: =IF((Indata!B$10+F11)<Indata!B$13,IF((Indata!B$10+F11)<Indata!B$12,(1+Indata!B$14)^(F11-Indata!B$8+Indata!B$10)*(1)^(F11+Indata!B$10-Indata!B$17)/(1+Indata!B$7)^(F11+Indata!B$10-Indata!B$9),(1+Indata!B$14)^((Indata!B$12-Indata!B$10)-Indata!B$8+Indata!B$10)*(1+Indata!B$15)^(F11+Indata!B$10-Indata!B$12)*(1)^(F11+Indata!B$10-Indata!B$17)/(1+Indata!B$7)^(F11+Indata!B$10-Indata!B$9)),(1+Indata!B$14)^((Indata!B$12-Indata!B$10)-Indata!B$8+Indata!B$10)*(1+Indata!B$15)^((Indata!B$13-Indata!B$10)+Indata!B$10-Indata!B$12)*(1+Stödberäkningar!G$106)^(F11+Indata!B$10-Indata!B$13)*(1)^(F11+Indata!B$10-Indata!B$17)/(1+Indata!B$7)^(F11+Indata!B$10-Indata!B$9)) -> 0.6612213769
A12: Tid kr/ftim | B12: =B11*B10 -> 154.812 | C12: =C11*C10 -> 209 | F12: 9 | G12: 8.60573652 | H12: =IF((Indata!B$10+F12)<Indata!B$13,IF((Indata!B$10+F12)<Indata!B$12,(1+Indata!B$14)^(F12-Indata!B$8+Indata!B$10)*(1+Indata!B$16)^(F12+Indata!B$10-Indata!B$17)/(1+Indata!B$7)^(F12+Indata!B$10-Indata!B$9),(1+Indata!B$14)^((Indata!B$12-Indata!B$10)-Indata!B$8+Indata!B$10)*(1+Indata!B$15)^(F12+Indata!B$10-Indata!B$12)*(1+Indata!B$16)^(F12+Indata!B$10-Indata!B$17)/(1+Indata!B$7)^(F12+Indata!B$10-Indata!B$9)),(1+Indata!B$14)^((Indata!B$12-Indata!B$10)-Indata!B$8+Indata!B$10)*(1+Indata!B$15)^((Indata!B$13-Indata!B$10)+Indata!B$10-Indata!B$12)*(1+Stödberäkningar!G$106)^(F12+Indata!B$10-Indata!B$13)*(1+Indata!B$16)^(Indata!B$13-Indata!B$17)/(1+Indata!B$7)^(F12+Indata!B$10-Indata!B$9)) -> 0.8110463081 | J12: 9 | K12: =(Indata!F19)/(1+Indata!B$7)^(Stödberäkningar!F12+Indata!E$7-Indata!B$9) -> 0 | L12: =(Indata!E$8*Indata!E19)/(1+Indata!B$7)^(Stödberäkningar!F12+Indata!E$7-Indata!B$9) -> 0 | T12: 9 | U12: 7.220774813 | V12: =IF((Indata!B$10+F12)<Indata!B$13,IF((Indata!B$10+F12)<Indata!B$12,(1+Indata!B$14)^(F12-Indata!B$8+Indata!B$10)*(1)^(F12+Indata!B$10-Indata!B$17)/(1+Indata!B$7)^(F12+Indata!B$10-Indata!B$9),(1+Indata!B$14)^((Indata!B$12-Indata!B$10)-Indata!B$8+Indata!B$10)*(1+Indata!B$15)^(F12+Indata!B$10-Indata!B$12)*(1)^(F12+Indata!B$10-Indata!B$17)/(1+Indata!B$7)^(F12+Indata!B$10-Indata!B$9)),(1+Indata!B$14)^((Indata!B$12-Indata!B$10)-Indata!B$8+Indata!B$10)*(1+Indata!B$15)^((Indata!B$13-Indata!B$10)+Indata!B$10-Indata!B$12)*(1+Stödberäkningar!G$106)^(F12+Indata!B$10-Indata!B$13)*(1)^(F12+Indata!B$10-Indata!B$17)/(1+Indata!B$7)^(F12+Indata!B$10-Indata!B$9)) -> 0.645249846
A13: Reg+Nat kr/ftim | B13: =C12*Tidsvärden!B6+B12*(1-Tidsvärden!B6) -> 157.196272 | F13: 10 | G13: 9.40629408 | H13: =IF((Indata!B$10+F13)<Indata!B$13,IF((Indata!B$10+F13)<Indata!B$12,(1+Indata!B$14)^(F13-Indata!B$8+Indata!B$10)*(1+Indata!B$16)^(F13+Indata!B$10-Indata!B$17)/(1+Indata!B$7)^(F13+Indata!B$10-Indata!B$9),(1+Indata!B$14)^((Indata!B$12-Indata!B$10)-Indata!B$8+Indata!B$10)*(1+Indata!B$15)^(F13+Indata!B$10-Indata!B$12)*(1+Indata!B$16)^(F13+Indata!B$10-Indata!B$17)/(1+Indata!B$7)^(F13+Indata!B$10-Indata!B$9)),(1+Indata!B$14)^((Indata!B$12-Indata!B$10)-Indata!B$8+Indata!B$10)*(1+Indata!B$15)^((Indata!B$13-Indata!B$10)+Indata!B$10-Indata!B$12)*(1+Stödberäkningar!G$106)^(F13+Indata!B$10-Indata!B$13)*(1+Indata!B$16)^(Indata!B$13-Indata!B$17)/(1+Indata!B$7)^(F13+Indata!B$10-Indata!B$9)) -> 0.8005575595 | T13: 10 | U13: 7.850438914 | V13: =IF((Indata!B$10+F13)<Indata!B$13,IF((Indata!B$10+F13)<Indata!B$12,(1+Indata!B$14)^(F13-Indata!B$8+Indata!B$10)*(1)^(F13+Indata!B$10-Indata!B$17)/(1+Indata!B$7)^(F13+Indata!B$10-Indata!B$9),(1+Indata!B$14)^((Indata!B$12-Indata!B$10)-Indata!B$8+Indata!B$10)*(1+Indata!B$15)^(F13+Indata!B$10-Indata!B$12)*(1)^(F13+Indata!B$10-Indata!B$17)/(1+Indata!B$7)^(F13+Indata!B$10-Indata!B$9)),(1+Indata!B$14)^((Indata!B$12-Indata!B$10)-Indata!B$8+Indata!B$10)*(1+Indata!B$15)^((Indata!B$13-Indata!B$10)+Indata!B$10-Indata!B$12)*(1+Stödberäkningar!G$106)^(F13+Indata!B$10-Indata!B$13)*(1)^(F13+Indata!B$10-Indata!B$17)/(1+Indata!B$7)^(F13+Indata!B$10-Indata!B$9)) -> 0.629664101
F14: 11 | G14: 10.19649853 | H14: =IF((Indata!B$10+F14)<Indata!B$13,IF((Indata!B$10+F14)<Indata!B$12,(1+Indata!B$14)^(F14-Indata!B$8+Indata!B$10)*(1+Indata!B$16)^(F14+Indata!B$10-Indata!B$17)/(1+Indata!B$7)^(F14+Indata!B$10-Indata!B$9),(1+Indata!B$14)^((Indata!B$12-Indata!B$10)-Indata!B$8+Indata!B$10)*(1+Indata!B$15)^(F14+Indata!B$10-Indata!B$12)*(1+Indata!B$16)^(F14+Indata!B$10-Indata!B$17)/(1+Indata!B$7)^(F14+Indata!B$10-Indata!B$9)),(1+Indata!B$14)^((Indata!B$12-Indata!B$10)-Indata!B$8+Indata!B$10)*(1+Indata!B$15)^((Indata!B$13-Indata!B$10)+Indata!B$10-Indata!B$12)*(1+Stödberäkningar!G$106)^(F14+Indata!B$10-Indata!B$13)*(1+Indata!B$16)^(Indata!B$13-Indata!B$17)/(1+Indata!B$7)^(F14+Indata!B$10-Indata!B$9)) -> 0.7902044552 | J14: Diskonterat inkl. Skattefaktor | L14: =SUM(Stödberäkningar!K3:L12) -> 0 | T14: 11 | U14: 8.464893737 | V14: =IF((Indata!B$10+F14)<Indata!B$13,IF((Indata!B$10+F14)<Indata!B$12,(1+Indata!B$14)^(F14-Indata!B$8+Indata!B$10)*(1)^(F14+Indata!B$10-Indata!B$17)/(1+Indata!B$7)^(F14+Indata!B$10-Indata!B$9),(1+Indata!B$14)^((Indata!B$12-Indata!B$10)-Indata!B$8+Indata!B$10)*(1+Indata!B$15)^(F14+Indata!B$10-Indata!B$12)*(1)^(F14+Indata!B$10-Indata!B$17)/(1+Indata!B$7)^(F14+Indata!B$10-Indata!B$9)),(1+Indata!B$14)^((Indata!B$12-Indata!B$10)-Indata!B$8+Indata!B$10)*(1+Indata!B$15)^((Indata!B$13-Indata!B$10)+Indata!B$10-Indata!B$12)*(1+Stödberäkningar!G$106)^(F14+Indata!B$10-Indata!B$13)*(1)^(F14+Indata!B$10-Indata!B$17)/(1+Indata!B$7)^(F14+Indata!B$10-Indata!B$9)) -> 0.6144548232
A15: Tjänsteresor | B15: Reg | C15: Nat | F15: 12 | G15: 10.97648378 | H15: =IF((Indata!B$10+F15)<Indata!B$13,IF((Indata!B$10+F15)<Indata!B$12,(1+Indata!B$14)^(F15-Indata!B$8+Indata!B$10)*(1+Indata!B$16)^(F15+Indata!B$10-Indata!B$17)/(1+Indata!B$7)^(F15+Indata!B$10-Indata!B$9),(1+Indata!B$14)^((Indata!B$12-Indata!B$10)-Indata!B$8+Indata!B$10)*(1+Indata!B$15)^(F15+Indata!B$10-Indata!B$12)*(1+Indata!B$16)^(F15+Indata!B$10-Indata!B$17)/(1+Indata!B$7)^(F15+Indata!B$10-Indata!B$9)),(1+Indata!B$14)^((Indata!B$12-Indata!B$10)-Indata!B$8+Indata!B$10)*(1+Indata!B$15)^((Indata!B$13-Indata!B$10)+Indata!B$10-Indata!B$12)*(1+Stödberäkningar!G$106)^(F15+Indata!B$10-Indata!B$13)*(1+Indata!B$16)^(Indata!B$13-Indata!B$17)/(1+Indata!B$7)^(F15+Indata!B$10-Indata!B$9)) -> 0.779985241 | T15: 12 | U15: 9.064506656 | V15: =IF((Indata!B$10+F15)<Indata!B$13,IF((Indata!B$10+F15)<Indata!B$12,(1+Indata!B$14)^(F15-Indata!B$8+Indata!B$10)*(1)^(F15+Indata!B$10-Indata!B$17)/(1+Indata!B$7)^(F15+Indata!B$10-Indata!B$9),(1+Indata!B$14)^((Indata!B$12-Indata!B$10)-Indata!B$8+Indata!B$10)*(1+Indata!B$15)^(F15+Indata!B$10-Indata!B$12)*(1)^(F15+Indata!B$10-Indata!B$17)/(1+Indata!B$7)^(F15+Indata!B$10-Indata!B$9)),(1+Indata!B$14)^((Indata!B$12-Indata!B$10)-Indata!B$8+Indata!B$10)*(1+Indata!B$15)^((Indata!B$13-Indata!B$10)+Indata!B$10-Indata!B$12)*(1+Stödberäkningar!G$106)^(F15+Indata!B$10-Indata!B$13)*(1)^(F15+Indata!B$10-Indata!B$17)/(1+Indata!B$7)^(F15+Indata!B$10-Indata!B$9)) -> 0.5996129192
A16: Tid kr/tim | B16: =Tidsvärden!C20 -> 389 | C16: =Tidsvärden!C14 -> 389 | F16: 13 | G16: 11.74638196 | H16: =IF((Indata!B$10+F16)<Indata!B$13,IF((Indata!B$10+F16)<Indata!B$12,(1+Indata!B$14)^(F16-Indata!B$8+Indata!B$10)*(1+Indata!B$16)^(F16+Indata!B$10-Indata!B$17)/(1+Indata!B$7)^(F16+Indata!B$10-Indata!B$9),(1+Indata!B$14)^((Indata!B$12-Indata!B$10)-Indata!B$8+Indata!B$10)*(1+Indata!B$15)^(F16+Indata!B$10-Indata!B$12)*(1+Indata!B$16)^(F16+Indata!B$10-Indata!B$17)/(1+Indata!B$7)^(F16+Indata!B$10-Indata!B$9)),(1+Indata!B$14)^((Indata!B$12-Indata!B$10)-Indata!B$8+Indata!B$10)*(1+Indata!B$15)^((Indata!B$13-Indata!B$10)+Indata!B$10-Indata!B$12)*(1+Stödberäkningar!G$106)^(F16+Indata!B$10-Indata!B$13)*(1+Indata!B$16)^(Indata!B$13-Indata!B$17)/(1+Indata!B$7)^(F16+Indata!B$10-Indata!B$9)) -> 0.7698981855 | T16: 13 | U16: 9.649636172 | V16: =IF((Indata!B$10+F16)<Indata!B$13,IF((Indata!B$10+F16)<Indata!B$12,(1+Indata!B$14)^(F16-Indata!B$8+Indata!B$10)*(1)^(F16+Indata!B$10-Indata!B$17)/(1+Indata!B$7)^(F16+Indata!B$10-Indata!B$9),(1+Indata!B$14)^((Indata!B$12-Indata!B$10)-Indata!B$8+Indata!B$10)*(1+Indata!B$15)^(F16+Indata!B$10-Indata!B$12)*(1)^(F16+Indata!B$10-Indata!B$17)/(1+Indata!B$7)^(F16+Indata!B$10-Indata!B$9)),(1+Indata!B$14)^((Indata!B$12-Indata!B$10)-Indata!B$8+Indata!B$10)*(1+Indata!B$15)^((Indata!B$13-Indata!B$10)+Indata!B$10-Indata!B$12)*(1+Stödberäkningar!G$106)^(F16+Indata!B$10-Indata!B$13)*(1)^(F16+Indata!B$10-Indata!B$17)/(1+Indata!B$7)^(F16+Indata!B$10-Indata!B$9)) -> 0.5851295154
A17: Beläggningsgrad | B17: =Tidsvärden!C22 -> 1.2 | C17: =Tidsvärden!C16 -> 1.17 | F17: 14 | G17: 12.50632354 | H17: =IF((Indata!B$10+F17)<Indata!B$13,IF((Indata!B$10+F17)<Indata!B$12,(1+Indata!B$14)^(F17-Indata!B$8+Indata!B$10)*(1+Indata!B$16)^(F17+Indata!B$10-Indata!B$17)/(1+Indata!B$7)^(F17+Indata!B$10-Indata!B$9),(1+Indata!B$14)^((Indata!B$12-Indata!B$10)-Indata!B$8+Indata!B$10)*(1+Indata!B$15)^(F17+Indata!B$10-Indata!B$12)*(1+Indata!B$16)^(F17+Indata!B$10-Indata!B$17)/(1+Indata!B$7)^(F17+Indata!B$10-Indata!B$9)),(1+Indata!B$14)^((Indata!B$12-Indata!B$10)-Indata!B$8+Indata!B$10)*(1+Indata!B$15)^((Indata!B$13-Indata!B$10)+Indata!B$10-Indata!B$12)*(1+Stödberäkningar!G$106)^(F17+Indata!B$10-Indata!B$13)*(1+Indata!B$16)^(Indata!B$13-Indata!B$17)/(1+Indata!B$7)^(F17+Indata!B$10-Indata!B$9)) -> 0.7599415795 | T17: 14 | U17: 10.22063212 | V17: =IF((Indata!B$10+F17)<Indata!B$13,IF((Indata!B$10+F17)<Indata!B$12,(1+Indata!B$14)^(F17-Indata!B$8+Indata!B$10)*(1)^(F17+Indata!B$10-Indata!B$17)/(1+Indata!B$7)^(F17+Indata!B$10-Indata!B$9),(1+Indata!B$14)^((Indata!B$12-Indata!B$10)-Indata!B$8+Indata!B$10)*(1+Indata!B$15)^(F17+Indata!B$10-Indata!B$12)*(1)^(F17+Indata!B$10-Indata!B$17)/(1+Indata!B$7)^(F17+Indata!B$10-Indata!B$9)),(1+Indata!B$14)^((Indata!B$12-Indata!B$10)-Indata!B$8+Indata!B$10)*(1+Indata!B$15)^((Indata!B$13-Indata!B$10)+Indata!B$10-Indata!B$12)*(1+Stödberäkningar!G$106)^(F17+Indata!B$10-Indata!B$13)*(1)^(F17+Indata!B$10-Indata!B$17)/(1+Indata!B$7)^(F17+Indata!B$10-Indata!B$9)) -> 0.5709959522
A18: Tid kr/ftim | B18: =B16*B17 -> 466.8 | C18: =C16*C17 -> 455.13 | F18: 15 | G18: 13.25643728 | H18: =IF((Indata!B$10+F18)<Indata!B$13,IF((Indata!B$10+F18)<Indata!B$12,(1+Indata!B$14)^(F18-Indata!B$8+Indata!B$10)*(1+Indata!B$16)^(F18+Indata!B$10-Indata!B$17)/(1+Indata!B$7)^(F18+Indata!B$10-Indata!B$9),(1+Indata!B$14)^((Indata!B$12-Indata!B$10)-Indata!B$8+Indata!B$10)*(1+Indata!B$15)^(F18+Indata!B$10-Indata!B$12)*(1+Indata!B$16)^(F18+Indata!B$10-Indata!B$17)/(1+Indata!B$7)^(F18+Indata!B$10-Indata!B$9)),(1+Indata!B$14)^((Indata!B$12-Indata!B$10)-Indata!B$8+Indata!B$10)*(1+Indata!B$15)^((Indata!B$13-Indata!B$10)+Indata!B$10-Indata!B$12)*(1+Stödberäkningar!G$106)^(F18+Indata!B$10-Indata!B$13)*(1+Indata!B$16)^(Indata!B$13-Indata!B$17)/(1+Indata!B$7)^(F18+Indata!B$10-Indata!B$9)) -> 0.750113736 | T18: 15 | U18: 10.7778359 | V18: =IF((Indata!B$10+F18)<Indata!B$13,IF((Indata!B$10+F18)<Indata!B$12,(1+Indata!B$14)^(F18-Indata!B$8+Indata!B$10)*(1)^(F18+Indata!B$10-Indata!B$17)/(1+Indata!B$7)^(F18+Indata!B$10-Indata!B$9),(1+Indata!B$14)^((Indata!B$12-Indata!B$10)-Indata!B$8+Indata!B$10)*(1+Indata!B$15)^(F18+Indata!B$10-Indata!B$12)*(1)^(F18+Indata!B$10-Indata!B$17)/(1+Indata!B$7)^(F18+Indata!B$10-Indata!B$9)),(1+Indata!B$14)^((Indata!B$12-Indata!B$10)-Indata!B$8+Indata!B$10)*(1+Indata!B$15)^((Indata!B$13-Indata!B$10)+Indata!B$10-Indata!B$12)*(1+Stödberäkningar!G$106)^(F18+Indata!B$10-Indata!B$13)*(1)^(F18+Indata!B$10-Indata!B$17)/(1+Indata!B$7)^(F18+Indata!B$10-Indata!B$9)) -> 0.5572037794
A19: Reg+Nat kr/ftim | B19: =C18*Tidsvärden!B6+B18*(1-Tidsvärden!B6) -> 466.28652 | F19: 16 | G19: 13.99685027 | H19: =IF((Indata!B$10+F19)<Indata!B$13,IF((Indata!B$10+F19)<Indata!B$12,(1+Indata!B$14)^(F19-Indata!B$8+Indata!B$10)*(1+Indata!B$16)^(F19+Indata!B$10-Indata!B$17)/(1+Indata!B$7)^(F19+Indata!B$10-Indata!B$9),(1+Indata!B$14)^((Indata!B$12-Indata!B$10)-Indata!B$8+Indata!B$10)*(1+Indata!B$15)^(F19+Indata!B$10-Indata!B$12)*(1+Indata!B$16)^(F19+Indata!B$10-Indata!B$17)/(1+Indata!B$7)^(F19+Indata!B$10-Indata!B$9)),(1+Indata!B$14)^((Indata!B$12-Indata!B$10)-Indata!B$8+Indata!B$10)*(1+Indata!B$15)^((Indata!B$13-Indata!B$10)+Indata!B$10-Indata!B$12)*(1+Stödberäkningar!G$106)^(F19+Indata!B$10-Indata!B$13)*(1+Indata!B$16)^(Indata!B$13-Indata!B$17)/(1+Indata!B$7)^(F19+Indata!B$10-Indata!B$9)) -> 0.7404129898 | T19: 16 | U19: 11.32158065 | V19: =IF((Indata!B$10+F19)<Indata!B$13,IF((Indata!B$10+F19)<Indata!B$12,(1+Indata!B$14)^(F19-Indata!B$8+Indata!B$10)*(1)^(F19+Indata!B$10-Indata!B$17)/(1+Indata!B$7)^(F19+Indata!B$10-Indata!B$9),(1+Indata!B$14)^((Indata!B$12-Indata!B$10)-Indata!B$8+Indata!B$10)*(1+Indata!B$15)^(F19+Indata!B$10-Indata!B$12)*(1)^(F19+Indata!B$10-Indata!B$17)/(1+Indata!B$7)^(F19+Indata!B$10-Indata!B$9)),(1+Indata!B$14)^((Indata!B$12-Indata!B$10)-Indata!B$8+Indata!B$10)*(1+Indata!B$15)^((Indata!B$13-Indata!B$10)+Indata!B$10-Indata!B$12)*(1+Stödberäkningar!G$106)^(F19+Indata!B$10-Indata!B$13)*(1)^(F19+Indata!B$10-Indata!B$17)/(1+Indata!B$7)^(F19+Indata!B$10-Indata!B$9)) -> 0.5437447509
F20: 17 | G20: 14.72768796 | H20: =IF((Indata!B$10+F20)<Indata!B$13,IF((Indata!B$10+F20)<Indata!B$12,(1+Indata!B$14)^(F20-Indata!B$8+Indata!B$10)*(1+Indata!B$16)^(F20+Indata!B$10-Indata!B$17)/(1+Indata!B$7)^(F20+Indata!B$10-Indata!B$9),(1+Indata!B$14)^((Indata!B$12-Indata!B$10)-Indata!B$8+Indata!B$10)*(1+Indata!B$15)^(F20+Indata!B$10-Indata!B$12)*(1+Indata!B$16)^(F20+Indata!B$10-Indata!B$17)/(1+Indata!B$7)^(F20+Indata!B$10-Indata!B$9)),(1+Indata!B$14)^((Indata!B$12-Indata!B$10)-Indata!B$8+Indata!B$10)*(1+Indata!B$15)^((Indata!B$13-Indata!B$10)+Indata!B$10-Indata!B$12)*(1+Stödberäkningar!G$106)^(F20+Indata!B$10-Indata!B$13)*(1+Indata!B$16)^(Indata!B$13-Indata!B$17)/(1+Indata!B$7)^(F20+Indata!B$10-Indata!B$9)) -> 0.7308376972 | T20: 17 | U20: 11.85219147 | V20: =IF((Indata!B$10+F20)<Indata!B$13,IF((Indata!B$10+F20)<Indata!B$12,(1+Indata!B$14)^(F20-Indata!B$8+Indata!B$10)*(1)^(F20+Indata!B$10-Indata!B$17)/(1+Indata!B$7)^(F20+Indata!B$10-Indata!B$9),(1+Indata!B$14)^((Indata!B$12-Indata!B$10)-Indata!B$8+Indata!B$10)*(1+Indata!B$15)^(F20+Indata!B$10-Indata!B$12)*(1)^(F20+Indata!B$10-Indata!B$17)/(1+Indata!B$7)^(F20+Indata!B$10-Indata!B$9)),(1+Indata!B$14)^((Indata!B$12-Indata!B$10)-Indata!B$8+Indata!B$10)*(1+Indata!B$15)^((Indata!B$13-Indata!B$10)+Indata!B$10-Indata!B$12)*(1+Stödberäkningar!G$106)^(F20+Indata!B$10-Indata!B$13)*(1)^(F20+Indata!B$10-Indata!B$17)/(1+Indata!B$7)^(F20+Indata!B$10-Indata!B$9)) -> 0.5306108198
A21: Privat+Tjänste | B21: =B7*(1-Tidsvärden!B9)+B19*Tidsvärden!B9 -> 176.9963078 | F21: 18 | G21: 15.4490742 | H21: =IF((Indata!B$10+F21)<Indata!B$13,IF((Indata!B$10+F21)<Indata!B$12,(1+Indata!B$14)^(F21-Indata!B$8+Indata!B$10)*(1+Indata!B$16)^(F21+Indata!B$10-Indata!B$17)/(1+Indata!B$7)^(F21+Indata!B$10-Indata!B$9),(1+Indata!B$14)^((Indata!B$12-Indata!B$10)-Indata!B$8+Indata!B$10)*(1+Indata!B$15)^(F21+Indata!B$10-Indata!B$12)*(1+Indata!B$16)^(F21+Indata!B$10-Indata!B$17)/(1+Indata!B$7)^(F21+Indata!B$10-Indata!B$9)),(1+Indata!B$14)^((Indata!B$12-Indata!B$10)-Indata!B$8+Indata!B$10)*(1+Indata!B$15)^((Indata!B$13-Indata!B$10)+Indata!B$10-Indata!B$12)*(1+Stödberäkningar!G$106)^(F21+Indata!B$10-Indata!B$13)*(1+Indata!B$16)^(Indata!B$13-Indata!B$17)/(1+Indata!B$7)^(F21+Indata!B$10-Indata!B$9)) -> 0.7213862357 | T21: 18 | U21: 12.36998561 | V21: =IF((Indata!B$10+F21)<Indata!B$13,IF((Indata!B$10+F21)<Indata!B$12,(1+Indata!B$14)^(F21-Indata!B$8+Indata!B$10)*(1)^(F21+Indata!B$10-Indata!B$17)/(1+Indata!B$7)^(F21+Indata!B$10-Indata!B$9),(1+Indata!B$14)^((Indata!B$12-Indata!B$10)-Indata!B$8+Indata!B$10)*(1+Indata!B$15)^(F21+Indata!B$10-Indata!B$12)*(1)^(F21+Indata!B$10-Indata!B$17)/(1+Indata!B$7)^(F21+Indata!B$10-Indata!B$9)),(1+Indata!B$14)^((Indata!B$12-Indata!B$10)-Indata!B$8+Indata!B$10)*(1+Indata!B$15)^((Indata!B$13-Indata!B$10)+Indata!B$10-Indata!B$12)*(1+Stödberäkningar!G$106)^(F21+Indata!B$10-Indata!B$13)*(1)^(F21+Indata!B$10-Indata!B$17)/(1+Indata!B$7)^(F21+Indata!B$10-Indata!B$9)) -> 0.5177941333
A22: Privat+Tjänste, KA tidsvärde 95kr | B22: =B13*(1-Tidsvärden!B9)+B19*Tidsvärden!B9 -> 182.8507626 | F22: 19 | G22: 16.1611312 | H22: =IF((Indata!B$10+F22)<Indata!B$13,IF((Indata!B$10+F22)<Indata!B$12,(1+Indata!B$14)^(F22-Indata!B$8+Indata!B$10)*(1+Indata!B$16)^(F22+Indata!B$10-Indata!B$17)/(1+Indata!B$7)^(F22+Indata!B$10-Indata!B$9),(1+Indata!B$14)^((Indata!B$12-Indata!B$10)-Indata!B$8+Indata!B$10)*(1+Indata!B$15)^(F22+Indata!B$10-Indata!B$12)*(1+Indata!B$16)^(F22+Indata!B$10-Indata!B$17)/(1+Indata!B$7)^(F22+Indata!B$10-Indata!B$9)),(1+Indata!B$14)^((Indata!B$12-Indata!B$10)-Indata!B$8+Indata!B$10)*(1+Indata!B$15)^((Indata!B$13-Indata!B$10)+Indata!B$10-Indata!B$12)*(1+Stödberäkningar!G$106)^(F22+Indata!B$10-Indata!B$13)*(1+Indata!B$16)^(Indata!B$13-Indata!B$17)/(1+Indata!B$7)^(F22+Indata!B$10-Indata!B$9)) -> 0.7120570041 | T22: 19 | U22: 12.87527264 | V22: =IF((Indata!B$10+F22)<Indata!B$13,IF((Indata!B$10+F22)<Indata!B$12,(1+Indata!B$14)^(F22-Indata!B$8+Indata!B$10)*(1)^(F22+Indata!B$10-Indata!B$17)/(1+Indata!B$7)^(F22+Indata!B$10-Indata!B$9),(1+Indata!B$14)^((Indata!B$12-Indata!B$10)-Indata!B$8+Indata!B$10)*(1+Indata!B$15)^(F22+Indata!B$10-Indata!B$12)*(1)^(F22+Indata!B$10-Indata!B$17)/(1+Indata!B$7)^(F22+Indata!B$10-Indata!B$9)),(1+Indata!B$14)^((Indata!B$12-Indata!B$10)-Indata!B$8+Indata!B$10)*(1+Indata!B$15)^((Indata!B$13-Indata!B$10)+Indata!B$10-Indata!B$12)*(1+Stödberäkningar!G$106)^(F22+Indata!B$10-Indata!B$13)*(1)^(F22+Indata!B$10-Indata!B$17)/(1+Indata!B$7)^(F22+Indata!B$10-Indata!B$9)) -> 0.5052870286
F23: 20 | G23: 16.86397963 | H23: =IF((Indata!B$10+F23)<Indata!B$13,IF((Indata!B$10+F23)<Indata!B$12,(1+Indata!B$14)^(F23-Indata!B$8+Indata!B$10)*(1+Indata!B$16)^(F23+Indata!B$10-Indata!B$17)/(1+Indata!B$7)^(F23+Indata!B$10-Indata!B$9),(1+Indata!B$14)^((Indata!B$12-Indata!B$10)-Indata!B$8+Indata!B$10)*(1+Indata!B$15)^(F23+Indata!B$10-Indata!B$12)*(1+Indata!B$16)^(F23+Indata!B$10-Indata!B$17)/(1+Indata!B$7)^(F23+Indata!B$10-Indata!B$9)),(1+Indata!B$14)^((Indata!B$12-Indata!B$10)-Indata!B$8+Indata!B$10)*(1+Indata!B$15)^((Indata!B$13-Indata!B$10)+Indata!B$10-Indata!B$12)*(1+Stödberäkningar!G$106)^(F23+Indata!B$10-Indata!B$13)*(1+Indata!B$16)^(Indata!B$13-Indata!B$17)/(1+Indata!B$7)^(F23+Indata!B$10-Indata!B$9)) -> 0.7028484215 | T23: 20 | U23: 13.36835466 | V23: =IF((Indata!B$10+F23)<Indata!B$13,IF((Indata!B$10+F23)<Indata!B$12,(1+Indata!B$14)^(F23-Indata!B$8+Indata!B$10)*(1)^(F23+Indata!B$10-Indata!B$17)/(1+Indata!B$7)^(F23+Indata!B$10-Indata!B$9),(1+Indata!B$14)^((Indata!B$12-Indata!B$10)-Indata!B$8+Indata!B$10)*(1+Indata!B$15)^(F23+Indata!B$10-Indata!B$12)*(1)^(F23+Indata!B$10-Indata!B$17)/(1+Indata!B$7)^(F23+Indata!B$10-Indata!B$9)),(1+Indata!B$14)^((Indata!B$12-Indata!B$10)-Indata!B$8+Indata!B$10)*(1+Indata!B$15)^((Indata!B$13-Indata!B$10)+Indata!B$10-Indata!B$12)*(1+Stödberäkningar!G$106)^(F23+Indata!B$10-Indata!B$13)*(1)^(F23+Indata!B$10-Indata!B$17)/(1+Indata!B$7)^(F23+Indata!B$10-Indata!B$9)) -> 0.4930820279
F24: 21 | G24: 17.55773855 | H24: =IF((Indata!B$10+F24)<Indata!B$13,IF((Indata!B$10+F24)<Indata!B$12,(1+Indata!B$14)^(F24-Indata!B$8+Indata!B$10)*(1+Indata!B$16)^(F24+Indata!B$10-Indata!B$17)/(1+Indata!B$7)^(F24+Indata!B$10-Indata!B$9),(1+Indata!B$14)^((Indata!B$12-Indata!B$10)-Indata!B$8+Indata!B$10)*(1+Indata!B$15)^(F24+Indata!B$10-Indata!B$12)*(1+Indata!B$16)^(F24+Indata!B$10-Indata!B$17)/(1+Indata!B$7)^(F24+Indata!B$10-Indata!B$9)),(1+Indata!B$14)^((Indata!B$12-Indata!B$10)-Indata!B$8+Indata!B$10)*(1+Indata!B$15)^((Indata!B$13-Indata!B$10)+Indata!B$10-Indata!B$12)*(1+Stödberäkningar!G$106)^(F24+Indata!B$10-Indata!B$13)*(1+Indata!B$16)^(Indata!B$13-Indata!B$17)/(1+Indata!B$7)^(F24+Indata!B$10-Indata!B$9)) -> 0.6937589276 | T24: 21 | U24: 13.8495265 | V24: =IF((Indata!B$10+F24)<Indata!B$13,IF((Indata!B$10+F24)<Indata!B$12,(1+Indata!B$14)^(F24-Indata!B$8+Indata!B$10)*(1)^(F24+Indata!B$10-Indata!B$17)/(1+Indata!B$7)^(F24+Indata!B$10-Indata!B$9),(1+Indata!B$14)^((Indata!B$12-Indata!B$10)-Indata!B$8+Indata!B$10)*(1+Indata!B$15)^(F24+Indata!B$10-Indata!B$12)*(1)^(F24+Indata!B$10-Indata!B$17)/(1+Indata!B$7)^(F24+Indata!B$10-Indata!B$9)),(1+Indata!B$14)^((Indata!B$12-Indata!B$10)-Indata!B$8+Indata!B$10)*(1+Indata!B$15)^((Indata!B$13-Indata!B$10)+Indata!B$10-Indata!B$12)*(1+Stödberäkningar!G$106)^(F24+Indata!B$10-Indata!B$13)*(1)^(F24+Indata!B$10-Indata!B$17)/(1+Indata!B$7)^(F24+Indata!B$10-Indata!B$9)) -> 0.481171834
F25: 22 | G25: 18.24252554 | H25: =IF((Indata!B$10+F25)<Indata!B$13,IF((Indata!B$10+F25)<Indata!B$12,(1+Indata!B$14)^(F25-Indata!B$8+Indata!B$10)*(1+Indata!B$16)^(F25+Indata!B$10-Indata!B$17)/(1+Indata!B$7)^(F25+Indata!B$10-Indata!B$9),(1+Indata!B$14)^((Indata!B$12-Indata!B$10)-Indata!B$8+Indata!B$10)*(1+Indata!B$15)^(F25+Indata!B$10-Indata!B$12)*(1+Indata!B$16)^(F25+Indata!B$10-Indata!B$17)/(1+Indata!B$7)^(F25+Indata!B$10-Indata!B$9)),(1+Indata!B$14)^((Indata!B$12-Indata!B$10)-Indata!B$8+Indata!B$10)*(1+Indata!B$15)^((Indata!B$13-Indata!B$10)+Indata!B$10-Indata!B$12)*(1+Stödberäkningar!G$106)^(F25+Indata!B$10-Indata!B$13)*(1+Indata!B$16)^(Indata!B$13-Indata!B$17)/(1+Indata!B$7)^(F25+Indata!B$10-Indata!B$9)) -> 0.6847869825 | T25: 22 | U25: 14.31907582 | V25: =IF((Indata!B$10+F25)<Indata!B$13,IF((Indata!B$10+F25)<Indata!B$12,(1+Indata!B$14)^(F25-Indata!B$8+Indata!B$10)*(1)^(F25+Indata!B$10-Indata!B$17)/(1+Indata!B$7)^(F25+Indata!B$10-Indata!B$9),(1+Indata!B$14)^((Indata!B$12-Indata!B$10)-Indata!B$8+Indata!B$10)*(1+Indata!B$15)^(F25+Indata!B$10-Indata!B$12)*(1)^(F25+Indata!B$10-Indata!B$17)/(1+Indata!B$7)^(F25+Indata!B$10-Indata!B$9)),(1+Indata!B$14)^((Indata!B$12-Indata!B$10)-Indata!B$8+Indata!B$10)*(1+Indata!B$15)^((Indata!B$13-Indata!B$10)+Indata!B$10-Indata!B$12)*(1+Stödberäkningar!G$106)^(F25+Indata!B$10-Indata!B$13)*(1)^(F25+Indata!B$10-Indata!B$17)/(1+Indata!B$7)^(F25+Indata!B$10-Indata!B$9)) -> 0.469549326
F26: 23 | G26: 18.9184566 | H26: =IF((Indata!B$10+F26)<Indata!B$13,IF((Indata!B$10+F26)<Indata!B$12,(1+Indata!B$14)^(F26-Indata!B$8+Indata!B$10)*(1+Indata!B$16)^(F26+Indata!B$10-Indata!B$17)/(1+Indata!B$7)^(F26+Indata!B$10-Indata!B$9),(1+Indata!B$14)^((Indata!B$12-Indata!B$10)-Indata!B$8+Indata!B$10)*(1+Indata!B$15)^(F26+Indata!B$10-Indata!B$12)*(1+Indata!B$16)^(F26+Indata!B$10-Indata!B$17)/(1+Indata!B$7)^(F26+Indata!B$10-Indata!B$9)),(1+Indata!B$14)^((Indata!B$12-Indata!B$10)-Indata!B$8+Indata!B$10)*(1+Indata!B$15)^((Indata!B$13-Indata!B$10)+Indata!B$10-Indata!B$12)*(1+Stödberäkningar!G$106)^(F26+Indata!B$10-Indata!B$13)*(1+Indata!B$16)^(Indata!B$13-Indata!B$17)/(1+Indata!B$7)^(F26+Indata!B$10-Indata!B$9)) -> 0.6759310658 | T26: 23 | U26: 14.77728338 | V26: =IF((Indata!B$10+F26)<Indata!B$13,IF((Indata!B$10+F26)<Indata!B$12,(1+Indata!B$14)^(F26-Indata!B$8+Indata!B$10)*(1)^(F26+Indata!B$10-Indata!B$17)/(1+Indata!B$7)^(F26+Indata!B$10-Indata!B$9),(1+Indata!B$14)^((Indata!B$12-Indata!B$10)-Indata!B$8+Indata!B$10)*(1+Indata!B$15)^(F26+Indata!B$10-Indata!B$12)*(1)^(F26+Indata!B$10-Indata!B$17)/(1+Indata!B$7)^(F26+Indata!B$10-Indata!B$9)),(1+Indata!B$14)^((Indata!B$12-Indata!B$10)-Indata!B$8+Indata!B$10)*(1+Indata!B$15)^((Indata!B$13-Indata!B$10)+Indata!B$10-Indata!B$12)*(1+Stödberäkningar!G$106)^(F26+Indata!B$10-Indata!B$13)*(1)^(F26+Indata!B$10-Indata!B$17)/(1+Indata!B$7)^(F26+Indata!B$10-Indata!B$9)) -> 0.4582075548
F27: 24 | G27: 19.58564628 | H27: =IF((Indata!B$10+F27)<Indata!B$13,IF((Indata!B$10+F27)<Indata!B$12,(1+Indata!B$14)^(F27-Indata!B$8+Indata!B$10)*(1+Indata!B$16)^(F27+Indata!B$10-Indata!B$17)/(1+Indata!B$7)^(F27+Indata!B$10-Indata!B$9),(1+Indata!B$14)^((Indata!B$12-Indata!B$10)-Indata!B$8+Indata!B$10)*(1+Indata!B$15)^(F27+Indata!B$10-Indata!B$12)*(1+Indata!B$16)^(F27+Indata!B$10-Indata!B$17)/(1+Indata!B$7)^(F27+Indata!B$10-Indata!B$9)),(1+Indata!B$14)^((Indata!B$12-Indata!B$10)-Indata!B$8+Indata!B$10)*(1+Indata!B$15)^((Indata!B$13-Indata!B$10)+Indata!B$10-Indata!B$12)*(1+Stödberäkningar!G$106)^(F27+Indata!B$10-Indata!B$13)*(1+Indata!B$16)^(Indata!B$13-Indata!B$17)/(1+Indata!B$7)^(F27+Indata!B$10-Indata!B$9)) -> 0.6671896771 | T27: 24 | U27: 15.22442312 | V27: =IF((Indata!B$10+F27)<Indata!B$13,IF((Indata!B$10+F27)<Indata!B$12,(1+Indata!B$14)^(F27-Indata!B$8+Indata!B$10)*(1)^(F27+Indata!B$10-Indata!B$17)/(1+Indata!B$7)^(F27+Indata!B$10-Indata!B$9),(1+Indata!B$14)^((Indata!B$12-Indata!B$10)-Indata!B$8+Indata!B$10)*(1+Indata!B$15)^(F27+Indata!B$10-Indata!B$12)*(1)^(F27+Indata!B$10-Indata!B$17)/(1+Indata!B$7)^(F27+Indata!B$10-Indata!B$9)),(1+Indata!B$14)^((Indata!B$12-Indata!B$10)-Indata!B$8+Indata!B$10)*(1+Indata!B$15)^((Indata!B$13-Indata!B$10)+Indata!B$10-Indata!B$12)*(1+Stödberäkningar!G$106)^(F27+Indata!B$10-Indata!B$13)*(1)^(F27+Indata!B$10-Indata!B$17)/(1+Indata!B$7)^(F27+Indata!B$10-Indata!B$9)) -> 0.4471397395
F28: 25 | G28: 20.24420761 | H28: =IF((Indata!B$10+F28)<Indata!B$13,IF((Indata!B$10+F28)<Indata!B$12,(1+Indata!B$14)^(F28-Indata!B$8+Indata!B$10)*(1+Indata!B$16)^(F28+Indata!B$10-Indata!B$17)/(1+Indata!B$7)^(F28+Indata!B$10-Indata!B$9),(1+Indata!B$14)^((Indata!B$12-Indata!B$10)-Indata!B$8+Indata!B$10)*(1+Indata!B$15)^(F28+Indata!B$10-Indata!B$12)*(1+Indata!B$16)^(F28+Indata!B$10-Indata!B$17)/(1+Indata!B$7)^(F28+Indata!B$10-Indata!B$9)),(1+Indata!B$14)^((Indata!B$12-Indata!B$10)-Indata!B$8+Indata!B$10)*(1+Indata!B$15)^((Indata!B$13-Indata!B$10)+Indata!B$10-Indata!B$12)*(1+Stödberäkningar!G$106)^(F28+Indata!B$10-Indata!B$13)*(1+Indata!B$16)^(Indata!B$13-Indata!B$17)/(1+Indata!B$7)^(F28+Indata!B$10-Indata!B$9)) -> 0.6585613352 | T28: 25 | U28: 15.66076238 | V28: =IF((Indata!B$10+F28)<Indata!B$13,IF((Indata!B$10+F28)<Indata!B$12,(1+Indata!B$14)^(F28-Indata!B$8+Indata!B$10)*(1)^(F28+Indata!B$10-Indata!B$17)/(1+Indata!B$7)^(F28+Indata!B$10-Indata!B$9),(1+Indata!B$14)^((Indata!B$12-Indata!B$10)-Indata!B$8+Indata!B$10)*(1+Indata!B$15)^(F28+Indata!B$10-Indata!B$12)*(1)^(F28+Indata!B$10-Indata!B$17)/(1+Indata!B$7)^(F28+Indata!B$10-Indata!B$9)),(1+Indata!B$14)^((Indata!B$12-Indata!B$10)-Indata!B$8+Indata!B$10)*(1+Indata!B$15)^((Indata!B$13-Indata!B$10)+Indata!B$10-Indata!B$12)*(1+Stödberäkningar!G$106)^(F28+Indata!B$10-Indata!B$13)*(1)^(F28+Indata!B$10-Indata!B$17)/(1+Indata!B$7)^(F28+Indata!B$10-Indata!B$9)) -> 0.4363392627
F29: 26 | G29: 20.89425219 | H29: =IF((Indata!B$10+F29)<Indata!B$13,IF((Indata!B$10+F29)<Indata!B$12,(1+Indata!B$14)^(F29-Indata!B$8+Indata!B$10)*(1+Indata!B$16)^(F29+Indata!B$10-Indata!B$17)/(1+Indata!B$7)^(F29+Indata!B$10-Indata!B$9),(1+Indata!B$14)^((Indata!B$12-Indata!B$10)-Indata!B$8+Indata!B$10)*(1+Indata!B$15)^(F29+Indata!B$10-Indata!B$12)*(1+Indata!B$16)^(F29+Indata!B$10-Indata!B$17)/(1+Indata!B$7)^(F29+Indata!B$10-Indata!B$9)),(1+Indata!B$14)^((Indata!B$12-Indata!B$10)-Indata!B$8+Indata!B$10)*(1+Indata!B$15)^((Indata!B$13-Indata!B$10)+Indata!B$10-Indata!B$12)*(1+Stödberäkningar!G$106)^(F29+Indata!B$10-Indata!B$13)*(1+Indata!B$16)^(Indata!B$13-Indata!B$17)/(1+Indata!B$7)^(F29+Indata!B$10-Indata!B$9)) -> 0.6500445782 | T29: 26 | U29: 16.08656205 | V29: =IF((Indata!B$10+F29)<Indata!B$13,IF((Indata!B$10+F29)<Indata!B$12,(1+Indata!B$14)^(F29-Indata!B$8+Indata!B$10)*(1)^(F29+Indata!B$10-Indata!B$17)/(1+Indata!B$7)^(F29+Indata!B$10-Indata!B$9),(1+Indata!B$14)^((Indata!B$12-Indata!B$10)-Indata!B$8+Indata!B$10)*(1+Indata!B$15)^(F29+Indata!B$10-Indata!B$12)*(1)^(F29+Indata!B$10-Indata!B$17)/(1+Indata!B$7)^(F29+Indata!B$10-Indata!B$9)),(1+Indata!B$14)^((Indata!B$12-Indata!B$10)-Indata!B$8+Indata!B$10)*(1+Indata!B$15)^((Indata!B$13-Indata!B$10)+Indata!B$10-Indata!B$12)*(1+Stödberäkningar!G$106)^(F29+Indata!B$10-Indata!B$13)*(1)^(F29+Indata!B$10-Indata!B$17)/(1+Indata!B$7)^(F29+Indata!B$10-Indata!B$9)) -> 0.4257996669
F30: 27 | G30: 21.53589015 | H30: =IF((Indata!B$10+F30)<Indata!B$13,IF((Indata!B$10+F30)<Indata!B$12,(1+Indata!B$14)^(F30-Indata!B$8+Indata!B$10)*(1+Indata!B$16)^(F30+Indata!B$10-Indata!B$17)/(1+Indata!B$7)^(F30+Indata!B$10-Indata!B$9),(1+Indata!B$14)^((Indata!B$12-Indata!B$10)-Indata!B$8+Indata!B$10)*(1+Indata!B$15)^(F30+Indata!B$10-Indata!B$12)*(1+Indata!B$16)^(F30+Indata!B$10-Indata!B$17)/(1+Indata!B$7)^(F30+Indata!B$10-Indata!B$9)),(1+Indata!B$14)^((Indata!B$12-Indata!B$10)-Indata!B$8+Indata!B$10)*(1+Indata!B$15)^((Indata!B$13-Indata!B$10)+Indata!B$10-Indata!B$12)*(1+Stödberäkningar!G$106)^(F30+Indata!B$10-Indata!B$13)*(1+Indata!B$16)^(Indata!B$13-Indata!B$17)/(1+Indata!B$7)^(F30+Indata!B$10-Indata!B$9)) -> 0.6416379631 | T30: 27 | U30: 16.5020767 | V30: =IF((Indata!B$10+F30)<Indata!B$13,IF((Indata!B$10+F30)<Indata!B$12,(1+Indata!B$14)^(F30-Indata!B$8+Indata!B$10)*(1)^(F30+Indata!B$10-Indata!B$17)/(1+Indata!B$7)^(F30+Indata!B$10-Indata!B$9),(1+Indata!B$14)^((Indata!B$12-Indata!B$10)-Indata!B$8+Indata!B$10)*(1+Indata!B$15)^(F30+Indata!B$10-Indata!B$12)*(1)^(F30+Indata!B$10-Indata!B$17)/(1+Indata!B$7)^(F30+Indata!B$10-Indata!B$9)),(1+Indata!B$14)^((Indata!B$12-Indata!B$10)-Indata!B$8+Indata!B$10)*(1+Indata!B$15)^((Indata!B$13-Indata!B$10)+Indata!B$10-Indata!B$12)*(1+Stödberäkningar!G$106)^(F30+Indata!B$10-Indata!B$13)*(1)^(F30+Indata!B$10-Indata!B$17)/(1+Indata!B$7)^(F30+Indata!B$10-Indata!B$9)) -> 0.4155146508
F31: 28 | G31: 22.16923022 | H31: =IF((Indata!B$10+F31)<Indata!B$13,IF((Indata!B$10+F31)<Indata!B$12,(1+Indata!B$14)^(F31-Indata!B$8+Indata!B$10)*(1+Indata!B$16)^(F31+Indata!B$10-Indata!B$17)/(1+Indata!B$7)^(F31+Indata!B$10-Indata!B$9),(1+Indata!B$14)^((Indata!B$12-Indata!B$10)-Indata!B$8+Indata!B$10)*(1+Indata!B$15)^(F31+Indata!B$10-Indata!B$12)*(1+Indata!B$16)^(F31+Indata!B$10-Indata!B$17)/(1+Indata!B$7)^(F31+Indata!B$10-Indata!B$9)),(1+Indata!B$14)^((Indata!B$12-Indata!B$10)-Indata!B$8+Indata!B$10)*(1+Indata!B$15)^((Indata!B$13-Indata!B$10)+Indata!B$10-Indata!B$12)*(1+Stödberäkningar!G$106)^(F31+Indata!B$10-Indata!B$13)*(1+Indata!B$16)^(Indata!B$13-Indata!B$17)/(1+Indata!B$7)^(F31+Indata!B$10-Indata!B$9)) -> 0.6333400654 | T31: 28 | U31: 16.90755476 | V31: =IF((Indata!B$10+F31)<Indata!B$13,IF((Indata!B$10+F31)<Indata!B$12,(1+Indata!B$14)^(F31-Indata!B$8+Indata!B$10)*(1)^(F31+Indata!B$10-Indata!B$17)/(1+Indata!B$7)^(F31+Indata!B$10-Indata!B$9),(1+Indata!B$14)^((Indata!B$12-Indata!B$10)-Indata!B$8+Indata!B$10)*(1+Indata!B$15)^(F31+Indata!B$10-Indata!B$12)*(1)^(F31+Indata!B$10-Indata!B$17)/(1+Indata!B$7)^(F31+Indata!B$10-Indata!B$9)),(1+Indata!B$14)^((Indata!B$12-Indata!B$10)-Indata!B$8+Indata!B$10)*(1+Indata!B$15)^((Indata!B$13-Indata!B$10)+Indata!B$10-Indata!B$12)*(1+Stödberäkningar!G$106)^(F31+Indata!B$10-Indata!B$13)*(1)^(F31+Indata!B$10-Indata!B$17)/(1+Indata!B$7)^(F31+Indata!B$10-Indata!B$9)) -> 0.4054780651
F32: 29 | G32: 22.7943797 | H32: =IF((Indata!B$10+F32)<Indata!B$13,IF((Indata!B$10+F32)<Indata!B$12,(1+Indata!B$14)^(F32-Indata!B$8+Indata!B$10)*(1+Indata!B$16)^(F32+Indata!B$10-Indata!B$17)/(1+Indata!B$7)^(F32+Indata!B$10-Indata!B$9),(1+Indata!B$14)^((Indata!B$12-Indata!B$10)-Indata!B$8+Indata!B$10)*(1+Indata!B$15)^(F32+Indata!B$10-Indata!B$12)*(1+Indata!B$16)^(F32+Indata!B$10-Indata!B$17)/(1+Indata!B$7)^(F32+Indata!B$10-Indata!B$9)),(1+Indata!B$14)^((Indata!B$12-Indata!B$10)-Indata!B$8+Indata!B$10)*(1+Indata!B$15)^((Indata!B$13-Indata!B$10)+Indata!B$10-Indata!B$12)*(1+Stödberäkningar!G$106)^(F32+Indata!B$10-Indata!B$13)*(1+Indata!B$16)^(Indata!B$13-Indata!B$17)/(1+Indata!B$7)^(F32+Indata!B$10-Indata!B$9)) -> 0.6251494791 | T32: 29 | U32: 17.30323867 | V32: =IF((Indata!B$10+F32)<Indata!B$13,IF((Indata!B$10+F32)<Indata!B$12,(1+Indata!B$14)^(F32-Indata!B$8+Indata!B$10)*(1)^(F32+Indata!B$10-Indata!B$17)/(1+Indata!B$7)^(F32+Indata!B$10-Indata!B$9),(1+Indata!B$14)^((Indata!B$12-Indata!B$10)-Indata!B$8+Indata!B$10)*(1+Indata!B$15)^(F32+Indata!B$10-Indata!B$12)*(1)^(F32+Indata!B$10-Indata!B$17)/(1+Indata!B$7)^(F32+Indata!B$10-Indata!B$9)),(1+Indata!B$14)^((Indata!B$12-Indata!B$10)-Indata!B$8+Indata!B$10)*(1+Indata!B$15)^((Indata!B$13-Indata!B$10)+Indata!B$10-Indata!B$12)*(1+Stödberäkningar!G$106)^(F32+Indata!B$10-Indata!B$13)*(1)^(F32+Indata!B$10-Indata!B$17)/(1+Indata!B$7)^(F32+Indata!B$10-Indata!B$9)) -> 0.3956839089
F33: 30 | G33: 23.41144452 | H33: =IF((Indata!B$10+F33)<Indata!B$13,IF((Indata!B$10+F33)<Indata!B$12,(1+Indata!B$14)^(F33-Indata!B$8+Indata!B$10)*(1+Indata!B$16)^(F33+Indata!B$10-Indata!B$17)/(1+Indata!B$7)^(F33+Indata!B$10-Indata!B$9),(1+Indata!B$14)^((Indata!B$12-Indata!B$10)-Indata!B$8+Indata!B$10)*(1+Indata!B$15)^(F33+Indata!B$10-Indata!B$12)*(1+Indata!B$16)^(F33+Indata!B$10-Indata!B$17)/(1+Indata!B$7)^(F33+Indata!B$10-Indata!B$9)),(1+Indata!B$14)^((Indata!B$12-Indata!B$10)-Indata!B$8+Indata!B$10)*(1+Indata!B$15)^((Indata!B$13-Indata!B$10)+Indata!B$10-Indata!B$12)*(1+Stödberäkningar!G$106)^(F33+Indata!B$10-Indata!B$13)*(1+Indata!B$16)^(Indata!B$13-Indata!B$17)/(1+Indata!B$7)^(F33+Indata!B$10-Indata!B$9)) -> 0.6170648165 | T33: 30 | U33: 17.689365 | V33: =IF((Indata!B$10+F33)<Indata!B$13,IF((Indata!B$10+F33)<Indata!B$12,(1+Indata!B$14)^(F33-Indata!B$8+Indata!B$10)*(1)^(F33+Indata!B$10-Indata!B$17)/(1+Indata!B$7)^(F33+Indata!B$10-Indata!B$9),(1+Indata!B$14)^((Indata!B$12-Indata!B$10)-Indata!B$8+Indata!B$10)*(1+Indata!B$15)^(F33+Indata!B$10-Indata!B$12)*(1)^(F33+Indata!B$10-Indata!B$17)/(1+Indata!B$7)^(F33+Indata!B$10-Indata!B$9)),(1+Indata!B$14)^((Indata!B$12-Indata!B$10)-Indata!B$8+Indata!B$10)*(1+Indata!B$15)^((Indata!B$13-Indata!B$10)+Indata!B$10-Indata!B$12)*(1+Stödberäkningar!G$106)^(F33+Indata!B$10-Indata!B$13)*(1)^(F33+Indata!B$10-Indata!B$17)/(1+Indata!B$7)^(F33+Indata!B$10-Indata!B$9)) -> 0.3861263266
F34: 31 | G34: 24.02052922 | H34: =IF((Indata!B$10+F34)<Indata!B$13,IF((Indata!B$10+F34)<Indata!B$12,(1+Indata!B$14)^(F34-Indata!B$8+Indata!B$10)*(1+Indata!B$16)^(F34+Indata!B$10-Indata!B$17)/(1+Indata!B$7)^(F34+Indata!B$10-Indata!B$9),(1+Indata!B$14)^((Indata!B$12-Indata!B$10)-Indata!B$8+Indata!B$10)*(1+Indata!B$15)^(F34+Indata!B$10-Indata!B$12)*(1+Indata!B$16)^(F34+Indata!B$10-Indata!B$17)/(1+Indata!B$7)^(F34+Indata!B$10-Indata!B$9)),(1+Indata!B$14)^((Indata!B$12-Indata!B$10)-Indata!B$8+Indata!B$10)*(1+Indata!B$15)^((Indata!B$13-Indata!B$10)+Indata!B$10-Indata!B$12)*(1+Stödberäkningar!G$106)^(F34+Indata!B$10-Indata!B$13)*(1+Indata!B$16)^(Indata!B$13-Indata!B$17)/(1+Indata!B$7)^(F34+Indata!B$10-Indata!B$9)) -> 0.6090847078 | T34: 31 | U34: 18.0661646 | V34: =IF((Indata!B$10+F34)<Indata!B$13,IF((Indata!B$10+F34)<Indata!B$12,(1+Indata!B$14)^(F34-Indata!B$8+Indata!B$10)*(1)^(F34+Indata!B$10-Indata!B$17)/(1+Indata!B$7)^(F34+Indata!B$10-Indata!B$9),(1+Indata!B$14)^((Indata!B$12-Indata!B$10)-Indata!B$8+Indata!B$10)*(1+Indata!B$15)^(F34+Indata!B$10-Indata!B$12)*(1)^(F34+Indata!B$10-Indata!B$17)/(1+Indata!B$7)^(F34+Indata!B$10-Indata!B$9)),(1+Indata!B$14)^((Indata!B$12-Indata!B$10)-Indata!B$8+Indata!B$10)*(1+Indata!B$15)^((Indata!B$13-Indata!B$10)+Indata!B$10-Indata!B$12)*(1+Stödberäkningar!G$106)^(F34+Indata!B$10-Indata!B$13)*(1)^(F34+Indata!B$10-Indata!B$17)/(1+Indata!B$7)^(F34+Indata!B$10-Indata!B$9)) -> 0.3767996037
F35: 32 | G35: 24.62173702 | H35: =IF((Indata!B$10+F35)<Indata!B$13,IF((Indata!B$10+F35)<Indata!B$12,(1+Indata!B$14)^(F35-Indata!B$8+Indata!B$10)*(1+Indata!B$16)^(F35+Indata!B$10-Indata!B$17)/(1+Indata!B$7)^(F35+Indata!B$10-Indata!B$9),(1+Indata!B$14)^((Indata!B$12-Indata!B$10)-Indata!B$8+Indata!B$10)*(1+Indata!B$15)^(F35+Indata!B$10-Indata!B$12)*(1+Indata!B$16)^(F35+Indata!B$10-Indata!B$17)/(1+Indata!B$7)^(F35+Indata!B$10-Indata!B$9)),(1+Indata!B$14)^((Indata!B$12-Indata!B$10)-Indata!B$8+Indata!B$10)*(1+Indata!B$15)^((Indata!B$13-Indata!B$10)+Indata!B$10-Indata!B$12)*(1+Stödberäkningar!G$106)^(F35+Indata!B$10-Indata!B$13)*(1+Indata!B$16)^(Indata!B$13-Indata!B$17)/(1+Indata!B$7)^(F35+Indata!B$10-Indata!B$9)) -> 0.6012078007 | T35: 32 | U35: 18.43386277 | V35: =IF((Indata!B$10+F35)<Indata!B$13,IF((Indata!B$10+F35)<Indata!B$12,(1+Indata!B$14)^(F35-Indata!B$8+Indata!B$10)*(1)^(F35+Indata!B$10-Indata!B$17)/(1+Indata!B$7)^(F35+Indata!B$10-Indata!B$9),(1+Indata!B$14)^((Indata!B$12-Indata!B$10)-Indata!B$8+Indata!B$10)*(1+Indata!B$15)^(F35+Indata!B$10-Indata!B$12)*(1)^(F35+Indata!B$10-Indata!B$17)/(1+Indata!B$7)^(F35+Indata!B$10-Indata!B$9)),(1+Indata!B$14)^((Indata!B$12-Indata!B$10)-Indata!B$8+Indata!B$10)*(1+Indata!B$15)^((Indata!B$13-Indata!B$10)+Indata!B$10-Indata!B$12)*(1+Stödberäkningar!G$106)^(F35+Indata!B$10-Indata!B$13)*(1)^(F35+Indata!B$10-Indata!B$17)/(1+Indata!B$7)^(F35+Indata!B$10-Indata!B$9)) -> 0.367698164
F36: 33 | G36: =G35+H36 -> 25.21516978 | H36: =IF((Indata!B$10+F36)<Indata!B$13,IF((Indata!B$10+F36)<Indata!B$12,(1+Indata!B$14)^(F36-Indata!B$8+Indata!B$10)*(1+Indata!B$16)^(F36+Indata!B$10-Indata!B$17)/(1+Indata!B$7)^(F36+Indata!B$10-Indata!B$9),(1+Indata!B$14)^((Indata!B$12-Indata!B$10)-Indata!B$8+Indata!B$10)*(1+Indata!B$15)^(F36+Indata!B$10-Indata!B$12)*(1+Indata!B$16)^(F36+Indata!B$10-Indata!B$17)/(1+Indata!B$7)^(F36+Indata!B$10-Indata!B$9)),(1+Indata!B$14)^((Indata!B$12-Indata!B$10)-Indata!B$8+Indata!B$10)*(1+Indata!B$15)^((Indata!B$13-Indata!B$10)+Indata!B$10-Indata!B$12)*(1+Stödberäkningar!G$106)^(F36+Indata!B$10-Indata!B$13)*(1+Indata!B$16)^(Indata!B$13-Indata!B$17)/(1+Indata!B$7)^(F36+Indata!B$10-Indata!B$9)) -> 0.5934327607 | T36: 33 | U36: 18.79267933 | V36: =IF((Indata!B$10+F36)<Indata!B$13,IF((Indata!B$10+F36)<Indata!B$12,(1+Indata!B$14)^(F36-Indata!B$8+Indata!B$10)*(1)^(F36+Indata!B$10-Indata!B$17)/(1+Indata!B$7)^(F36+Indata!B$10-Indata!B$9),(1+Indata!B$14)^((Indata!B$12-Indata!B$10)-Indata!B$8+Indata!B$10)*(1+Indata!B$15)^(F36+Indata!B$10-Indata!B$12)*(1)^(F36+Indata!B$10-Indata!B$17)/(1+Indata!B$7)^(F36+Indata!B$10-Indata!B$9)),(1+Indata!B$14)^((Indata!B$12-Indata!B$10)-Indata!B$8+Indata!B$10)*(1+Indata!B$15)^((Indata!B$13-Indata!B$10)+Indata!B$10-Indata!B$12)*(1+Stödberäkningar!G$106)^(F36+Indata!B$10-Indata!B$13)*(1)^(F36+Indata!B$10-Indata!B$17)/(1+Indata!B$7)^(F36+Indata!B$10-Indata!B$9)) -> 0.3588165658
F37: 34 | G37: 25.80092806 | H37: =IF((Indata!B$10+F37)<Indata!B$13,IF((Indata!B$10+F37)<Indata!B$12,(1+Indata!B$14)^(F37-Indata!B$8+Indata!B$10)*(1+Indata!B$16)^(F37+Indata!B$10-Indata!B$17)/(1+Indata!B$7)^(F37+Indata!B$10-Indata!B$9),(1+Indata!B$14)^((Indata!B$12-Indata!B$10)-Indata!B$8+Indata!B$10)*(1+Indata!B$15)^(F37+Indata!B$10-Indata!B$12)*(1+Indata!B$16)^(F37+Indata!B$10-Indata!B$17)/(1+Indata!B$7)^(F37+Indata!B$10-Indata!B$9)),(1+Indata!B$14)^((Indata!B$12-Indata!B$10)-Indata!B$8+Indata!B$10)*(1+Indata!B$15)^((Indata!B$13-Indata!B$10)+Indata!B$10-Indata!B$12)*(1+Stödberäkningar!G$106)^(F37+Indata!B$10-Indata!B$13)*(1+Indata!B$16)^(Indata!B$13-Indata!B$17)/(1+Indata!B$7)^(F37+Indata!B$10-Indata!B$9)) -> 0.5857582703 | T37: 34 | U37: 19.14282883 | V37: =IF((Indata!B$10+F37)<Indata!B$13,IF((Indata!B$10+F37)<Indata!B$12,(1+Indata!B$14)^(F37-Indata!B$8+Indata!B$10)*(1)^(F37+Indata!B$10-Indata!B$17)/(1+Indata!B$7)^(F37+Indata!B$10-Indata!B$9),(1+Indata!B$14)^((Indata!B$12-Indata!B$10)-Indata!B$8+Indata!B$10)*(1+Indata!B$15)^(F37+Indata!B$10-Indata!B$12)*(1)^(F37+Indata!B$10-Indata!B$17)/(1+Indata!B$7)^(F37+Indata!B$10-Indata!B$9)),(1+Indata!B$14)^((Indata!B$12-Indata!B$10)-Indata!B$8+Indata!B$10)*(1+Indata!B$15)^((Indata!B$13-Indata!B$10)+Indata!B$10-Indata!B$12)*(1+Stödberäkningar!G$106)^(F37+Indata!B$10-Indata!B$13)*(1)^(F37+Indata!B$10-Indata!B$17)/(1+Indata!B$7)^(F37+Indata!B$10-Indata!B$9)) -> 0.350149499
F38: 35 | G38: 26.37911108 | H38: =IF((Indata!B$10+F38)<Indata!B$13,IF((Indata!B$10+F38)<Indata!B$12,(1+Indata!B$14)^(F38-Indata!B$8+Indata!B$10)*(1+Indata!B$16)^(F38+Indata!B$10-Indata!B$17)/(1+Indata!B$7)^(F38+Indata!B$10-Indata!B$9),(1+Indata!B$14)^((Indata!B$12-Indata!B$10)-Indata!B$8+Indata!B$10)*(1+Indata!B$15)^(F38+Indata!B$10-Indata!B$12)*(1+Indata!B$16)^(F38+Indata!B$10-Indata!B$17)/(1+Indata!B$7)^(F38+Indata!B$10-Indata!B$9)),(1+Indata!B$14)^((Indata!B$12-Indata!B$10)-Indata!B$8+Indata!B$10)*(1+Indata!B$15)^((Indata!B$13-Indata!B$10)+Indata!B$10-Indata!B$12)*(1+Stödberäkningar!G$106)^(F38+Indata!B$10-Indata!B$13)*(1+Indata!B$16)^(Indata!B$13-Indata!B$17)/(1+Indata!B$7)^(F38+Indata!B$10-Indata!B$9)) -> 0.5781830293 | T38: 35 | U38: 19.48452061 | V38: =IF((Indata!B$10+F38)<Indata!B$13,IF((Indata!B$10+F38)<Indata!B$12,(1+Indata!B$14)^(F38-Indata!B$8+Indata!B$10)*(1)^(F38+Indata!B$10-Indata!B$17)/(1+Indata!B$7)^(F38+Indata!B$10-Indata!B$9),(1+Indata!B$14)^((Indata!B$12-Indata!B$10)-Indata!B$8+Indata!B$10)*(1+Indata!B$15)^(F38+Indata!B$10-Indata!B$12)*(1)^(F38+Indata!B$10-Indata!B$17)/(1+Indata!B$7)^(F38+Indata!B$10-Indata!B$9)),(1+Indata!B$14)^((Indata!B$12-Indata!B$10)-Indata!B$8+Indata!B$10)*(1+Indata!B$15)^((Indata!B$13-Indata!B$10)+Indata!B$10-Indata!B$12)*(1+Stödberäkningar!G$106)^(F38+Indata!B$10-Indata!B$13)*(1)^(F38+Indata!B$10-Indata!B$17)/(1+Indata!B$7)^(F38+Indata!B$10-Indata!B$9)) -> 0.3416917817
F39: 36 | G39: 26.93774203 | H39: =IF((Indata!B$10+F39)<Indata!B$13,IF((Indata!B$10+F39)<Indata!B$12,(1+Indata!B$14)^(F39-Indata!B$8+Indata!B$10)*(1+Indata!B$16)^(F39+Indata!B$10-Indata!B$17)/(1+Indata!B$7)^(F39+Indata!B$10-Indata!B$9),(1+Indata!B$14)^((Indata!B$12-Indata!B$10)-Indata!B$8+Indata!B$10)*(1+Indata!B$15)^(F39+Indata!B$10-Indata!B$12)*(1+Indata!B$16)^(F39+Indata!B$10-Indata!B$17)/(1+Indata!B$7)^(F39+Indata!B$10-Indata!B$9)),(1+Indata!B$14)^((Indata!B$12-Indata!B$10)-Indata!B$8+Indata!B$10)*(1+Indata!B$15)^((Indata!B$13-Indata!B$10)+Indata!B$10-Indata!B$12)*(1+Stödberäkningar!G$106)^(F39+Indata!B$10-Indata!B$13)*(1+Indata!B$16)^(Indata!B$13-Indata!B$17)/(1+Indata!B$7)^(F39+Indata!B$10-Indata!B$9)) -> 0.5586309462 | T39: 36 | U39: 19.8146576 | V39: =IF((Indata!B$10+F39)<Indata!B$13,IF((Indata!B$10+F39)<Indata!B$12,(1+Indata!B$14)^(F39-Indata!B$8+Indata!B$10)*(1)^(F39+Indata!B$10-Indata!B$17)/(1+Indata!B$7)^(F39+Indata!B$10-Indata!B$9),(1+Indata!B$14)^((Indata!B$12-Indata!B$10)-Indata!B$8+Indata!B$10)*(1+Indata!B$15)^(F39+Indata!B$10-Indata!B$12)*(1)^(F39+Indata!B$10-Indata!B$17)/(1+Indata!B$7)^(F39+Indata!B$10-Indata!B$9)),(1+Indata!B$14)^((Indata!B$12-Indata!B$10)-Indata!B$8+Indata!B$10)*(1+Indata!B$15)^((Indata!B$13-Indata!B$10)+Indata!B$10-Indata!B$12)*(1+Stödberäkningar!G$106)^(F39+Indata!B$10-Indata!B$13)*(1)^(F39+Indata!B$10-Indata!B$17)/(1+Indata!B$7)^(F39+Indata!B$10-Indata!B$9)) -> 0.3301369871
F40: 37 | G40: 27.47748208 | H40: =IF((Indata!B$10+F40)<Indata!B$13,IF((Indata!B$10+F40)<Indata!B$12,(1+Indata!B$14)^(F40-Indata!B$8+Indata!B$10)*(1+Indata!B$16)^(F40+Indata!B$10-Indata!B$17)/(1+Indata!B$7)^(F40+Indata!B$10-Indata!B$9),(1+Indata!B$14)^((Indata!B$12-Indata!B$10)-Indata!B$8+Indata!B$10)*(1+Indata!B$15)^(F40+Indata!B$10-Indata!B$12)*(1+Indata!B$16)^(F40+Indata!B$10-Indata!B$17)/(1+Indata!B$7)^(F40+Indata!B$10-Indata!B$9)),(1+Indata!B$14)^((Indata!B$12-Indata!B$10)-Indata!B$8+Indata!B$10)*(1+Indata!B$15)^((Indata!B$13-Indata!B$10)+Indata!B$10-Indata!B$12)*(1+Stödberäkningar!G$106)^(F40+Indata!B$10-Indata!B$13)*(1+Indata!B$16)^(Indata!B$13-Indata!B$17)/(1+Indata!B$7)^(F40+Indata!B$10-Indata!B$9)) -> 0.5397400446 | T40: 37 | U40: 20.13363053 | V40: =IF((Indata!B$10+F40)<Indata!B$13,IF((Indata!B$10+F40)<Indata!B$12,(1+Indata!B$14)^(F40-Indata!B$8+Indata!B$10)*(1)^(F40+Indata!B$10-Indata!B$17)/(1+Indata!B$7)^(F40+Indata!B$10-Indata!B$9),(1+Indata!B$14)^((Indata!B$12-Indata!B$10)-Indata!B$8+Indata!B$10)*(1+Indata!B$15)^(F40+Indata!B$10-Indata!B$12)*(1)^(F40+Indata!B$10-Indata!B$17)/(1+Indata!B$7)^(F40+Indata!B$10-Indata!B$9)),(1+Indata!B$14)^((Indata!B$12-Indata!B$10)-Indata!B$8+Indata!B$10)*(1+Indata!B$15)^((Indata!B$13-Indata!B$10)+Indata!B$10-Indata!B$12)*(1+Stödberäkningar!G$106)^(F40+Indata!B$10-Indata!B$13)*(1)^(F40+Indata!B$10-Indata!B$17)/(1+Indata!B$7)^(F40+Indata!B$10-Indata!B$9)) -> 0.3189729344
F41: 38 | G41: 27.99897004 | H41: =IF((Indata!B$10+F41)<Indata!B$13,IF((Indata!B$10+F41)<Indata!B$12,(1+Indata!B$14)^(F41-Indata!B$8+Indata!B$10)*(1+Indata!B$16)^(F41+Indata!B$10-Indata!B$17)/(1+Indata!B$7)^(F41+Indata!B$10-Indata!B$9),(1+Indata!B$14)^((Indata!B$12-Indata!B$10)-Indata!B$8+Indata!B$10)*(1+Indata!B$15)^(F41+Indata!B$10-Indata!B$12)*(1+Indata!B$16)^(F41+Indata!B$10-Indata!B$17)/(1+Indata!B$7)^(F41+Indata!B$10-Indata!B$9)),(1+Indata!B$14)^((Indata!B$12-Indata!B$10)-Indata!B$8+Indata!B$10)*(1+Indata!B$15)^((Indata!B$13-Indata!B$10)+Indata!B$10-Indata!B$12)*(1+Stödberäkningar!G$106)^(F41+Indata!B$10-Indata!B$13)*(1+Indata!B$16)^(Indata!B$13-Indata!B$17)/(1+Indata!B$7)^(F41+Indata!B$10-Indata!B$9)) -> 0.5214879658 | T41: 38 | U41: 20.44181694 | V41: =IF((Indata!B$10+F41)<Indata!B$13,IF((Indata!B$10+F41)<Indata!B$12,(1+Indata!B$14)^(F41-Indata!B$8+Indata!B$10)*(1)^(F41+Indata!B$10-Indata!B$17)/(1+Indata!B$7)^(F41+Indata!B$10-Indata!B$9),(1+Indata!B$14)^((Indata!B$12-Indata!B$10)-Indata!B$8+Indata!B$10)*(1+Indata!B$15)^(F41+Indata!B$10-Indata!B$12)*(1)^(F41+Indata!B$10-Indata!B$17)/(1+Indata!B$7)^(F41+Indata!B$10-Indata!B$9)),(1+Indata!B$14)^((Indata!B$12-Indata!B$10)-Indata!B$8+Indata!B$10)*(1+Indata!B$15)^((Indata!B$13-Indata!B$10)+Indata!B$10-Indata!B$12)*(1+Stödberäkningar!G$106)^(F41+Indata!B$10-Indata!B$13)*(1)^(F41+Indata!B$10-Indata!B$17)/(1+Indata!B$7)^(F41+Indata!B$10-Indata!B$9)) -> 0.3081864101
F42: 39 | G42: 28.50282315 | H42: =IF((Indata!B$10+F42)<Indata!B$13,IF((Indata!B$10+F42)<Indata!B$12,(1+Indata!B$14)^(F42-Indata!B$8+Indata!B$10)*(1+Indata!B$16)^(F42+Indata!B$10-Indata!B$17)/(1+Indata!B$7)^(F42+Indata!B$10-Indata!B$9),(1+Indata!B$14)^((Indata!B$12-Indata!B$10)-Indata!B$8+Indata!B$10)*(1+Indata!B$15)^(F42+Indata!B$10-Indata!B$12)*(1+Indata!B$16)^(F42+Indata!B$10-Indata!B$17)/(1+Indata!B$7)^(F42+Indata!B$10-Indata!B$9)),(1+Indata!B$14)^((Indata!B$12-Indata!B$10)-Indata!B$8+Indata!B$10)*(1+Indata!B$15)^((Indata!B$13-Indata!B$10)+Indata!B$10-Indata!B$12)*(1+Stödberäkningar!G$106)^(F42+Indata!B$10-Indata!B$13)*(1+Indata!B$16)^(Indata!B$13-Indata!B$17)/(1+Indata!B$7)^(F42+Indata!B$10-Indata!B$9)) -> 0.5038531071 | T42: 39 | U42: 20.73958159 | V42: =IF((Indata!B$10+F42)<Indata!B$13,IF((Indata!B$10+F42)<Indata!B$12,(1+Indata!B$14)^(F42-Indata!B$8+Indata!B$10)*(1)^(F42+Indata!B$10-Indata!B$17)/(1+Indata!B$7)^(F42+Indata!B$10-Indata!B$9),(1+Indata!B$14)^((Indata!B$12-Indata!B$10)-Indata!B$8+Indata!B$10)*(1+Indata!B$15)^(F42+Indata!B$10-Indata!B$12)*(1)^(F42+Indata!B$10-Indata!B$17)/(1+Indata!B$7)^(F42+Indata!B$10-Indata!B$9)),(1+Indata!B$14)^((Indata!B$12-Indata!B$10)-Indata!B$8+Indata!B$10)*(1+Indata!B$15)^((Indata!B$13-Indata!B$10)+Indata!B$10-Indata!B$12)*(1+Stödberäkningar!G$106)^(F42+Indata!B$10-Indata!B$13)*(1)^(F42+Indata!B$10-Indata!B$17)/(1+Indata!B$7)^(F42+Indata!B$10-Indata!B$9)) -> 0.2977646474
F43: 40 | G43: 28.98963774 | H43: =IF((Indata!B$10+F43)<Indata!B$13,IF((Indata!B$10+F43)<Indata!B$12,(1+Indata!B$14)^(F43-Indata!B$8+Indata!B$10)*(1+Indata!B$16)^(F43+Indata!B$10-Indata!B$17)/(1+Indata!B$7)^(F43+Indata!B$10-Indata!B$9),(1+Indata!B$14)^((Indata!B$12-Indata!B$10)-Indata!B$8+Indata!B$10)*(1+Indata!B$15)^(F43+Indata!B$10-Indata!B$12)*(1+Indata!B$16)^(F43+Indata!B$10-Indata!B$17)/(1+Indata!B$7)^(F43+Indata!B$10-Indata!B$9)),(1+Indata!B$14)^((Indata!B$12-Indata!B$10)-Indata!B$8+Indata!B$10)*(1+Indata!B$15)^((Indata!B$13-Indata!B$10)+Indata!B$10-Indata!B$12)*(1+Stödberäkningar!G$106)^(F43+Indata!B$10-Indata!B$13)*(1+Indata!B$16)^(Indata!B$13-Indata!B$17)/(1+Indata!B$7)^(F43+Indata!B$10-Indata!B$9)) -> 0.4868145962 | T43: 40 | U43: 21.0272769 | V43: =IF((Indata!B$10+F43)<Indata!B$13,IF((Indata!B$10+F43)<Indata!B$12,(1+Indata!B$14)^(F43-Indata!B$8+Indata!B$10)*(1)^(F43+Indata!B$10-Indata!B$17)/(1+Indata!B$7)^(F43+Indata!B$10-Indata!B$9),(1+Indata!B$14)^((Indata!B$12-Indata!B$10)-Indata!B$8+Indata!B$10)*(1+Indata!B$15)^(F43+Indata!B$10-Indata!B$12)*(1)^(F43+Indata!B$10-Indata!B$17)/(1+Indata!B$7)^(F43+Indata!B$10-Indata!B$9)),(1+Indata!B$14)^((Indata!B$12-Indata!B$10)-Indata!B$8+Indata!B$10)*(1+Indata!B$15)^((Indata!B$13-Indata!B$10)+Indata!B$10-Indata!B$12)*(1+Stödberäkningar!G$106)^(F43+Indata!B$10-Indata!B$13)*(1)^(F43+Indata!B$10-Indata!B$17)/(1+Indata!B$7)^(F43+Indata!B$10-Indata!B$9)) -> 0.2876953115
F44: 41 | G44: 29.45999001 | H44: =IF((Indata!B$10+F44)<Indata!B$13,IF((Indata!B$10+F44)<Indata!B$12,(1+Indata!B$14)^(F44-Indata!B$8+Indata!B$10)*(1+Indata!B$16)^(F44+Indata!B$10-Indata!B$17)/(1+Indata!B$7)^(F44+Indata!B$10-Indata!B$9),(1+Indata!B$14)^((Indata!B$12-Indata!B$10)-Indata!B$8+Indata!B$10)*(1+Indata!B$15)^(F44+Indata!B$10-Indata!B$12)*(1+Indata!B$16)^(F44+Indata!B$10-Indata!B$17)/(1+Indata!B$7)^(F44+Indata!B$10-Indata!B$9)),(1+Indata!B$14)^((Indata!B$12-Indata!B$10)-Indata!B$8+Indata!B$10)*(1+Indata!B$15)^((Indata!B$13-Indata!B$10)+Indata!B$10-Indata!B$12)*(1+Stödberäkningar!G$106)^(F44+Indata!B$10-Indata!B$13)*(1+Indata!B$16)^(Indata!B$13-Indata!B$17)/(1+Indata!B$7)^(F44+Indata!B$10-Indata!B$9)) -> 0.4703522669 | T44: 41 | U44: 21.30524339 | V44: =IF((Indata!B$10+F44)<Indata!B$13,IF((Indata!B$10+F44)<Indata!B$12,(1+Indata!B$14)^(F44-Indata!B$8+Indata!B$10)*(1)^(F44+Indata!B$10-Indata!B$17)/(1+Indata!B$7)^(F44+Indata!B$10-Indata!B$9),(1+Indata!B$14)^((Indata!B$12-Indata!B$10)-Indata!B$8+Indata!B$10)*(1+Indata!B$15)^(F44+Indata!B$10-Indata!B$12)*(1)^(F44+Indata!B$10-Indata!B$17)/(1+Indata!B$7)^(F44+Indata!B$10-Indata!B$9)),(1+Indata!B$14)^((Indata!B$12-Indata!B$10)-Indata!B$8+Indata!B$10)*(1+Indata!B$15)^((Indata!B$13-Indata!B$10)+Indata!B$10-Indata!B$12)*(1+Stödberäkningar!G$106)^(F44+Indata!B$10-Indata!B$13)*(1)^(F44+Indata!B$10-Indata!B$17)/(1+Indata!B$7)^(F44+Indata!B$10-Indata!B$9)) -> 0.2779664845
F45: 42 | G45: 29.91443665 | H45: =IF((Indata!B$10+F45)<Indata!B$13,IF((Indata!B$10+F45)<Indata!B$12,(1+Indata!B$14)^(F45-Indata!B$8+Indata!B$10)*(1+Indata!B$16)^(F45+Indata!B$10-Indata!B$17)/(1+Indata!B$7)^(F45+Indata!B$10-Indata!B$9),(1+Indata!B$14)^((Indata!B$12-Indata!B$10)-Indata!B$8+Indata!B$10)*(1+Indata!B$15)^(F45+Indata!B$10-Indata!B$12)*(1+Indata!B$16)^(F45+Indata!B$10-Indata!B$17)/(1+Indata!B$7)^(F45+Indata!B$10-Indata!B$9)),(1+Indata!B$14)^((Indata!B$12-Indata!B$10)-Indata!B$8+Indata!B$10)*(1+Indata!B$15)^((Indata!B$13-Indata!B$10)+Indata!B$10-Indata!B$12)*(1+Stödberäkningar!G$106)^(F45+Indata!B$10-Indata!B$13)*(1+Indata!B$16)^(Indata!B$13-Indata!B$17)/(1+Indata!B$7)^(F45+Indata!B$10-Indata!B$9)) -> 0.4544466347 | T45: 42 | U45: 21.57381004 | V45: =IF((Indata!B$10+F45)<Indata!B$13,IF((Indata!B$10+F45)<Indata!B$12,(1+Indata!B$14)^(F45-Indata!B$8+Indata!B$10)*(1)^(F45+Indata!B$10-Indata!B$17)/(1+Indata!B$7)^(F45+Indata!B$10-Indata!B$9),(1+Indata!B$14)^((Indata!B$12-Indata!B$10)-Indata!B$8+Indata!B$10)*(1+Indata!B$15)^(F45+Indata!B$10-Indata!B$12)*(1)^(F45+Indata!B$10-Indata!B$17)/(1+Indata!B$7)^(F45+Indata!B$10-Indata!B$9)),(1+Indata!B$14)^((Indata!B$12-Indata!B$10)-Indata!B$8+Indata!B$10)*(1+Indata!B$15)^((Indata!B$13-Indata!B$10)+Indata!B$10-Indata!B$12)*(1+Stödberäkningar!G$106)^(F45+Indata!B$10-Indata!B$13)*(1)^(F45+Indata!B$10-Indata!B$17)/(1+Indata!B$7)^(F45+Indata!B$10-Indata!B$9)) -> 0.2685666517
F46: 43 | G46: 30.35351552 | H46: =IF((Indata!B$10+F46)<Indata!B$13,IF((Indata!B$10+F46)<Indata!B$12,(1+Indata!B$14)^(F46-Indata!B$8+Indata!B$10)*(1+Indata!B$16)^(F46+Indata!B$10-Indata!B$17)/(1+Indata!B$7)^(F46+Indata!B$10-Indata!B$9),(1+Indata!B$14)^((Indata!B$12-Indata!B$10)-Indata!B$8+Indata!B$10)*(1+Indata!B$15)^(F46+Indata!B$10-Indata!B$12)*(1+Indata!B$16)^(F46+Indata!B$10-Indata!B$17)/(1+Indata!B$7)^(F46+Indata!B$10-Indata!B$9)),(1+Indata!B$14)^((Indata!B$12-Indata!B$10)-Indata!B$8+Indata!B$10)*(1+Indata!B$15)^((Indata!B$13-Indata!B$10)+Indata!B$10-Indata!B$12)*(1+Stödberäkningar!G$106)^(F46+Indata!B$10-Indata!B$13)*(1+Indata!B$16)^(Indata!B$13-Indata!B$17)/(1+Indata!B$7)^(F46+Indata!B$10-Indata!B$9)) -> 0.4390788741 | T46: 43 | U46: 21.83329473 | V46: =IF((Indata!B$10+F46)<Indata!B$13,IF((Indata!B$10+F46)<Indata!B$12,(1+Indata!B$14)^(F46-Indata!B$8+Indata!B$10)*(1)^(F46+Indata!B$10-Indata!B$17)/(1+Indata!B$7)^(F46+Indata!B$10-Indata!B$9),(1+Indata!B$14)^((Indata!B$12-Indata!B$10)-Indata!B$8+Indata!B$10)*(1+Indata!B$15)^(F46+Indata!B$10-Indata!B$12)*(1)^(F46+Indata!B$10-Indata!B$17)/(1+Indata!B$7)^(F46+Indata!B$10-Indata!B$9)),(1+Indata!B$14)^((Indata!B$12-Indata!B$10)-Indata!B$8+Indata!B$10)*(1+Indata!B$15)^((Indata!B$13-Indata!B$10)+Indata!B$10-Indata!B$12)*(1+Stödberäkningar!G$106)^(F46+Indata!B$10-Indata!B$13)*(1)^(F46+Indata!B$10-Indata!B$17)/(1+Indata!B$7)^(F46+Indata!B$10-Indata!B$9)) -> 0.2594846877
F47: 44 | G47: 30.77774632 | H47: =IF((Indata!B$10+F47)<Indata!B$13,IF((Indata!B$10+F47)<Indata!B$12,(1+Indata!B$14)^(F47-Indata!B$8+Indata!B$10)*(1+Indata!B$16)^(F47+Indata!B$10-Indata!B$17)/(1+Indata!B$7)^(F47+Indata!B$10-Indata!B$9),(1+Indata!B$14)^((Indata!B$12-Indata!B$10)-Indata!B$8+Indata!B$10)*(1+Indata!B$15)^(F47+Indata!B$10-Indata!B$12)*(1+Indata!B$16)^(F47+Indata!B$10-Indata!B$17)/(1+Indata!B$7)^(F47+Indata!B$10-Indata!B$9)),(1+Indata!B$14)^((Indata!B$12-Indata!B$10)-Indata!B$8+Indata!B$10)*(1+Indata!B$15)^((Indata!B$13-Indata!B$10)+Indata!B$10-Indata!B$12)*(1+Stödberäkningar!G$106)^(F47+Indata!B$10-Indata!B$13)*(1+Indata!B$16)^(Indata!B$13-Indata!B$17)/(1+Indata!B$7)^(F47+Indata!B$10-Indata!B$9)) -> 0.4242307962 | T47: 44 | U47: 22.08400457 | V47: =IF((Indata!B$10+F47)<Indata!B$13,IF((Indata!B$10+F47)<Indata!B$12,(1+Indata!B$14)^(F47-Indata!B$8+Indata!B$10)*(1)^(F47+Indata!B$10-Indata!B$17)/(1+Indata!B$7)^(F47+Indata!B$10-Indata!B$9),(1+Indata!B$14)^((Indata!B$12-Indata!B$10)-Indata!B$8+Indata!B$10)*(1+Indata!B$15)^(F47+Indata!B$10-Indata!B$12)*(1)^(F47+Indata!B$10-Indata!B$17)/(1+Indata!B$7)^(F47+Indata!B$10-Indata!B$9)),(1+Indata!B$14)^((Indata!B$12-Indata!B$10)-Indata!B$8+Indata!B$10)*(1+Indata!B$15)^((Indata!B$13-Indata!B$10)+Indata!B$10-Indata!B$12)*(1+Stödberäkningar!G$106)^(F47+Indata!B$10-Indata!B$13)*(1)^(F47+Indata!B$10-Indata!B$17)/(1+Indata!B$7)^(F47+Indata!B$10-Indata!B$9)) -> 0.2507098431
F48: 45 | G48: 31.18763114 | H48: =IF((Indata!B$10+F48)<Indata!B$13,IF((Indata!B$10+F48)<Indata!B$12,(1+Indata!B$14)^(F48-Indata!B$8+Indata!B$10)*(1+Indata!B$16)^(F48+Indata!B$10-Indata!B$17)/(1+Indata!B$7)^(F48+Indata!B$10-Indata!B$9),(1+Indata!B$14)^((Indata!B$12-Indata!B$10)-Indata!B$8+Indata!B$10)*(1+Indata!B$15)^(F48+Indata!B$10-Indata!B$12)*(1+Indata!B$16)^(F48+Indata!B$10-Indata!B$17)/(1+Indata!B$7)^(F48+Indata!B$10-Indata!B$9)),(1+Indata!B$14)^((Indata!B$12-Indata!B$10)-Indata!B$8+Indata!B$10)*(1+Indata!B$15)^((Indata!B$13-Indata!B$10)+Indata!B$10-Indata!B$12)*(1+Stödberäkningar!G$106)^(F48+Indata!B$10-Indata!B$13)*(1+Indata!B$16)^(Indata!B$13-Indata!B$17)/(1+Indata!B$7)^(F48+Indata!B$10-Indata!B$9)) -> 0.4098848273 | T48: 45 | U48: 22.3262363 | V48: =IF((Indata!B$10+F48)<Indata!B$13,IF((Indata!B$10+F48)<Indata!B$12,(1+Indata!B$14)^(F48-Indata!B$8+Indata!B$10)*(1)^(F48+Indata!B$10-Indata!B$17)/(1+Indata!B$7)^(F48+Indata!B$10-Indata!B$9),(1+Indata!B$14)^((Indata!B$12-Indata!B$10)-Indata!B$8+Indata!B$10)*(1+Indata!B$15)^(F48+Indata!B$10-Indata!B$12)*(1)^(F48+Indata!B$10-Indata!B$17)/(1+Indata!B$7)^(F48+Indata!B$10-Indata!B$9)),(1+Indata!B$14)^((Indata!B$12-Indata!B$10)-Indata!B$8+Indata!B$10)*(1+Indata!B$15)^((Indata!B$13-Indata!B$10)+Indata!B$10-Indata!B$12)*(1+Stödberäkningar!G$106)^(F48+Indata!B$10-Indata!B$13)*(1)^(F48+Indata!B$10-Indata!B$17)/(1+Indata!B$7)^(F48+Indata!B$10-Indata!B$9)) -> 0.2422317325
F49: 46 | G49: 31.58365513 | H49: =IF((Indata!B$10+F49)<Indata!B$13,IF((Indata!B$10+F49)<Indata!B$12,(1+Indata!B$14)^(F49-Indata!B$8+Indata!B$10)*(1+Indata!B$16)^(F49+Indata!B$10-Indata!B$17)/(1+Indata!B$7)^(F49+Indata!B$10-Indata!B$9),(1+Indata!B$14)^((Indata!B$12-Indata!B$10)-Indata!B$8+Indata!B$10)*(1+Indata!B$15)^(F49+Indata!B$10-Indata!B$12)*(1+Indata!B$16)^(F49+Indata!B$10-Indata!B$17)/(1+Indata!B$7)^(F49+Indata!B$10-Indata!B$9)),(1+Indata!B$14)^((Indata!B$12-Indata!B$10)-Indata!B$8+Indata!B$10)*(1+Indata!B$15)^((Indata!B$13-Indata!B$10)+Indata!B$10-Indata!B$12)*(1+Stödberäkningar!G$106)^(F49+Indata!B$10-Indata!B$13)*(1+Indata!B$16)^(Indata!B$13-Indata!B$17)/(1+Indata!B$7)^(F49+Indata!B$10-Indata!B$9)) -> 0.3960239877 | T49: 46 | U49: 22.56027662 | V49: =IF((Indata!B$10+F49)<Indata!B$13,IF((Indata!B$10+F49)<Indata!B$12,(1+Indata!B$14)^(F49-Indata!B$8+Indata!B$10)*(1)^(F49+Indata!B$10-Indata!B$17)/(1+Indata!B$7)^(F49+Indata!B$10-Indata!B$9),(1+Indata!B$14)^((Indata!B$12-Indata!B$10)-Indata!B$8+Indata!B$10)*(1+Indata!B$15)^(F49+Indata!B$10-Indata!B$12)*(1)^(F49+Indata!B$10-Indata!B$17)/(1+Indata!B$7)^(F49+Indata!B$10-Indata!B$9)),(1+Indata!B$14)^((Indata!B$12-Indata!B$10)-Indata!B$8+Indata!B$10)*(1+Indata!B$15)^((Indata!B$13-Indata!B$10)+Indata!B$10-Indata!B$12)*(1+Stödberäkningar!G$106)^(F49+Indata!B$10-Indata!B$13)*(1)^(F49+Indata!B$10-Indata!B$17)/(1+Indata!B$7)^(F49+Indata!B$10-Indata!B$9)) -> 0.2340403213
F50: 47 | G50: 31.966287 | H50: =IF((Indata!B$10+F50)<Indata!B$13,IF((Indata!B$10+F50)<Indata!B$12,(1+Indata!B$14)^(F50-Indata!B$8+Indata!B$10)*(1+Indata!B$16)^(F50+Indata!B$10-Indata!B$17)/(1+Indata!B$7)^(F50+Indata!B$10-Indata!B$9),(1+Indata!B$14)^((Indata!B$12-Indata!B$10)-Indata!B$8+Indata!B$10)*(1+Indata!B$15)^(F50+Indata!B$10-Indata!B$12)*(1+Indata!B$16)^(F50+Indata!B$10-Indata!B$17)/(1+Indata!B$7)^(F50+Indata!B$10-Indata!B$9)),(1+Indata!B$14)^((Indata!B$12-Indata!B$10)-Indata!B$8+Indata!B$10)*(1+Indata!B$15)^((Indata!B$13-Indata!B$10)+Indata!B$10-Indata!B$12)*(1+Stödberäkningar!G$106)^(F50+Indata!B$10-Indata!B$13)*(1+Indata!B$16)^(Indata!B$13-Indata!B$17)/(1+Indata!B$7)^(F50+Indata!B$10-Indata!B$9)) -> 0.3826318722 | T50: 47 | U50: 22.78640254 | V50: =IF((Indata!B$10+F50)<Indata!B$13,IF((Indata!B$10+F50)<Indata!B$12,(1+Indata!B$14)^(F50-Indata!B$8+Indata!B$10)*(1)^(F50+Indata!B$10-Indata!B$17)/(1+Indata!B$7)^(F50+Indata!B$10-Indata!B$9),(1+Indata!B$14)^((Indata!B$12-Indata!B$10)-Indata!B$8+Indata!B$10)*(1+Indata!B$15)^(F50+Indata!B$10-Indata!B$12)*(1)^(F50+Indata!B$10-Indata!B$17)/(1+Indata!B$7)^(F50+Indata!B$10-Indata!B$9)),(1+Indata!B$14)^((Indata!B$12-Indata!B$10)-Indata!B$8+Indata!B$10)*(1+Indata!B$15)^((Indata!B$13-Indata!B$10)+Indata!B$10-Indata!B$12)*(1+Stödberäkningar!G$106)^(F50+Indata!B$10-Indata!B$13)*(1)^(F50+Indata!B$10-Indata!B$17)/(1+Indata!B$7)^(F50+Indata!B$10-Indata!B$9)) -> 0.2261259143
F51: 48 | G51: 32.33597963 | H51: =IF((Indata!B$10+F51)<Indata!B$13,IF((Indata!B$10+F51)<Indata!B$12,(1+Indata!B$14)^(F51-Indata!B$8+Indata!B$10)*(1+Indata!B$16)^(F51+Indata!B$10-Indata!B$17)/(1+Indata!B$7)^(F51+Indata!B$10-Indata!B$9),(1+Indata!B$14)^((Indata!B$12-Indata!B$10)-Indata!B$8+Indata!B$10)*(1+Indata!B$15)^(F51+Indata!B$10-Indata!B$12)*(1+Indata!B$16)^(F51+Indata!B$10-Indata!B$17)/(1+Indata!B$7)^(F51+Indata!B$10-Indata!B$9)),(1+Indata!B$14)^((Indata!B$12-Indata!B$10)-Indata!B$8+Indata!B$10)*(1+Indata!B$15)^((Indata!B$13-Indata!B$10)+Indata!B$10-Indata!B$12)*(1+Stödberäkningar!G$106)^(F51+Indata!B$10-Indata!B$13)*(1+Indata!B$16)^(Indata!B$13-Indata!B$17)/(1+Indata!B$7)^(F51+Indata!B$10-Indata!B$9)) -> 0.3696926301 | T51: 48 | U51: 23.00488168 | V51: =IF((Indata!B$10+F51)<Indata!B$13,IF((Indata!B$10+F51)<Indata!B$12,(1+Indata!B$14)^(F51-Indata!B$8+Indata!B$10)*(1)^(F51+Indata!B$10-Indata!B$17)/(1+Indata!B$7)^(F51+Indata!B$10-Indata!B$9),(1+Indata!B$14)^((Indata!B$12-Indata!B$10)-Indata!B$8+Indata!B$10)*(1+Indata!B$15)^(F51+Indata!B$10-Indata!B$12)*(1)^(F51+Indata!B$10-Indata!B$17)/(1+Indata!B$7)^(F51+Indata!B$10-Indata!B$9)),(1+Indata!B$14)^((Indata!B$12-Indata!B$10)-Indata!B$8+Indata!B$10)*(1+Indata!B$15)^((Indata!B$13-Indata!B$10)+Indata!B$10-Indata!B$12)*(1+Stödberäkningar!G$106)^(F51+Indata!B$10-Indata!B$13)*(1)^(F51+Indata!B$10-Indata!B$17)/(1+Indata!B$7)^(F51+Indata!B$10-Indata!B$9)) -> 0.2184791442
F52: 49 | G52: 32.69317058 | H52: =IF((Indata!B$10+F52)<Indata!B$13,IF((Indata!B$10+F52)<Indata!B$12,(1+Indata!B$14)^(F52-Indata!B$8+Indata!B$10)*(1+Indata!B$16)^(F52+Indata!B$10-Indata!B$17)/(1+Indata!B$7)^(F52+Indata!B$10-Indata!B$9),(1+Indata!B$14)^((Indata!B$12-Indata!B$10)-Indata!B$8+Indata!B$10)*(1+Indata!B$15)^(F52+Indata!B$10-Indata!B$12)*(1+Indata!B$16)^(F52+Indata!B$10-Indata!B$17)/(1+Indata!B$7)^(F52+Indata!B$10-Indata!B$9)),(1+Indata!B$14)^((Indata!B$12-Indata!B$10)-Indata!B$8+Indata!B$10)*(1+Indata!B$15)^((Indata!B$13-Indata!B$10)+Indata!B$10-Indata!B$12)*(1+Stödberäkningar!G$106)^(F52+Indata!B$10-Indata!B$13)*(1+Indata!B$16)^(Indata!B$13-Indata!B$17)/(1+Indata!B$7)^(F52+Indata!B$10-Indata!B$9)) -> 0.357190947 | T52: 49 | U52: 23.21597264 | V52: =IF((Indata!B$10+F52)<Indata!B$13,IF((Indata!B$10+F52)<Indata!B$12,(1+Indata!B$14)^(F52-Indata!B$8+Indata!B$10)*(1)^(F52+Indata!B$10-Indata!B$17)/(1+Indata!B$7)^(F52+Indata!B$10-Indata!B$9),(1+Indata!B$14)^((Indata!B$12-Indata!B$10)-Indata!B$8+Indata!B$10)*(1+Indata!B$15)^(F52+Indata!B$10-Indata!B$12)*(1)^(F52+Indata!B$10-Indata!B$17)/(1+Indata!B$7)^(F52+Indata!B$10-Indata!B$9)),(1+Indata!B$14)^((Indata!B$12-Indata!B$10)-Indata!B$8+Indata!B$10)*(1+Indata!B$15)^((Indata!B$13-Indata!B$10)+Indata!B$10-Indata!B$12)*(1+Stödberäkningar!G$106)^(F52+Indata!B$10-Indata!B$13)*(1)^(F52+Indata!B$10-Indata!B$17)/(1+Indata!B$7)^(F52+Indata!B$10-Indata!B$9)) -> 0.2110909606
F53: 50 | G53: 33.03828261 | H53: =IF((Indata!B$10+F53)<Indata!B$13,IF((Indata!B$10+F53)<Indata!B$12,(1+Indata!B$14)^(F53-Indata!B$8+Indata!B$10)*(1+Indata!B$16)^(F53+Indata!B$10-Indata!B$17)/(1+Indata!B$7)^(F53+Indata!B$10-Indata!B$9),(1+Indata!B$14)^((Indata!B$12-Indata!B$10)-Indata!B$8+Indata!B$10)*(1+Indata!B$15)^(F53+Indata!B$10-Indata!B$12)*(1+Indata!B$16)^(F53+Indata!B$10-Indata!B$17)/(1+Indata!B$7)^(F53+Indata!B$10-Indata!B$9)),(1+Indata!B$14)^((Indata!B$12-Indata!B$10)-Indata!B$8+Indata!B$10)*(1+Indata!B$15)^((Indata!B$13-Indata!B$10)+Indata!B$10-Indata!B$12)*(1+Stödberäkningar!G$106)^(F53+Indata!B$10-Indata!B$13)*(1+Indata!B$16)^(Indata!B$13-Indata!B$17)/(1+Indata!B$7)^(F53+Indata!B$10-Indata!B$9)) -> 0.3451120261 | T53: 50 | U53: 23.41992526 | V53: =IF((Indata!B$10+F53)<Indata!B$13,IF((Indata!B$10+F53)<Indata!B$12,(1+Indata!B$14)^(F53-Indata!B$8+Indata!B$10)*(1)^(F53+Indata!B$10-Indata!B$17)/(1+Indata!B$7)^(F53+Indata!B$10-Indata!B$9),(1+Indata!B$14)^((Indata!B$12-Indata!B$10)-Indata!B$8+Indata!B$10)*(1+Indata!B$15)^(F53+Indata!B$10-Indata!B$12)*(1)^(F53+Indata!B$10-Indata!B$17)/(1+Indata!B$7)^(F53+Indata!B$10-Indata!B$9)),(1+Indata!B$14)^((Indata!B$12-Indata!B$10)-Indata!B$8+Indata!B$10)*(1+Indata!B$15)^((Indata!B$13-Indata!B$10)+Indata!B$10-Indata!B$12)*(1+Stödberäkningar!G$106)^(F53+Indata!B$10-Indata!B$13)*(1)^(F53+Indata!B$10-Indata!B$17)/(1+Indata!B$7)^(F53+Indata!B$10-Indata!B$9)) -> 0.2039526189
F54: 51 | G54: 33.37172418 | H54: =IF((Indata!B$10+F54)<Indata!B$13,IF((Indata!B$10+F54)<Indata!B$12,(1+Indata!B$14)^(F54-Indata!B$8+Indata!B$10)*(1+Indata!B$16)^(F54+Indata!B$10-Indata!B$17)/(1+Indata!B$7)^(F54+Indata!B$10-Indata!B$9),(1+Indata!B$14)^((Indata!B$12-Indata!B$10)-Indata!B$8+Indata!B$10)*(1+Indata!B$15)^(F54+Indata!B$10-Indata!B$12)*(1+Indata!B$16)^(F54+Indata!B$10-Indata!B$17)/(1+Indata!B$7)^(F54+Indata!B$10-Indata!B$9)),(1+Indata!B$14)^((Indata!B$12-Indata!B$10)-Indata!B$8+Indata!B$10)*(1+Indata!B$15)^((Indata!B$13-Indata!B$10)+Indata!B$10-Indata!B$12)*(1+Stödberäkningar!G$106)^(F54+Indata!B$10-Indata!B$13)*(1+Indata!B$16)^(Indata!B$13-Indata!B$17)/(1+Indata!B$7)^(F54+Indata!B$10-Indata!B$9)) -> 0.3334415711 | T54: 51 | U54: 23.61698093 | V54: =IF((Indata!B$10+F54)<Indata!B$13,IF((Indata!B$10+F54)<Indata!B$12,(1+Indata!B$14)^(F54-Indata!B$8+Indata!B$10)*(1)^(F54+Indata!B$10-Indata!B$17)/(1+Indata!B$7)^(F54+Indata!B$10-Indata!B$9),(1+Indata!B$14)^((Indata!B$12-Indata!B$10)-Indata!B$8+Indata!B$10)*(1+Indata!B$15)^(F54+Indata!B$10-Indata!B$12)*(1)^(F54+Indata!B$10-Indata!B$17)/(1+Indata!B$7)^(F54+Indata!B$10-Indata!B$9)),(1+Indata!B$14)^((Indata!B$12-Indata!B$10)-Indata!B$8+Indata!B$10)*(1+Indata!B$15)^((Indata!B$13-Indata!B$10)+Indata!B$10-Indata!B$12)*(1+Stödberäkningar!G$106)^(F54+Indata!B$10-Indata!B$13)*(1)^(F54+Indata!B$10-Indata!B$17)/(1+Indata!B$7)^(F54+Indata!B$10-Indata!B$9)) -> 0.1970556705
F55: 52 | G55: 33.69388995 | H55: =IF((Indata!B$10+F55)<Indata!B$13,IF((Indata!B$10+F55)<Indata!B$12,(1+Indata!B$14)^(F55-Indata!B$8+Indata!B$10)*(1+Indata!B$16)^(F55+Indata!B$10-Indata!B$17)/(1+Indata!B$7)^(F55+Indata!B$10-Indata!B$9),(1+Indata!B$14)^((Indata!B$12-Indata!B$10)-Indata!B$8+Indata!B$10)*(1+Indata!B$15)^(F55+Indata!B$10-Indata!B$12)*(1+Indata!B$16)^(F55+Indata!B$10-Indata!B$17)/(1+Indata!B$7)^(F55+Indata!B$10-Indata!B$9)),(1+Indata!B$14)^((Indata!B$12-Indata!B$10)-Indata!B$8+Indata!B$10)*(1+Indata!B$15)^((Indata!B$13-Indata!B$10)+Indata!B$10-Indata!B$12)*(1+Stödberäkningar!G$106)^(F55+Indata!B$10-Indata!B$13)*(1+Indata!B$16)^(Indata!B$13-Indata!B$17)/(1+Indata!B$7)^(F55+Indata!B$10-Indata!B$9)) -> 0.3221657691 | T55: 52 | U55: 23.80737289 | V55: =IF((Indata!B$10+F55)<Indata!B$13,IF((Indata!B$10+F55)<Indata!B$12,(1+Indata!B$14)^(F55-Indata!B$8+Indata!B$10)*(1)^(F55+Indata!B$10-Indata!B$17)/(1+Indata!B$7)^(F55+Indata!B$10-Indata!B$9),(1+Indata!B$14)^((Indata!B$12-Indata!B$10)-Indata!B$8+Indata!B$10)*(1+Indata!B$15)^(F55+Indata!B$10-Indata!B$12)*(1)^(F55+Indata!B$10-Indata!B$17)/(1+Indata!B$7)^(F55+Indata!B$10-Indata!B$9)),(1+Indata!B$14)^((Indata!B$12-Indata!B$10)-Indata!B$8+Indata!B$10)*(1+Indata!B$15)^((Indata!B$13-Indata!B$10)+Indata!B$10-Indata!B$12)*(1+Stödberäkningar!G$106)^(F55+Indata!B$10-Indata!B$13)*(1)^(F55+Indata!B$10-Indata!B$17)/(1+Indata!B$7)^(F55+Indata!B$10-Indata!B$9)) -> 0.1903919521
F56: 53 | G56: 34.00516122 | H56: =IF((Indata!B$10+F56)<Indata!B$13,IF((Indata!B$10+F56)<Indata!B$12,(1+Indata!B$14)^(F56-Indata!B$8+Indata!B$10)*(1+Indata!B$16)^(F56+Indata!B$10-Indata!B$17)/(1+Indata!B$7)^(F56+Indata!B$10-Indata!B$9),(1+Indata!B$14)^((Indata!B$12-Indata!B$10)-Indata!B$8+Indata!B$10)*(1+Indata!B$15)^(F56+Indata!B$10-Indata!B$12)*(1+Indata!B$16)^(F56+Indata!B$10-Indata!B$17)/(1+Indata!B$7)^(F56+Indata!B$10-Indata!B$9)),(1+Indata!B$14)^((Indata!B$12-Indata!B$10)-Indata!B$8+Indata!B$10)*(1+Indata!B$15)^((Indata!B$13-Indata!B$10)+Indata!B$10-Indata!B$12)*(1+Stödberäkningar!G$106)^(F56+Indata!B$10-Indata!B$13)*(1+Indata!B$16)^(Indata!B$13-Indata!B$17)/(1+Indata!B$7)^(F56+Indata!B$10-Indata!B$9)) -> 0.3112712745 | T56: 53 | U56: 23.99132646 | V56: =IF((Indata!B$10+F56)<Indata!B$13,IF((Indata!B$10+F56)<Indata!B$12,(1+Indata!B$14)^(F56-Indata!B$8+Indata!B$10)*(1)^(F56+Indata!B$10-Indata!B$17)/(1+Indata!B$7)^(F56+Indata!B$10-Indata!B$9),(1+Indata!B$14)^((Indata!B$12-Indata!B$10)-Indata!B$8+Indata!B$10)*(1+Indata!B$15)^(F56+Indata!B$10-Indata!B$12)*(1)^(F56+Indata!B$10-Indata!B$17)/(1+Indata!B$7)^(F56+Indata!B$10-Indata!B$9)),(1+Indata!B$14)^((Indata!B$12-Indata!B$10)-Indata!B$8+Indata!B$10)*(1+Indata!B$15)^((Indata!B$13-Indata!B$10)+Indata!B$10-Indata!B$12)*(1+Stödberäkningar!G$106)^(F56+Indata!B$10-Indata!B$13)*(1)^(F56+Indata!B$10-Indata!B$17)/(1+Indata!B$7)^(F56+Indata!B$10-Indata!B$9)) -> 0.183953577
F57: 54 | G57: 34.30590641 | H57: =IF((Indata!B$10+F57)<Indata!B$13,IF((Indata!B$10+F57)<Indata!B$12,(1+Indata!B$14)^(F57-Indata!B$8+Indata!B$10)*(1+Indata!B$16)^(F57+Indata!B$10-Indata!B$17)/(1+Indata!B$7)^(F57+Indata!B$10-Indata!B$9),(1+Indata!B$14)^((Indata!B$12-Indata!B$10)-Indata!B$8+Indata!B$10)*(1+Indata!B$15)^(F57+Indata!B$10-Indata!B$12)*(1+Indata!B$16)^(F57+Indata!B$10-Indata!B$17)/(1+Indata!B$7)^(F57+Indata!B$10-Indata!B$9)),(1+Indata!B$14)^((Indata!B$12-Indata!B$10)-Indata!B$8+Indata!B$10)*(1+Indata!B$15)^((Indata!B$13-Indata!B$10)+Indata!B$10-Indata!B$12)*(1+Stödberäkningar!G$106)^(F57+Indata!B$10-Indata!B$13)*(1+Indata!B$16)^(Indata!B$13-Indata!B$17)/(1+Indata!B$7)^(F57+Indata!B$10-Indata!B$9)) -> 0.3007451928 | T57: 54 | U57: 24.16905939 | V57: =IF((Indata!B$10+F57)<Indata!B$13,IF((Indata!B$10+F57)<Indata!B$12,(1+Indata!B$14)^(F57-Indata!B$8+Indata!B$10)*(1)^(F57+Indata!B$10-Indata!B$17)/(1+Indata!B$7)^(F57+Indata!B$10-Indata!B$9),(1+Indata!B$14)^((Indata!B$12-Indata!B$10)-Indata!B$8+Indata!B$10)*(1+Indata!B$15)^(F57+Indata!B$10-Indata!B$12)*(1)^(F57+Indata!B$10-Indata!B$17)/(1+Indata!B$7)^(F57+Indata!B$10-Indata!B$9)),(1+Indata!B$14)^((Indata!B$12-Indata!B$10)-Indata!B$8+Indata!B$10)*(1+Indata!B$15)^((Indata!B$13-Indata!B$10)+Indata!B$10-Indata!B$12)*(1+Stödberäkningar!G$106)^(F57+Indata!B$10-Indata!B$13)*(1)^(F57+Indata!B$10-Indata!B$17)/(1+Indata!B$7)^(F57+Indata!B$10-Indata!B$9)) -> 0.1777329246
F58: 55 | G58: 34.59648148 | H58: =IF((Indata!B$10+F58)<Indata!B$13,IF((Indata!B$10+F58)<Indata!B$12,(1+Indata!B$14)^(F58-Indata!B$8+Indata!B$10)*(1+Indata!B$16)^(F58+Indata!B$10-Indata!B$17)/(1+Indata!B$7)^(F58+Indata!B$10-Indata!B$9),(1+Indata!B$14)^((Indata!B$12-Indata!B$10)-Indata!B$8+Indata!B$10)*(1+Indata!B$15)^(F58+Indata!B$10-Indata!B$12)*(1+Indata!B$16)^(F58+Indata!B$10-Indata!B$17)/(1+Indata!B$7)^(F58+Indata!B$10-Indata!B$9)),(1+Indata!B$14)^((Indata!B$12-Indata!B$10)-Indata!B$8+Indata!B$10)*(1+Indata!B$15)^((Indata!B$13-Indata!B$10)+Indata!B$10-Indata!B$12)*(1+Stödberäkningar!G$106)^(F58+Indata!B$10-Indata!B$13)*(1+Indata!B$16)^(Indata!B$13-Indata!B$17)/(1+Indata!B$7)^(F58+Indata!B$10-Indata!B$9)) -> 0.2905750655 | T58: 55 | U58: 24.34078202 | V58: =IF((Indata!B$10+F58)<Indata!B$13,IF((Indata!B$10+F58)<Indata!B$12,(1+Indata!B$14)^(F58-Indata!B$8+Indata!B$10)*(1)^(F58+Indata!B$10-Indata!B$17)/(1+Indata!B$7)^(F58+Indata!B$10-Indata!B$9),(1+Indata!B$14)^((Indata!B$12-Indata!B$10)-Indata!B$8+Indata!B$10)*(1+Indata!B$15)^(F58+Indata!B$10-Indata!B$12)*(1)^(F58+Indata!B$10-Indata!B$17)/(1+Indata!B$7)^(F58+Indata!B$10-Indata!B$9)),(1+Indata!B$14)^((Indata!B$12-Indata!B$10)-Indata!B$8+Indata!B$10)*(1+Indata!B$15)^((Indata!B$13-Indata!B$10)+Indata!B$10-Indata!B$12)*(1+Stödberäkningar!G$106)^(F58+Indata!B$10-Indata!B$13)*(1)^(F58+Indata!B$10-Indata!B$17)/(1+Indata!B$7)^(F58+Indata!B$10-Indata!B$9)) -> 0.1717226325
F59: 56 | G59: 34.87723034 | H59: =IF((Indata!B$10+F59)<Indata!B$13,IF((Indata!B$10+F59)<Indata!B$12,(1+Indata!B$14)^(F59-Indata!B$8+Indata!B$10)*(1+Indata!B$16)^(F59+Indata!B$10-Indata!B$17)/(1+Indata!B$7)^(F59+Indata!B$10-Indata!B$9),(1+Indata!B$14)^((Indata!B$12-Indata!B$10)-Indata!B$8+Indata!B$10)*(1+Indata!B$15)^(F59+Indata!B$10-Indata!B$12)*(1+Indata!B$16)^(F59+Indata!B$10-Indata!B$17)/(1+Indata!B$7)^(F59+Indata!B$10-Indata!B$9)),(1+Indata!B$14)^((Indata!B$12-Indata!B$10)-Indata!B$8+Indata!B$10)*(1+Indata!B$15)^((Indata!B$13-Indata!B$10)+Indata!B$10-Indata!B$12)*(1+Stödberäkningar!G$106)^(F59+Indata!B$10-Indata!B$13)*(1+Indata!B$16)^(Indata!B$13-Indata!B$17)/(1+Indata!B$7)^(F59+Indata!B$10-Indata!B$9)) -> 0.2807488556 | T59: 56 | U59: 24.50669761 | V59: =IF((Indata!B$10+F59)<Indata!B$13,IF((Indata!B$10+F59)<Indata!B$12,(1+Indata!B$14)^(F59-Indata!B$8+Indata!B$10)*(1)^(F59+Indata!B$10-Indata!B$17)/(1+Indata!B$7)^(F59+Indata!B$10-Indata!B$9),(1+Indata!B$14)^((Indata!B$12-Indata!B$10)-Indata!B$8+Indata!B$10)*(1+Indata!B$15)^(F59+Indata!B$10-Indata!B$12)*(1)^(F59+Indata!B$10-Indata!B$17)/(1+Indata!B$7)^(F59+Indata!B$10-Indata!B$9)),(1+Indata!B$14)^((Indata!B$12-Indata!B$10)-Indata!B$8+Indata!B$10)*(1+Indata!B$15)^((Indata!B$13-Indata!B$10)+Indata!B$10-Indata!B$12)*(1+Stödberäkningar!G$106)^(F59+Indata!B$10-Indata!B$13)*(1)^(F59+Indata!B$10-Indata!B$17)/(1+Indata!B$7)^(F59+Indata!B$10-Indata!B$9)) -> 0.1659155869
F60: 57 | G60: 35.14848527 | H60: =IF((Indata!B$10+F60)<Indata!B$13,IF((Indata!B$10+F60)<Indata!B$12,(1+Indata!B$14)^(F60-Indata!B$8+Indata!B$10)*(1+Indata!B$16)^(F60+Indata!B$10-Indata!B$17)/(1+Indata!B$7)^(F60+Indata!B$10-Indata!B$9),(1+Indata!B$14)^((Indata!B$12-Indata!B$10)-Indata!B$8+Indata!B$10)*(1+Indata!B$15)^(F60+Indata!B$10-Indata!B$12)*(1+Indata!B$16)^(F60+Indata!B$10-Indata!B$17)/(1+Indata!B$7)^(F60+Indata!B$10-Indata!B$9)),(1+Indata!B$14)^((Indata!B$12-Indata!B$10)-Indata!B$8+Indata!B$10)*(1+Indata!B$15)^((Indata!B$13-Indata!B$10)+Indata!B$10-Indata!B$12)*(1+Stödberäkningar!G$106)^(F60+Indata!B$10-Indata!B$13)*(1+Indata!B$16)^(Indata!B$13-Indata!B$17)/(1+Indata!B$7)^(F60+Indata!B$10-Indata!B$9)) -> 0.2712549329 | T60: 57 | U60: 24.66700252 | V60: =IF((Indata!B$10+F60)<Indata!B$13,IF((Indata!B$10+F60)<Indata!B$12,(1+Indata!B$14)^(F60-Indata!B$8+Indata!B$10)*(1)^(F60+Indata!B$10-Indata!B$17)/(1+Indata!B$7)^(F60+Indata!B$10-Indata!B$9),(1+Indata!B$14)^((Indata!B$12-Indata!B$10)-Indata!B$8+Indata!B$10)*(1+Indata!B$15)^(F60+Indata!B$10-Indata!B$12)*(1)^(F60+Indata!B$10-Indata!B$17)/(1+Indata!B$7)^(F60+Indata!B$10-Indata!B$9)),(1+Indata!B$14)^((Indata!B$12-Indata!B$10)-Indata!B$8+Indata!B$10)*(1+Indata!B$15)^((Indata!B$13-Indata!B$10)+Indata!B$10-Indata!B$12)*(1+Stödberäkningar!G$106)^(F60+Indata!B$10-Indata!B$13)*(1)^(F60+Indata!B$10-Indata!B$17)/(1+Indata!B$7)^(F60+Indata!B$10-Indata!B$9)) -> 0.1603049149
F61: 58 | G61: 35.41056733 | H61: =IF((Indata!B$10+F61)<Indata!B$13,IF((Indata!B$10+F61)<Indata!B$12,(1+Indata!B$14)^(F61-Indata!B$8+Indata!B$10)*(1+Indata!B$16)^(F61+Indata!B$10-Indata!B$17)/(1+Indata!B$7)^(F61+Indata!B$10-Indata!B$9),(1+Indata!B$14)^((Indata!B$12-Indata!B$10)-Indata!B$8+Indata!B$10)*(1+Indata!B$15)^(F61+Indata!B$10-Indata!B$12)*(1+Indata!B$16)^(F61+Indata!B$10-Indata!B$17)/(1+Indata!B$7)^(F61+Indata!B$10-Indata!B$9)),(1+Indata!B$14)^((Indata!B$12-Indata!B$10)-Indata!B$8+Indata!B$10)*(1+Indata!B$15)^((Indata!B$13-Indata!B$10)+Indata!B$10-Indata!B$12)*(1+Stödberäkningar!G$106)^(F61+Indata!B$10-Indata!B$13)*(1+Indata!B$16)^(Indata!B$13-Indata!B$17)/(1+Indata!B$7)^(F61+Indata!B$10-Indata!B$9)) -> 0.2620820608 | T61: 58 | U61: 24.8218865 | V61: =IF((Indata!B$10+F61)<Indata!B$13,IF((Indata!B$10+F61)<Indata!B$12,(1+Indata!B$14)^(F61-Indata!B$8+Indata!B$10)*(1)^(F61+Indata!B$10-Indata!B$17)/(1+Indata!B$7)^(F61+Indata!B$10-Indata!B$9),(1+Indata!B$14)^((Indata!B$12-Indata!B$10)-Indata!B$8+Indata!B$10)*(1+Indata!B$15)^(F61+Indata!B$10-Indata!B$12)*(1)^(F61+Indata!B$10-Indata!B$17)/(1+Indata!B$7)^(F61+Indata!B$10-Indata!B$9)),(1+Indata!B$14)^((Indata!B$12-Indata!B$10)-Indata!B$8+Indata!B$10)*(1+Indata!B$15)^((Indata!B$13-Indata!B$10)+Indata!B$10-Indata!B$12)*(1+Stödberäkningar!G$106)^(F61+Indata!B$10-Indata!B$13)*(1)^(F61+Indata!B$10-Indata!B$17)/(1+Indata!B$7)^(F61+Indata!B$10-Indata!B$9)) -> 0.1548839757
F62: 59 | G62: 35.66378671 | H62: =IF((Indata!B$10+F62)<Indata!B$13,IF((Indata!B$10+F62)<Indata!B$12,(1+Indata!B$14)^(F62-Indata!B$8+Indata!B$10)*(1+Indata!B$16)^(F62+Indata!B$10-Indata!B$17)/(1+Indata!B$7)^(F62+Indata!B$10-Indata!B$9),(1+Indata!B$14)^((Indata!B$12-Indata!B$10)-Indata!B$8+Indata!B$10)*(1+Indata!B$15)^(F62+Indata!B$10-Indata!B$12)*(1+Indata!B$16)^(F62+Indata!B$10-Indata!B$17)/(1+Indata!B$7)^(F62+Indata!B$10-Indata!B$9)),(1+Indata!B$14)^((Indata!B$12-Indata!B$10)-Indata!B$8+Indata!B$10)*(1+Indata!B$15)^((Indata!B$13-Indata!B$10)+Indata!B$10-Indata!B$12)*(1+Stödberäkningar!G$106)^(F62+Indata!B$10-Indata!B$13)*(1+Indata!B$16)^(Indata!B$13-Indata!B$17)/(1+Indata!B$7)^(F62+Indata!B$10-Indata!B$9)) -> 0.2532193824 | T62: 59 | U62: 24.97153285 | V62: =IF((Indata!B$10+F62)<Indata!B$13,IF((Indata!B$10+F62)<Indata!B$12,(1+Indata!B$14)^(F62-Indata!B$8+Indata!B$10)*(1)^(F62+Indata!B$10-Indata!B$17)/(1+Indata!B$7)^(F62+Indata!B$10-Indata!B$9),(1+Indata!B$14)^((Indata!B$12-Indata!B$10)-Indata!B$8+Indata!B$10)*(1+Indata!B$15)^(F62+Indata!B$10-Indata!B$12)*(1)^(F62+Indata!B$10-Indata!B$17)/(1+Indata!B$7)^(F62+Indata!B$10-Indata!B$9)),(1+Indata!B$14)^((Indata!B$12-Indata!B$10)-Indata!B$8+Indata!B$10)*(1+Indata!B$15)^((Indata!B$13-Indata!B$10)+Indata!B$10-Indata!B$12)*(1+Stödberäkningar!G$106)^(F62+Indata!B$10-Indata!B$13)*(1)^(F62+Indata!B$10-Indata!B$17)/(1+Indata!B$7)^(F62+Indata!B$10-Indata!B$9)) -> 0.1496463534
F63: 60 | G63: 35.90844312 | H63: =IF((Indata!B$10+F63)<Indata!B$13,IF((Indata!B$10+F63)<Indata!B$12,(1+Indata!B$14)^(F63-Indata!B$8+Indata!B$10)*(1+Indata!B$16)^(F63+Indata!B$10-Indata!B$17)/(1+Indata!B$7)^(F63+Indata!B$10-Indata!B$9),(1+Indata!B$14)^((Indata!B$12-Indata!B$10)-Indata!B$8+Indata!B$10)*(1+Indata!B$15)^(F63+Indata!B$10-Indata!B$12)*(1+Indata!B$16)^(F63+Indata!B$10-Indata!B$17)/(1+Indata!B$7)^(F63+Indata!B$10-Indata!B$9)),(1+Indata!B$14)^((Indata!B$12-Indata!B$10)-Indata!B$8+Indata!B$10)*(1+Indata!B$15)^((Indata!B$13-Indata!B$10)+Indata!B$10-Indata!B$12)*(1+Stödberäkningar!G$106)^(F63+Indata!B$10-Indata!B$13)*(1+Indata!B$16)^(Indata!B$13-Indata!B$17)/(1+Indata!B$7)^(F63+Indata!B$10-Indata!B$9)) -> 0.2446564081 | T63: 60 | U63: 25.1161187 | V63: =IF((Indata!B$10+F63)<Indata!B$13,IF((Indata!B$10+F63)<Indata!B$12,(1+Indata!B$14)^(F63-Indata!B$8+Indata!B$10)*(1)^(F63+Indata!B$10-Indata!B$17)/(1+Indata!B$7)^(F63+Indata!B$10-Indata!B$9),(1+Indata!B$14)^((Indata!B$12-Indata!B$10)-Indata!B$8+Indata!B$10)*(1+Indata!B$15)^(F63+Indata!B$10-Indata!B$12)*(1)^(F63+Indata!B$10-Indata!B$17)/(1+Indata!B$7)^(F63+Indata!B$10-Indata!B$9)),(1+Indata!B$14)^((Indata!B$12-Indata!B$10)-Indata!B$8+Indata!B$10)*(1+Indata!B$15)^((Indata!B$13-Indata!B$10)+Indata!B$10-Indata!B$12)*(1+Stödberäkningar!G$106)^(F63+Indata!B$10-Indata!B$13)*(1)^(F63+Indata!B$10-Indata!B$17)/(1+Indata!B$7)^(F63+Indata!B$10-Indata!B$9)) -> 0.1445858487
F64: 61 | G64: 36.14482612 | H64: =IF((Indata!B$10+F64)<Indata!B$13,IF((Indata!B$10+F64)<Indata!B$12,(1+Indata!B$14)^(F64-Indata!B$8+Indata!B$10)*(1+Indata!B$16)^(F64+Indata!B$10-Indata!B$17)/(1+Indata!B$7)^(F64+Indata!B$10-Indata!B$9),(1+Indata!B$14)^((Indata!B$12-Indata!B$10)-Indata!B$8+Indata!B$10)*(1+Indata!B$15)^(F64+Indata!B$10-Indata!B$12)*(1+Indata!B$16)^(F64+Indata!B$10-Indata!B$17)/(1+Indata!B$7)^(F64+Indata!B$10-Indata!B$9)),(1+Indata!B$14)^((Indata!B$12-Indata!B$10)-Indata!B$8+Indata!B$10)*(1+Indata!B$15)^((Indata!B$13-Indata!B$10)+Indata!B$10-Indata!B$12)*(1+Stödberäkningar!G$106)^(F64+Indata!B$10-Indata!B$13)*(1+Indata!B$16)^(Indata!B$13-Indata!B$17)/(1+Indata!B$7)^(F64+Indata!B$10-Indata!B$9)) -> 0.236383003 | T64: 61 | U64: 25.25581517 | V64: =IF((Indata!B$10+F64)<Indata!B$13,IF((Indata!B$10+F64)<Indata!B$12,(1+Indata!B$14)^(F64-Indata!B$8+Indata!B$10)*(1)^(F64+Indata!B$10-Indata!B$17)/(1+Indata!B$7)^(F64+Indata!B$10-Indata!B$9),(1+Indata!B$14)^((Indata!B$12-Indata!B$10)-Indata!B$8+Indata!B$10)*(1+Indata!B$15)^(F64+Indata!B$10-Indata!B$12)*(1)^(F64+Indata!B$10-Indata!B$17)/(1+Indata!B$7)^(F64+Indata!B$10-Indata!B$9)),(1+Indata!B$14)^((Indata!B$12-Indata!B$10)-Indata!B$8+Indata!B$10)*(1+Indata!B$15)^((Indata!B$13-Indata!B$10)+Indata!B$10-Indata!B$12)*(1+Stödberäkningar!G$106)^(F64+Indata!B$10-Indata!B$13)*(1)^(F64+Indata!B$10-Indata!B$17)/(1+Indata!B$7)^(F64+Indata!B$10-Indata!B$9)) -> 0.1396964721
F65: 62 | G65: 36.3732155 | H65: =IF((Indata!B$10+F65)<Indata!B$13,IF((Indata!B$10+F65)<Indata!B$12,(1+Indata!B$14)^(F65-Indata!B$8+Indata!B$10)*(1+Indata!B$16)^(F65+Indata!B$10-Indata!B$17)/(1+Indata!B$7)^(F65+Indata!B$10-Indata!B$9),(1+Indata!B$14)^((Indata!B$12-Indata!B$10)-Indata!B$8+Indata!B$10)*(1+Indata!B$15)^(F65+Indata!B$10-Indata!B$12)*(1+Indata!B$16)^(F65+Indata!B$10-Indata!B$17)/(1+Indata!B$7)^(F65+Indata!B$10-Indata!B$9)),(1+Indata!B$14)^((Indata!B$12-Indata!B$10)-Indata!B$8+Indata!B$10)*(1+Indata!B$15)^((Indata!B$13-Indata!B$10)+Indata!B$10-Indata!B$12)*(1+Stödberäkningar!G$106)^(F65+Indata!B$10-Indata!B$13)*(1+Indata!B$16)^(Indata!B$13-Indata!B$17)/(1+Indata!B$7)^(F65+Indata!B$10-Indata!B$9)) -> 0.2283893749 | T65: 62 | U65: 25.39078761 | V65: =IF((Indata!B$10+F65)<Indata!B$13,IF((Indata!B$10+F65)<Indata!B$12,(1+Indata!B$14)^(F65-Indata!B$8+Indata!B$10)*(1)^(F65+Indata!B$10-Indata!B$17)/(1+Indata!B$7)^(F65+Indata!B$10-Indata!B$9),(1+Indata!B$14)^((Indata!B$12-Indata!B$10)-Indata!B$8+Indata!B$10)*(1+Indata!B$15)^(F65+Indata!B$10-Indata!B$12)*(1)^(F65+Indata!B$10-Indata!B$17)/(1+Indata!B$7)^(F65+Indata!B$10-Indata!B$9)),(1+Indata!B$14)^((Indata!B$12-Indata!B$10)-Indata!B$8+Indata!B$10)*(1+Indata!B$15)^((Indata!B$13-Indata!B$10)+Indata!B$10-Indata!B$12)*(1+Stödberäkningar!G$106)^(F65+Indata!B$10-Indata!B$13)*(1)^(F65+Indata!B$10-Indata!B$17)/(1+Indata!B$7)^(F65+Indata!B$10-Indata!B$9)) -> 0.1349724369
F66: 63 | G66: 36.59388156 | H66: =IF((Indata!B$10+F66)<Indata!B$13,IF((Indata!B$10+F66)<Indata!B$12,(1+Indata!B$14)^(F66-Indata!B$8+Indata!B$10)*(1+Indata!B$16)^(F66+Indata!B$10-Indata!B$17)/(1+Indata!B$7)^(F66+Indata!B$10-Indata!B$9),(1+Indata!B$14)^((Indata!B$12-Indata!B$10)-Indata!B$8+Indata!B$10)*(1+Indata!B$15)^(F66+Indata!B$10-Indata!B$12)*(1+Indata!B$16)^(F66+Indata!B$10-Indata!B$17)/(1+Indata!B$7)^(F66+Indata!B$10-Indata!B$9)),(1+Indata!B$14)^((Indata!B$12-Indata!B$10)-Indata!B$8+Indata!B$10)*(1+Indata!B$15)^((Indata!B$13-Indata!B$10)+Indata!B$10-Indata!B$12)*(1+Stödberäkningar!G$106)^(F66+Indata!B$10-Indata!B$13)*(1+Indata!B$16)^(Indata!B$13-Indata!B$17)/(1+Indata!B$7)^(F66+Indata!B$10-Indata!B$9)) -> 0.2206660627 | T66: 63 | U66: 25.52119576 | V66: =IF((Indata!B$10+F66)<Indata!B$13,IF((Indata!B$10+F66)<Indata!B$12,(1+Indata!B$14)^(F66-Indata!B$8+Indata!B$10)*(1)^(F66+Indata!B$10-Indata!B$17)/(1+Indata!B$7)^(F66+Indata!B$10-Indata!B$9),(1+Indata!B$14)^((Indata!B$12-Indata!B$10)-Indata!B$8+Indata!B$10)*(1+Indata!B$15)^(F66+Indata!B$10-Indata!B$12)*(1)^(F66+Indata!B$10-Indata!B$17)/(1+Indata!B$7)^(F66+Indata!B$10-Indata!B$9)),(1+Indata!B$14)^((Indata!B$12-Indata!B$10)-Indata!B$8+Indata!B$10)*(1+Indata!B$15)^((Indata!B$13-Indata!B$10)+Indata!B$10-Indata!B$12)*(1+Stödberäkningar!G$106)^(F66+Indata!B$10-Indata!B$13)*(1)^(F66+Indata!B$10-Indata!B$17)/(1+Indata!B$7)^(F66+Indata!B$10-Indata!B$9)) -> 0.1304081515
F67: 64 | G67: 36.80708549 | H67: =IF((Indata!B$10+F67)<Indata!B$13,IF((Indata!B$10+F67)<Indata!B$12,(1+Indata!B$14)^(F67-Indata!B$8+Indata!B$10)*(1+Indata!B$16)^(F67+Indata!B$10-Indata!B$17)/(1+Indata!B$7)^(F67+Indata!B$10-Indata!B$9),(1+Indata!B$14)^((Indata!B$12-Indata!B$10)-Indata!B$8+Indata!B$10)*(1+Indata!B$15)^(F67+Indata!B$10-Indata!B$12)*(1+Indata!B$16)^(F67+Indata!B$10-Indata!B$17)/(1+Indata!B$7)^(F67+Indata!B$10-Indata!B$9)),(1+Indata!B$14)^((Indata!B$12-Indata!B$10)-Indata!B$8+Indata!B$10)*(1+Indata!B$15)^((Indata!B$13-Indata!B$10)+Indata!B$10-Indata!B$12)*(1+Stödberäkningar!G$106)^(F67+Indata!B$10-Indata!B$13)*(1+Indata!B$16)^(Indata!B$13-Indata!B$17)/(1+Indata!B$7)^(F67+Indata!B$10-Indata!B$9)) -> 0.2132039253 | T67: 64 | U67: 25.64719397 | V67: =IF((Indata!B$10+F67)<Indata!B$13,IF((Indata!B$10+F67)<Indata!B$12,(1+Indata!B$14)^(F67-Indata!B$8+Indata!B$10)*(1)^(F67+Indata!B$10-Indata!B$17)/(1+Indata!B$7)^(F67+Indata!B$10-Indata!B$9),(1+Indata!B$14)^((Indata!B$12-Indata!B$10)-Indata!B$8+Indata!B$10)*(1+Indata!B$15)^(F67+Indata!B$10-Indata!B$12)*(1)^(F67+Indata!B$10-Indata!B$17)/(1+Indata!B$7)^(F67+Indata!B$10-Indata!B$9)),(1+Indata!B$14)^((Indata!B$12-Indata!B$10)-Indata!B$8+Indata!B$10)*(1+Indata!B$15)^((Indata!B$13-Indata!B$10)+Indata!B$10-Indata!B$12)*(1+Stödberäkningar!G$106)^(F67+Indata!B$10-Indata!B$13)*(1)^(F67+Indata!B$10-Indata!B$17)/(1+Indata!B$7)^(F67+Indata!B$10-Indata!B$9)) -> 0.1259982141
F68: 65 | G68: =G67+H68 -> 37.01307962 | H68: =IF((Indata!B$10+F68)<Indata!B$13,IF((Indata!B$10+F68)<Indata!B$12,(1+Indata!B$14)^(F68-Indata!B$8+Indata!B$10)*(1+Indata!B$16)^(F68+Indata!B$10-Indata!B$17)/(1+Indata!B$7)^(F68+Indata!B$10-Indata!B$9),(1+Indata!B$14)^((Indata!B$12-Indata!B$10)-Indata!B$8+Indata!B$10)*(1+Indata!B$15)^(F68+Indata!B$10-Indata!B$12)*(1+Indata!B$16)^(F68+Indata!B$10-Indata!B$17)/(1+Indata!B$7)^(F68+Indata!B$10-Indata!B$9)),(1+Indata!B$14)^((Indata!B$12-Indata!B$10)-Indata!B$8+Indata!B$10)*(1+Indata!B$15)^((Indata!B$13-Indata!B$10)+Indata!B$10-Indata!B$12)*(1+Stödberäkningar!G$106)^(F68+Indata!B$10-Indata!B$13)*(1+Indata!B$16)^(Indata!B$13-Indata!B$17)/(1+Indata!B$7)^(F68+Indata!B$10-Indata!B$9)) -> 0.2059941307 | T68: 65 | U68: 25.76893138 | V68: =IF((Indata!B$10+F68)<Indata!B$13,IF((Indata!B$10+F68)<Indata!B$12,(1+Indata!B$14)^(F68-Indata!B$8+Indata!B$10)*(1)^(F68+Indata!B$10-Indata!B$17)/(1+Indata!B$7)^(F68+Indata!B$10-Indata!B$9),(1+Indata!B$14)^((Indata!B$12-Indata!B$10)-Indata!B$8+Indata!B$10)*(1+Indata!B$15)^(F68+Indata!B$10-Indata!B$12)*(1)^(F68+Indata!B$10-Indata!B$17)/(1+Indata!B$7)^(F68+Indata!B$10-Indata!B$9)),(1+Indata!B$14)^((Indata!B$12-Indata!B$10)-Indata!B$8+Indata!B$10)*(1+Indata!B$15)^((Indata!B$13-Indata!B$10)+Indata!B$10-Indata!B$12)*(1+Stödberäkningar!G$106)^(F68+Indata!B$10-Indata!B$13)*(1)^(F68+Indata!B$10-Indata!B$17)/(1+Indata!B$7)^(F68+Indata!B$10-Indata!B$9)) -> 0.1217374049
F69: 66 | G69: 37.21210776 | H69: =IF((Indata!B$10+F69)<Indata!B$13,IF((Indata!B$10+F69)<Indata!B$12,(1+Indata!B$14)^(F69-Indata!B$8+Indata!B$10)*(1+Indata!B$16)^(F69+Indata!B$10-Indata!B$17)/(1+Indata!B$7)^(F69+Indata!B$10-Indata!B$9),(1+Indata!B$14)^((Indata!B$12-Indata!B$10)-Indata!B$8+Indata!B$10)*(1+Indata!B$15)^(F69+Indata!B$10-Indata!B$12)*(1+Indata!B$16)^(F69+Indata!B$10-Indata!B$17)/(1+Indata!B$7)^(F69+Indata!B$10-Indata!B$9)),(1+Indata!B$14)^((Indata!B$12-Indata!B$10)-Indata!B$8+Indata!B$10)*(1+Indata!B$15)^((Indata!B$13-Indata!B$10)+Indata!B$10-Indata!B$12)*(1+Stödberäkningar!G$106)^(F69+Indata!B$10-Indata!B$13)*(1+Indata!B$16)^(Indata!B$13-Indata!B$17)/(1+Indata!B$7)^(F69+Indata!B$10-Indata!B$9)) -> 0.1990281456 | T69: 66 | U69: =U68+V69 -> 25.88655206 | V69: =IF((Indata!B$10+F69)<Indata!B$13,IF((Indata!B$10+F69)<Indata!B$12,(1+Indata!B$14)^(F69-Indata!B$8+Indata!B$10)*(1)^(F69+Indata!B$10-Indata!B$17)/(1+Indata!B$7)^(F69+Indata!B$10-Indata!B$9),(1+Indata!B$14)^((Indata!B$12-Indata!B$10)-Indata!B$8+Indata!B$10)*(1+Indata!B$15)^(F69+Indata!B$10-Indata!B$12)*(1)^(F69+Indata!B$10-Indata!B$17)/(1+Indata!B$7)^(F69+Indata!B$10-Indata!B$9)),(1+Indata!B$14)^((Indata!B$12-Indata!B$10)-Indata!B$8+Indata!B$10)*(1+Indata!B$15)^((Indata!B$13-Indata!B$10)+Indata!B$10-Indata!B$12)*(1+Stödberäkningar!G$106)^(F69+Indata!B$10-Indata!B$13)*(1)^(F69+Indata!B$10-Indata!B$17)/(1+Indata!B$7)^(F69+Indata!B$10-Indata!B$9)) -> 0.117620681
F70: 67 | G70: 37.40440549 | H70: =IF((Indata!B$10+F70)<Indata!B$13,IF((Indata!B$10+F70)<Indata!B$12,(1+Indata!B$14)^(F70-Indata!B$8+Indata!B$10)*(1+Indata!B$16)^(F70+Indata!B$10-Indata!B$17)/(1+Indata!B$7)^(F70+Indata!B$10-Indata!B$9),(1+Indata!B$14)^((Indata!B$12-Indata!B$10)-Indata!B$8+Indata!B$10)*(1+Indata!B$15)^(F70+Indata!B$10-Indata!B$12)*(1+Indata!B$16)^(F70+Indata!B$10-Indata!B$17)/(1+Indata!B$7)^(F70+Indata!B$10-Indata!B$9)),(1+Indata!B$14)^((Indata!B$12-Indata!B$10)-Indata!B$8+Indata!B$10)*(1+Indata!B$15)^((Indata!B$13-Indata!B$10)+Indata!B$10-Indata!B$12)*(1+Stödberäkningar!G$106)^(F70+Indata!B$10-Indata!B$13)*(1+Indata!B$16)^(Indata!B$13-Indata!B$17)/(1+Indata!B$7)^(F70+Indata!B$10-Indata!B$9)) -> 0.1922977252 | T70: 67 | U70: 26.00019523 | V70: =IF((Indata!B$10+F70)<Indata!B$13,IF((Indata!B$10+F70)<Indata!B$12,(1+Indata!B$14)^(F70-Indata!B$8+Indata!B$10)*(1)^(F70+Indata!B$10-Indata!B$17)/(1+Indata!B$7)^(F70+Indata!B$10-Indata!B$9),(1+Indata!B$14)^((Indata!B$12-Indata!B$10)-Indata!B$8+Indata!B$10)*(1+Indata!B$15)^(F70+Indata!B$10-Indata!B$12)*(1)^(F70+Indata!B$10-Indata!B$17)/(1+Indata!B$7)^(F70+Indata!B$10-Indata!B$9)),(1+Indata!B$14)^((Indata!B$12-Indata!B$10)-Indata!B$8+Indata!B$10)*(1+Indata!B$15)^((Indata!B$13-Indata!B$10)+Indata!B$10-Indata!B$12)*(1+Stödberäkningar!G$106)^(F70+Indata!B$10-Indata!B$13)*(1)^(F70+Indata!B$10-Indata!B$17)/(1+Indata!B$7)^(F70+Indata!B$10-Indata!B$9)) -> 0.1136431701
F71: 68 | G71: 37.59020039 | H71: =IF((Indata!B$10+F71)<Indata!B$13,IF((Indata!B$10+F71)<Indata!B$12,(1+Indata!B$14)^(F71-Indata!B$8+Indata!B$10)*(1+Indata!B$16)^(F71+Indata!B$10-Indata!B$17)/(1+Indata!B$7)^(F71+Indata!B$10-Indata!B$9),(1+Indata!B$14)^((Indata!B$12-Indata!B$10)-Indata!B$8+Indata!B$10)*(1+Indata!B$15)^(F71+Indata!B$10-Indata!B$12)*(1+Indata!B$16)^(F71+Indata!B$10-Indata!B$17)/(1+Indata!B$7)^(F71+Indata!B$10-Indata!B$9)),(1+Indata!B$14)^((Indata!B$12-Indata!B$10)-Indata!B$8+Indata!B$10)*(1+Indata!B$15)^((Indata!B$13-Indata!B$10)+Indata!B$10-Indata!B$12)*(1+Stödberäkningar!G$106)^(F71+Indata!B$10-Indata!B$13)*(1+Indata!B$16)^(Indata!B$13-Indata!B$17)/(1+Indata!B$7)^(F71+Indata!B$10-Indata!B$9)) -> 0.1857949036 | T71: 68 | U71: 26.10999539 | V71: =IF((Indata!B$10+F71)<Indata!B$13,IF((Indata!B$10+F71)<Indata!B$12,(1+Indata!B$14)^(F71-Indata!B$8+Indata!B$10)*(1)^(F71+Indata!B$10-Indata!B$17)/(1+Indata!B$7)^(F71+Indata!B$10-Indata!B$9),(1+Indata!B$14)^((Indata!B$12-Indata!B$10)-Indata!B$8+Indata!B$10)*(1+Indata!B$15)^(F71+Indata!B$10-Indata!B$12)*(1)^(F71+Indata!B$10-Indata!B$17)/(1+Indata!B$7)^(F71+Indata!B$10-Indata!B$9)),(1+Indata!B$14)^((Indata!B$12-Indata!B$10)-Indata!B$8+Indata!B$10)*(1+Indata!B$15)^((Indata!B$13-Indata!B$10)+Indata!B$10-Indata!B$12)*(1+Stödberäkningar!G$106)^(F71+Indata!B$10-Indata!B$13)*(1)^(F71+Indata!B$10-Indata!B$17)/(1+Indata!B$7)^(F71+Indata!B$10-Indata!B$9)) -> 0.1098001643
F72: 69 | G72: 37.76971237 | H72: =IF((Indata!B$10+F72)<Indata!B$13,IF((Indata!B$10+F72)<Indata!B$12,(1+Indata!B$14)^(F72-Indata!B$8+Indata!B$10)*(1+Indata!B$16)^(F72+Indata!B$10-Indata!B$17)/(1+Indata!B$7)^(F72+Indata!B$10-Indata!B$9),(1+Indata!B$14)^((Indata!B$12-Indata!B$10)-Indata!B$8+Indata!B$10)*(1+Indata!B$15)^(F72+Indata!B$10-Indata!B$12)*(1+Indata!B$16)^(F72+Indata!B$10-Indata!B$17)/(1+Indata!B$7)^(F72+Indata!B$10-Indata!B$9)),(1+Indata!B$14)^((Indata!B$12-Indata!B$10)-Indata!B$8+Indata!B$10)*(1+Indata!B$15)^((Indata!B$13-Indata!B$10)+Indata!B$10-Indata!B$12)*(1+Stödberäkningar!G$106)^(F72+Indata!B$10-Indata!B$13)*(1+Indata!B$16)^(Indata!B$13-Indata!B$17)/(1+Indata!B$7)^(F72+Indata!B$10-Indata!B$9)) -> 0.1795119842 | T72: 69 | U72: 26.21608251 | V72: =IF((Indata!B$10+F72)<Indata!B$13,IF((Indata!B$10+F72)<Indata!B$12,(1+Indata!B$14)^(F72-Indata!B$8+Indata!B$10)*(1)^(F72+Indata!B$10-Indata!B$17)/(1+Indata!B$7)^(F72+Indata!B$10-Indata!B$9),(1+Indata!B$14)^((Indata!B$12-Indata!B$10)-Indata!B$8+Indata!B$10)*(1+Indata!B$15)^(F72+Indata!B$10-Indata!B$12)*(1)^(F72+Indata!B$10-Indata!B$17)/(1+Indata!B$7)^(F72+Indata!B$10-Indata!B$9)),(1+Indata!B$14)^((Indata!B$12-Indata!B$10)-Indata!B$8+Indata!B$10)*(1+Indata!B$15)^((Indata!B$13-Indata!B$10)+Indata!B$10-Indata!B$12)*(1+Stödberäkningar!G$106)^(F72+Indata!B$10-Indata!B$13)*(1)^(F72+Indata!B$10-Indata!B$17)/(1+Indata!B$7)^(F72+Indata!B$10-Indata!B$9)) -> 0.1060871153
F73: 70 | G73: 37.94315391 | H73: =IF((Indata!B$10+F73)<Indata!B$13,IF((Indata!B$10+F73)<Indata!B$12,(1+Indata!B$14)^(F73-Indata!B$8+Indata!B$10)*(1+Indata!B$16)^(F73+Indata!B$10-Indata!B$17)/(1+Indata!B$7)^(F73+Indata!B$10-Indata!B$9),(1+Indata!B$14)^((Indata!B$12-Indata!B$10)-Indata!B$8+Indata!B$10)*(1+Indata!B$15)^(F73+Indata!B$10-Indata!B$12)*(1+Indata!B$16)^(F73+Indata!B$10-Indata!B$17)/(1+Indata!B$7)^(F73+Indata!B$10-Indata!B$9)),(1+Indata!B$14)^((Indata!B$12-Indata!B$10)-Indata!B$8+Indata!B$10)*(1+Indata!B$15)^((Indata!B$13-Indata!B$10)+Indata!B$10-Indata!B$12)*(1+Stödberäkningar!G$106)^(F73+Indata!B$10-Indata!B$13)*(1+Indata!B$16)^(Indata!B$13-Indata!B$17)/(1+Indata!B$7)^(F73+Indata!B$10-Indata!B$9)) -> 0.1734415306 | T73: 70 | U73: 26.31858214 | V73: =IF((Indata!B$10+F73)<Indata!B$13,IF((Indata!B$10+F73)<Indata!B$12,(1+Indata!B$14)^(F73-Indata!B$8+Indata!B$10)*(1)^(F73+Indata!B$10-Indata!B$17)/(1+Indata!B$7)^(F73+Indata!B$10-Indata!B$9),(1+Indata!B$14)^((Indata!B$12-Indata!B$10)-Indata!B$8+Indata!B$10)*(1+Indata!B$15)^(F73+Indata!B$10-Indata!B$12)*(1)^(F73+Indata!B$10-Indata!B$17)/(1+Indata!B$7)^(F73+Indata!B$10-Indata!B$9)),(1+Indata!B$14)^((Indata!B$12-Indata!B$10)-Indata!B$8+Indata!B$10)*(1+Indata!B$15)^((Indata!B$13-Indata!B$10)+Indata!B$10-Indata!B$12)*(1+Stödberäkningar!G$106)^(F73+Indata!B$10-Indata!B$13)*(1)^(F73+Indata!B$10-Indata!B$17)/(1+Indata!B$7)^(F73+Indata!B$10-Indata!B$9)) -> 0.1024996283
F74: 71 | G74: 38.11073026 | H74: =IF((Indata!B$10+F74)<Indata!B$13,IF((Indata!B$10+F74)<Indata!B$12,(1+Indata!B$14)^(F74-Indata!B$8+Indata!B$10)*(1+Indata!B$16)^(F74+Indata!B$10-Indata!B$17)/(1+Indata!B$7)^(F74+Indata!B$10-Indata!B$9),(1+Indata!B$14)^((Indata!B$12-Indata!B$10)-Indata!B$8+Indata!B$10)*(1+Indata!B$15)^(F74+Indata!B$10-Indata!B$12)*(1+Indata!B$16)^(F74+Indata!B$10-Indata!B$17)/(1+Indata!B$7)^(F74+Indata!B$10-Indata!B$9)),(1+Indata!B$14)^((Indata!B$12-Indata!B$10)-Indata!B$8+Indata!B$10)*(1+Indata!B$15)^((Indata!B$13-Indata!B$10)+Indata!B$10-Indata!B$12)*(1+Stödberäkningar!G$106)^(F74+Indata!B$10-Indata!B$13)*(1+Indata!B$16)^(Indata!B$13-Indata!B$17)/(1+Indata!B$7)^(F74+Indata!B$10-Indata!B$9)) -> 0.1675763581 | T74: 71 | U74: 26.41761559 | V74: =IF((Indata!B$10+F74)<Indata!B$13,IF((Indata!B$10+F74)<Indata!B$12,(1+Indata!B$14)^(F74-Indata!B$8+Indata!B$10)*(1)^(F74+Indata!B$10-Indata!B$17)/(1+Indata!B$7)^(F74+Indata!B$10-Indata!B$9),(1+Indata!B$14)^((Indata!B$12-Indata!B$10)-Indata!B$8+Indata!B$10)*(1+Indata!B$15)^(F74+Indata!B$10-Indata!B$12)*(1)^(F74+Indata!B$10-Indata!B$17)/(1+Indata!B$7)^(F74+Indata!B$10-Indata!B$9)),(1+Indata!B$14)^((Indata!B$12-Indata!B$10)-Indata!B$8+Indata!B$10)*(1+Indata!B$15)^((Indata!B$13-Indata!B$10)+Indata!B$10-Indata!B$12)*(1+Stödberäkningar!G$106)^(F74+Indata!B$10-Indata!B$13)*(1)^(F74+Indata!B$10-Indata!B$17)/(1+Indata!B$7)^(F74+Indata!B$10-Indata!B$9)) -> 0.09903345731
F75: 72 | G75: 38.27263979 | H75: =IF((Indata!B$10+F75)<Indata!B$13,IF((Indata!B$10+F75)<Indata!B$12,(1+Indata!B$14)^(F75-Indata!B$8+Indata!B$10)*(1+Indata!B$16)^(F75+Indata!B$10-Indata!B$17)/(1+Indata!B$7)^(F75+Indata!B$10-Indata!B$9),(1+Indata!B$14)^((Indata!B$12-Indata!B$10)-Indata!B$8+Indata!B$10)*(1+Indata!B$15)^(F75+Indata!B$10-Indata!B$12)*(1+Indata!B$16)^(F75+Indata!B$10-Indata!B$17)/(1+Indata!B$7)^(F75+Indata!B$10-Indata!B$9)),(1+Indata!B$14)^((Indata!B$12-Indata!B$10)-Indata!B$8+Indata!B$10)*(1+Indata!B$15)^((Indata!B$13-Indata!B$10)+Indata!B$10-Indata!B$12)*(1+Stödberäkningar!G$106)^(F75+Indata!B$10-Indata!B$13)*(1+Indata!B$16)^(Indata!B$13-Indata!B$17)/(1+Indata!B$7)^(F75+Indata!B$10-Indata!B$9)) -> 0.1619095247 | T75: 72 | U75: 26.51330009 | V75: =IF((Indata!B$10+F75)<Indata!B$13,IF((Indata!B$10+F75)<Indata!B$12,(1+Indata!B$14)^(F75-Indata!B$8+Indata!B$10)*(1)^(F75+Indata!B$10-Indata!B$17)/(1+Indata!B$7)^(F75+Indata!B$10-Indata!B$9),(1+Indata!B$14)^((Indata!B$12-Indata!B$10)-Indata!B$8+Indata!B$10)*(1+Indata!B$15)^(F75+Indata!B$10-Indata!B$12)*(1)^(F75+Indata!B$10-Indata!B$17)/(1+Indata!B$7)^(F75+Indata!B$10-Indata!B$9)),(1+Indata!B$14)^((Indata!B$12-Indata!B$10)-Indata!B$8+Indata!B$10)*(1+Indata!B$15)^((Indata!B$13-Indata!B$10)+Indata!B$10-Indata!B$12)*(1+Stödberäkningar!G$106)^(F75+Indata!B$10-Indata!B$13)*(1)^(F75+Indata!B$10-Indata!B$17)/(1+Indata!B$7)^(F75+Indata!B$10-Indata!B$9)) -> 0.09568449982
F76: 73 | G76: 38.42907411 | H76: =IF((Indata!B$10+F76)<Indata!B$13,IF((Indata!B$10+F76)<Indata!B$12,(1+Indata!B$14)^(F76-Indata!B$8+Indata!B$10)*(1+Indata!B$16)^(F76+Indata!B$10-Indata!B$17)/(1+Indata!B$7)^(F76+Indata!B$10-Indata!B$9),(1+Indata!B$14)^((Indata!B$12-Indata!B$10)-Indata!B$8+Indata!B$10)*(1+Indata!B$15)^(F76+Indata!B$10-Indata!B$12)*(1+Indata!B$16)^(F76+Indata!B$10-Indata!B$17)/(1+Indata!B$7)^(F76+Indata!B$10-Indata!B$9)),(1+Indata!B$14)^((Indata!B$12-Indata!B$10)-Indata!B$8+Indata!B$10)*(1+Indata!B$15)^((Indata!B$13-Indata!B$10)+Indata!B$10-Indata!B$12)*(1+Stödberäkningar!G$106)^(F76+Indata!B$10-Indata!B$13)*(1+Indata!B$16)^(Indata!B$13-Indata!B$17)/(1+Indata!B$7)^(F76+Indata!B$10-Indata!B$9)) -> 0.1564343234 | T76: 73 | U76: 26.60574889 | V76: =IF((Indata!B$10+F76)<Indata!B$13,IF((Indata!B$10+F76)<Indata!B$12,(1+Indata!B$14)^(F76-Indata!B$8+Indata!B$10)*(1)^(F76+Indata!B$10-Indata!B$17)/(1+Indata!B$7)^(F76+Indata!B$10-Indata!B$9),(1+Indata!B$14)^((Indata!B$12-Indata!B$10)-Indata!B$8+Indata!B$10)*(1+Indata!B$15)^(F76+Indata!B$10-Indata!B$12)*(1)^(F76+Indata!B$10-Indata!B$17)/(1+Indata!B$7)^(F76+Indata!B$10-Indata!B$9)),(1+Indata!B$14)^((Indata!B$12-Indata!B$10)-Indata!B$8+Indata!B$10)*(1+Indata!B$15)^((Indata!B$13-Indata!B$10)+Indata!B$10-Indata!B$12)*(1+Stödberäkningar!G$106)^(F76+Indata!B$10-Indata!B$13)*(1)^(F76+Indata!B$10-Indata!B$17)/(1+Indata!B$7)^(F76+Indata!B$10-Indata!B$9)) -> 0.09244879209
F77: 74 | G77: 38.58021839 | H77: =IF((Indata!B$10+F77)<Indata!B$13,IF((Indata!B$10+F77)<Indata!B$12,(1+Indata!B$14)^(F77-Indata!B$8+Indata!B$10)*(1+Indata!B$16)^(F77+Indata!B$10-Indata!B$17)/(1+Indata!B$7)^(F77+Indata!B$10-Indata!B$9),(1+Indata!B$14)^((Indata!B$12-Indata!B$10)-Indata!B$8+Indata!B$10)*(1+Indata!B$15)^(F77+Indata!B$10-Indata!B$12)*(1+Indata!B$16)^(F77+Indata!B$10-Indata!B$17)/(1+Indata!B$7)^(F77+Indata!B$10-Indata!B$9)),(1+Indata!B$14)^((Indata!B$12-Indata!B$10)-Indata!B$8+Indata!B$10)*(1+Indata!B$15)^((Indata!B$13-Indata!B$10)+Indata!B$10-Indata!B$12)*(1+Stödberäkningar!G$106)^(F77+Indata!B$10-Indata!B$13)*(1+Indata!B$16)^(Indata!B$13-Indata!B$17)/(1+Indata!B$7)^(F77+Indata!B$10-Indata!B$9)) -> 0.1511442738 | T77: 74 | U77: 26.69507139 | V77: =IF((Indata!B$10+F77)<Indata!B$13,IF((Indata!B$10+F77)<Indata!B$12,(1+Indata!B$14)^(F77-Indata!B$8+Indata!B$10)*(1)^(F77+Indata!B$10-Indata!B$17)/(1+Indata!B$7)^(F77+Indata!B$10-Indata!B$9),(1+Indata!B$14)^((Indata!B$12-Indata!B$10)-Indata!B$8+Indata!B$10)*(1+Indata!B$15)^(F77+Indata!B$10-Indata!B$12)*(1)^(F77+Indata!B$10-Indata!B$17)/(1+Indata!B$7)^(F77+Indata!B$10-Indata!B$9)),(1+Indata!B$14)^((Indata!B$12-Indata!B$10)-Indata!B$8+Indata!B$10)*(1+Indata!B$15)^((Indata!B$13-Indata!B$10)+Indata!B$10-Indata!B$12)*(1+Stödberäkningar!G$106)^(F77+Indata!B$10-Indata!B$13)*(1)^(F77+Indata!B$10-Indata!B$17)/(1+Indata!B$7)^(F77+Indata!B$10-Indata!B$9)) -> 0.08932250444
F78: 75 | G78: 38.7262515 | H78: =IF((Indata!B$10+F78)<Indata!B$13,IF((Indata!B$10+F78)<Indata!B$12,(1+Indata!B$14)^(F78-Indata!B$8+Indata!B$10)*(1+Indata!B$16)^(F78+Indata!B$10-Indata!B$17)/(1+Indata!B$7)^(F78+Indata!B$10-Indata!B$9),(1+Indata!B$14)^((Indata!B$12-Indata!B$10)-Indata!B$8+Indata!B$10)*(1+Indata!B$15)^(F78+Indata!B$10-Indata!B$12)*(1+Indata!B$16)^(F78+Indata!B$10-Indata!B$17)/(1+Indata!B$7)^(F78+Indata!B$10-Indata!B$9)),(1+Indata!B$14)^((Indata!B$12-Indata!B$10)-Indata!B$8+Indata!B$10)*(1+Indata!B$15)^((Indata!B$13-Indata!B$10)+Indata!B$10-Indata!B$12)*(1+Stödberäkningar!G$106)^(F78+Indata!B$10-Indata!B$13)*(1+Indata!B$16)^(Indata!B$13-Indata!B$17)/(1+Indata!B$7)^(F78+Indata!B$10-Indata!B$9)) -> 0.1460331148 | T78: 75 | U78: 26.78137333 | V78: =IF((Indata!B$10+F78)<Indata!B$13,IF((Indata!B$10+F78)<Indata!B$12,(1+Indata!B$14)^(F78-Indata!B$8+Indata!B$10)*(1)^(F78+Indata!B$10-Indata!B$17)/(1+Indata!B$7)^(F78+Indata!B$10-Indata!B$9),(1+Indata!B$14)^((Indata!B$12-Indata!B$10)-Indata!B$8+Indata!B$10)*(1+Indata!B$15)^(F78+Indata!B$10-Indata!B$12)*(1)^(F78+Indata!B$10-Indata!B$17)/(1+Indata!B$7)^(F78+Indata!B$10-Indata!B$9)),(1+Indata!B$14)^((Indata!B$12-Indata!B$10)-Indata!B$8+Indata!B$10)*(1+Indata!B$15)^((Indata!B$13-Indata!B$10)+Indata!B$10-Indata!B$12)*(1+Stödberäkningar!G$106)^(F78+Indata!B$10-Indata!B$13)*(1)^(F78+Indata!B$10-Indata!B$17)/(1+Indata!B$7)^(F78+Indata!B$10-Indata!B$9)) -> 0.08630193666
F79: 76 | G79: 38.8673463 | H79: =IF((Indata!B$10+F79)<Indata!B$13,IF((Indata!B$10+F79)<Indata!B$12,(1+Indata!B$14)^(F79-Indata!B$8+Indata!B$10)*(1+Indata!B$16)^(F79+Indata!B$10-Indata!B$17)/(1+Indata!B$7)^(F79+Indata!B$10-Indata!B$9),(1+Indata!B$14)^((Indata!B$12-Indata!B$10)-Indata!B$8+Indata!B$10)*(1+Indata!B$15)^(F79+Indata!B$10-Indata!B$12)*(1+Indata!B$16)^(F79+Indata!B$10-Indata!B$17)/(1+Indata!B$7)^(F79+Indata!B$10-Indata!B$9)),(1+Indata!B$14)^((Indata!B$12-Indata!B$10)-Indata!B$8+Indata!B$10)*(1+Indata!B$15)^((Indata!B$13-Indata!B$10)+Indata!B$10-Indata!B$12)*(1+Stödberäkningar!G$106)^(F79+Indata!B$10-Indata!B$13)*(1+Indata!B$16)^(Indata!B$13-Indata!B$17)/(1+Indata!B$7)^(F79+Indata!B$10-Indata!B$9)) -> 0.1410947969 | T79: 76 | U79: 26.86475684 | V79: =IF((Indata!B$10+F79)<Indata!B$13,IF((Indata!B$10+F79)<Indata!B$12,(1+Indata!B$14)^(F79-Indata!B$8+Indata!B$10)*(1)^(F79+Indata!B$10-Indata!B$17)/(1+Indata!B$7)^(F79+Indata!B$10-Indata!B$9),(1+Indata!B$14)^((Indata!B$12-Indata!B$10)-Indata!B$8+Indata!B$10)*(1+Indata!B$15)^(F79+Indata!B$10-Indata!B$12)*(1)^(F79+Indata!B$10-Indata!B$17)/(1+Indata!B$7)^(F79+Indata!B$10-Indata!B$9)),(1+Indata!B$14)^((Indata!B$12-Indata!B$10)-Indata!B$8+Indata!B$10)*(1+Indata!B$15)^((Indata!B$13-Indata!B$10)+Indata!B$10-Indata!B$12)*(1+Stödberäkningar!G$106)^(F79+Indata!B$10-Indata!B$13)*(1)^(F79+Indata!B$10-Indata!B$17)/(1+Indata!B$7)^(F79+Indata!B$10-Indata!B$9)) -> 0.08338351368
F80: 77 | G80: 39.00366977 | H80: =IF((Indata!B$10+F80)<Indata!B$13,IF((Indata!B$10+F80)<Indata!B$12,(1+Indata!B$14)^(F80-Indata!B$8+Indata!B$10)*(1+Indata!B$16)^(F80+Indata!B$10-Indata!B$17)/(1+Indata!B$7)^(F80+Indata!B$10-Indata!B$9),(1+Indata!B$14)^((Indata!B$12-Indata!B$10)-Indata!B$8+Indata!B$10)*(1+Indata!B$15)^(F80+Indata!B$10-Indata!B$12)*(1+Indata!B$16)^(F80+Indata!B$10-Indata!B$17)/(1+Indata!B$7)^(F80+Indata!B$10-Indata!B$9)),(1+Indata!B$14)^((Indata!B$12-Indata!B$10)-Indata!B$8+Indata!B$10)*(1+Indata!B$15)^((Indata!B$13-Indata!B$10)+Indata!B$10-Indata!B$12)*(1+Stödberäkningar!G$106)^(F80+Indata!B$10-Indata!B$13)*(1+Indata!B$16)^(Indata!B$13-Indata!B$17)/(1+Indata!B$7)^(F80+Indata!B$10-Indata!B$9)) -> 0.1363234753 | T80: 77 | U80: 26.94532062 | V80: =IF((Indata!B$10+F80)<Indata!B$13,IF((Indata!B$10+F80)<Indata!B$12,(1+Indata!B$14)^(F80-Indata!B$8+Indata!B$10)*(1)^(F80+Indata!B$10-Indata!B$17)/(1+Indata!B$7)^(F80+Indata!B$10-Indata!B$9),(1+Indata!B$14)^((Indata!B$12-Indata!B$10)-Indata!B$8+Indata!B$10)*(1+Indata!B$15)^(F80+Indata!B$10-Indata!B$12)*(1)^(F80+Indata!B$10-Indata!B$17)/(1+Indata!B$7)^(F80+Indata!B$10-Indata!B$9)),(1+Indata!B$14)^((Indata!B$12-Indata!B$10)-Indata!B$8+Indata!B$10)*(1+Indata!B$15)^((Indata!B$13-Indata!B$10)+Indata!B$10-Indata!B$12)*(1+Stödberäkningar!G$106)^(F80+Indata!B$10-Indata!B$13)*(1)^(F80+Indata!B$10-Indata!B$17)/(1+Indata!B$7)^(F80+Indata!B$10-Indata!B$9)) -> 0.08056378133
F81: 78 | G81: 39.13538327 | H81: =IF((Indata!B$10+F81)<Indata!B$13,IF((Indata!B$10+F81)<Indata!B$12,(1+Indata!B$14)^(F81-Indata!B$8+Indata!B$10)*(1+Indata!B$16)^(F81+Indata!B$10-Indata!B$17)/(1+Indata!B$7)^(F81+Indata!B$10-Indata!B$9),(1+Indata!B$14)^((Indata!B$12-Indata!B$10)-Indata!B$8+Indata!B$10)*(1+Indata!B$15)^(F81+Indata!B$10-Indata!B$12)*(1+Indata!B$16)^(F81+Indata!B$10-Indata!B$17)/(1+Indata!B$7)^(F81+Indata!B$10-Indata!B$9)),(1+Indata!B$14)^((Indata!B$12-Indata!B$10)-Indata!B$8+Indata!B$10)*(1+Indata!B$15)^((Indata!B$13-Indata!B$10)+Indata!B$10-Indata!B$12)*(1+Stödberäkningar!G$106)^(F81+Indata!B$10-Indata!B$13)*(1+Indata!B$16)^(Indata!B$13-Indata!B$17)/(1+Indata!B$7)^(F81+Indata!B$10-Indata!B$9)) -> 0.1317135027 | T81: 78 | U81: 27.02316002 | V81: =IF((Indata!B$10+F81)<Indata!B$13,IF((Indata!B$10+F81)<Indata!B$12,(1+Indata!B$14)^(F81-Indata!B$8+Indata!B$10)*(1)^(F81+Indata!B$10-Indata!B$17)/(1+Indata!B$7)^(F81+Indata!B$10-Indata!B$9),(1+Indata!B$14)^((Indata!B$12-Indata!B$10)-Indata!B$8+Indata!B$10)*(1+Indata!B$15)^(F81+Indata!B$10-Indata!B$12)*(1)^(F81+Indata!B$10-Indata!B$17)/(1+Indata!B$7)^(F81+Indata!B$10-Indata!B$9)),(1+Indata!B$14)^((Indata!B$12-Indata!B$10)-Indata!B$8+Indata!B$10)*(1+Indata!B$15)^((Indata!B$13-Indata!B$10)+Indata!B$10-Indata!B$12)*(1+Stödberäkningar!G$106)^(F81+Indata!B$10-Indata!B$13)*(1)^(F81+Indata!B$10-Indata!B$17)/(1+Indata!B$7)^(F81+Indata!B$10-Indata!B$9)) -> 0.07783940225
F82: 79 | G82: 39.2626427 | H82: =IF((Indata!B$10+F82)<Indata!B$13,IF((Indata!B$10+F82)<Indata!B$12,(1+Indata!B$14)^(F82-Indata!B$8+Indata!B$10)*(1+Indata!B$16)^(F82+Indata!B$10-Indata!B$17)/(1+Indata!B$7)^(F82+Indata!B$10-Indata!B$9),(1+Indata!B$14)^((Indata!B$12-Indata!B$10)-Indata!B$8+Indata!B$10)*(1+Indata!B$15)^(F82+Indata!B$10-Indata!B$12)*(1+Indata!B$16)^(F82+Indata!B$10-Indata!B$17)/(1+Indata!B$7)^(F82+Indata!B$10-Indata!B$9)),(1+Indata!B$14)^((Indata!B$12-Indata!B$10)-Indata!B$8+Indata!B$10)*(1+Indata!B$15)^((Indata!B$13-Indata!B$10)+Indata!B$10-Indata!B$12)*(1+Stödberäkningar!G$106)^(F82+Indata!B$10-Indata!B$13)*(1+Indata!B$16)^(Indata!B$13-Indata!B$17)/(1+Indata!B$7)^(F82+Indata!B$10-Indata!B$9)) -> 0.1272594229 | T82: 79 | U82: 27.09836718 | V82: =IF((Indata!B$10+F82)<Indata!B$13,IF((Indata!B$10+F82)<Indata!B$12,(1+Indata!B$14)^(F82-Indata!B$8+Indata!B$10)*(1)^(F82+Indata!B$10-Indata!B$17)/(1+Indata!B$7)^(F82+Indata!B$10-Indata!B$9),(1+Indata!B$14)^((Indata!B$12-Indata!B$10)-Indata!B$8+Indata!B$10)*(1+Indata!B$15)^(F82+Indata!B$10-Indata!B$12)*(1)^(F82+Indata!B$10-Indata!B$17)/(1+Indata!B$7)^(F82+Indata!B$10-Indata!B$9)),(1+Indata!B$14)^((Indata!B$12-Indata!B$10)-Indata!B$8+Indata!B$10)*(1+Indata!B$15)^((Indata!B$13-Indata!B$10)+Indata!B$10-Indata!B$12)*(1+Stödberäkningar!G$106)^(F82+Indata!B$10-Indata!B$13)*(1)^(F82+Indata!B$10-Indata!B$17)/(1+Indata!B$7)^(F82+Indata!B$10-Indata!B$9)) -> 0.07520715193
F83: 80 | G83: 39.38559866 | H83: =IF((Indata!B$10+F83)<Indata!B$13,IF((Indata!B$10+F83)<Indata!B$12,(1+Indata!B$14)^(F83-Indata!B$8+Indata!B$10)*(1+Indata!B$16)^(F83+Indata!B$10-Indata!B$17)/(1+Indata!B$7)^(F83+Indata!B$10-Indata!B$9),(1+Indata!B$14)^((Indata!B$12-Indata!B$10)-Indata!B$8+Indata!B$10)*(1+Indata!B$15)^(F83+Indata!B$10-Indata!B$12)*(1+Indata!B$16)^(F83+Indata!B$10-Indata!B$17)/(1+Indata!B$7)^(F83+Indata!B$10-Indata!B$9)),(1+Indata!B$14)^((Indata!B$12-Indata!B$10)-Indata!B$8+Indata!B$10)*(1+Indata!B$15)^((Indata!B$13-Indata!B$10)+Indata!B$10-Indata!B$12)*(1+Stödberäkningar!G$106)^(F83+Indata!B$10-Indata!B$13)*(1+Indata!B$16)^(Indata!B$13-Indata!B$17)/(1+Indata!B$7)^(F83+Indata!B$10-Indata!B$9)) -> 0.1229559641 | T83: 80 | U83: 27.17103109 | V83: =IF((Indata!B$10+F83)<Indata!B$13,IF((Indata!B$10+F83)<Indata!B$12,(1+Indata!B$14)^(F83-Indata!B$8+Indata!B$10)*(1)^(F83+Indata!B$10-Indata!B$17)/(1+Indata!B$7)^(F83+Indata!B$10-Indata!B$9),(1+Indata!B$14)^((Indata!B$12-Indata!B$10)-Indata!B$8+Indata!B$10)*(1+Indata!B$15)^(F83+Indata!B$10-Indata!B$12)*(1)^(F83+Indata!B$10-Indata!B$17)/(1+Indata!B$7)^(F83+Indata!B$10-Indata!B$9)),(1+Indata!B$14)^((Indata!B$12-Indata!B$10)-Indata!B$8+Indata!B$10)*(1+Indata!B$15)^((Indata!B$13-Indata!B$10)+Indata!B$10-Indata!B$12)*(1+Stödberäkningar!G$106)^(F83+Indata!B$10-Indata!B$13)*(1)^(F83+Indata!B$10-Indata!B$17)/(1+Indata!B$7)^(F83+Indata!B$10-Indata!B$9)) -> 0.07266391491
F84: 81 | G84: 39.50439669 | H84: =IF((Indata!B$10+F84)<Indata!B$13,IF((Indata!B$10+F84)<Indata!B$12,(1+Indata!B$14)^(F84-Indata!B$8+Indata!B$10)*(1+Indata!B$16)^(F84+Indata!B$10-Indata!B$17)/(1+Indata!B$7)^(F84+Indata!B$10-Indata!B$9),(1+Indata!B$14)^((Indata!B$12-Indata!B$10)-Indata!B$8+Indata!B$10)*(1+Indata!B$15)^(F84+Indata!B$10-Indata!B$12)*(1+Indata!B$16)^(F84+Indata!B$10-Indata!B$17)/(1+Indata!B$7)^(F84+Indata!B$10-Indata!B$9)),(1+Indata!B$14)^((Indata!B$12-Indata!B$10)-Indata!B$8+Indata!B$10)*(1+Indata!B$15)^((Indata!B$13-Indata!B$10)+Indata!B$10-Indata!B$12)*(1+Stödberäkningar!G$106)^(F84+Indata!B$10-Indata!B$13)*(1+Indata!B$16)^(Indata!B$13-Indata!B$17)/(1+Indata!B$7)^(F84+Indata!B$10-Indata!B$9)) -> 0.118798033 | T84: 81 | U84: 27.24123777 | V84: =IF((Indata!B$10+F84)<Indata!B$13,IF((Indata!B$10+F84)<Indata!B$12,(1+Indata!B$14)^(F84-Indata!B$8+Indata!B$10)*(1)^(F84+Indata!B$10-Indata!B$17)/(1+Indata!B$7)^(F84+Indata!B$10-Indata!B$9),(1+Indata!B$14)^((Indata!B$12-Indata!B$10)-Indata!B$8+Indata!B$10)*(1+Indata!B$15)^(F84+Indata!B$10-Indata!B$12)*(1)^(F84+Indata!B$10-Indata!B$17)/(1+Indata!B$7)^(F84+Indata!B$10-Indata!B$9)),(1+Indata!B$14)^((Indata!B$12-Indata!B$10)-Indata!B$8+Indata!B$10)*(1+Indata!B$15)^((Indata!B$13-Indata!B$10)+Indata!B$10-Indata!B$12)*(1+Stödberäkningar!G$106)^(F84+Indata!B$10-Indata!B$13)*(1)^(F84+Indata!B$10-Indata!B$17)/(1+Indata!B$7)^(F84+Indata!B$10-Indata!B$9)) -> 0.07020668107
F85: 82 | G85: 39.6191774 | H85: =IF((Indata!B$10+F85)<Indata!B$13,IF((Indata!B$10+F85)<Indata!B$12,(1+Indata!B$14)^(F85-Indata!B$8+Indata!B$10)*(1+Indata!B$16)^(F85+Indata!B$10-Indata!B$17)/(1+Indata!B$7)^(F85+Indata!B$10-Indata!B$9),(1+Indata!B$14)^((Indata!B$12-Indata!B$10)-Indata!B$8+Indata!B$10)*(1+Indata!B$15)^(F85+Indata!B$10-Indata!B$12)*(1+Indata!B$16)^(F85+Indata!B$10-Indata!B$17)/(1+Indata!B$7)^(F85+Indata!B$10-Indata!B$9)),(1+Indata!B$14)^((Indata!B$12-Indata!B$10)-Indata!B$8+Indata!B$10)*(1+Indata!B$15)^((Indata!B$13-Indata!B$10)+Indata!B$10-Indata!B$12)*(1+Stödberäkningar!G$106)^(F85+Indata!B$10-Indata!B$13)*(1+Indata!B$16)^(Indata!B$13-Indata!B$17)/(1+Indata!B$7)^(F85+Indata!B$10-Indata!B$9)) -> 0.1147807082 | T85: 82 | U85: 27.30907032 | V85: =IF((Indata!B$10+F85)<Indata!B$13,IF((Indata!B$10+F85)<Indata!B$12,(1+Indata!B$14)^(F85-Indata!B$8+Indata!B$10)*(1)^(F85+Indata!B$10-Indata!B$17)/(1+Indata!B$7)^(F85+Indata!B$10-Indata!B$9),(1+Indata!B$14)^((Indata!B$12-Indata!B$10)-Indata!B$8+Indata!B$10)*(1+Indata!B$15)^(F85+Indata!B$10-Indata!B$12)*(1)^(F85+Indata!B$10-Indata!B$17)/(1+Indata!B$7)^(F85+Indata!B$10-Indata!B$9)),(1+Indata!B$14)^((Indata!B$12-Indata!B$10)-Indata!B$8+Indata!B$10)*(1+Indata!B$15)^((Indata!B$13-Indata!B$10)+Indata!B$10-Indata!B$12)*(1+Stödberäkningar!G$106)^(F85+Indata!B$10-Indata!B$13)*(1)^(F85+Indata!B$10-Indata!B$17)/(1+Indata!B$7)^(F85+Indata!B$10-Indata!B$9)) -> 0.0678325421
F86: 83 | G86: 39.73007664 | H86: =IF((Indata!B$10+F86)<Indata!B$13,IF((Indata!B$10+F86)<Indata!B$12,(1+Indata!B$14)^(F86-Indata!B$8+Indata!B$10)*(1+Indata!B$16)^(F86+Indata!B$10-Indata!B$17)/(1+Indata!B$7)^(F86+Indata!B$10-Indata!B$9),(1+Indata!B$14)^((Indata!B$12-Indata!B$10)-Indata!B$8+Indata!B$10)*(1+Indata!B$15)^(F86+Indata!B$10-Indata!B$12)*(1+Indata!B$16)^(F86+Indata!B$10-Indata!B$17)/(1+Indata!B$7)^(F86+Indata!B$10-Indata!B$9)),(1+Indata!B$14)^((Indata!B$12-Indata!B$10)-Indata!B$8+Indata!B$10)*(1+Indata!B$15)^((Indata!B$13-Indata!B$10)+Indata!B$10-Indata!B$12)*(1+Stödberäkningar!G$106)^(F86+Indata!B$10-Indata!B$13)*(1+Indata!B$16)^(Indata!B$13-Indata!B$17)/(1+Indata!B$7)^(F86+Indata!B$10-Indata!B$9)) -> 0.110899235 | T86: 83 | U86: 27.374609 | V86: =IF((Indata!B$10+F86)<Indata!B$13,IF((Indata!B$10+F86)<Indata!B$12,(1+Indata!B$14)^(F86-Indata!B$8+Indata!B$10)*(1)^(F86+Indata!B$10-Indata!B$17)/(1+Indata!B$7)^(F86+Indata!B$10-Indata!B$9),(1+Indata!B$14)^((Indata!B$12-Indata!B$10)-Indata!B$8+Indata!B$10)*(1+Indata!B$15)^(F86+Indata!B$10-Indata!B$12)*(1)^(F86+Indata!B$10-Indata!B$17)/(1+Indata!B$7)^(F86+Indata!B$10-Indata!B$9)),(1+Indata!B$14)^((Indata!B$12-Indata!B$10)-Indata!B$8+Indata!B$10)*(1+Indata!B$15)^((Indata!B$13-Indata!B$10)+Indata!B$10-Indata!B$12)*(1+Stödberäkningar!G$106)^(F86+Indata!B$10-Indata!B$13)*(1)^(F86+Indata!B$10-Indata!B$17)/(1+Indata!B$7)^(F86+Indata!B$10-Indata!B$9)) -> 0.06553868802
F87: 84 | G87: 39.83722566 | H87: =IF((Indata!B$10+F87)<Indata!B$13,IF((Indata!B$10+F87)<Indata!B$12,(1+Indata!B$14)^(F87-Indata!B$8+Indata!B$10)*(1+Indata!B$16)^(F87+Indata!B$10-Indata!B$17)/(1+Indata!B$7)^(F87+Indata!B$10-Indata!B$9),(1+Indata!B$14)^((Indata!B$12-Indata!B$10)-Indata!B$8+Indata!B$10)*(1+Indata!B$15)^(F87+Indata!B$10-Indata!B$12)*(1+Indata!B$16)^(F87+Indata!B$10-Indata!B$17)/(1+Indata!B$7)^(F87+Indata!B$10-Indata!B$9)),(1+Indata!B$14)^((Indata!B$12-Indata!B$10)-Indata!B$8+Indata!B$10)*(1+Indata!B$15)^((Indata!B$13-Indata!B$10)+Indata!B$10-Indata!B$12)*(1+Stödberäkningar!G$106)^(F87+Indata!B$10-Indata!B$13)*(1+Indata!B$16)^(Indata!B$13-Indata!B$17)/(1+Indata!B$7)^(F87+Indata!B$10-Indata!B$9)) -> 0.1071490193 | T87: 84 | U87: 27.43793141 | V87: =IF((Indata!B$10+F87)<Indata!B$13,IF((Indata!B$10+F87)<Indata!B$12,(1+Indata!B$14)^(F87-Indata!B$8+Indata!B$10)*(1)^(F87+Indata!B$10-Indata!B$17)/(1+Indata!B$7)^(F87+Indata!B$10-Indata!B$9),(1+Indata!B$14)^((Indata!B$12-Indata!B$10)-Indata!B$8+Indata!B$10)*(1+Indata!B$15)^(F87+Indata!B$10-Indata!B$12)*(1)^(F87+Indata!B$10-Indata!B$17)/(1+Indata!B$7)^(F87+Indata!B$10-Indata!B$9)),(1+Indata!B$14)^((Indata!B$12-Indata!B$10)-Indata!B$8+Indata!B$10)*(1+Indata!B$15)^((Indata!B$13-Indata!B$10)+Indata!B$10-Indata!B$12)*(1+Stödberäkningar!G$106)^(F87+Indata!B$10-Indata!B$13)*(1)^(F87+Indata!B$10-Indata!B$17)/(1+Indata!B$7)^(F87+Indata!B$10-Indata!B$9)) -> 0.06332240388
F88: 85 | G88: 39.94075128 | H88: =IF((Indata!B$10+F88)<Indata!B$13,IF((Indata!B$10+F88)<Indata!B$12,(1+Indata!B$14)^(F88-Indata!B$8+Indata!B$10)*(1+Indata!B$16)^(F88+Indata!B$10-Indata!B$17)/(1+Indata!B$7)^(F88+Indata!B$10-Indata!B$9),(1+Indata!B$14)^((Indata!B$12-Indata!B$10)-Indata!B$8+Indata!B$10)*(1+Indata!B$15)^(F88+Indata!B$10-Indata!B$12)*(1+Indata!B$16)^(F88+Indata!B$10-Indata!B$17)/(1+Indata!B$7)^(F88+Indata!B$10-Indata!B$9)),(1+Indata!B$14)^((Indata!B$12-Indata!B$10)-Indata!B$8+Indata!B$10)*(1+Indata!B$15)^((Indata!B$13-Indata!B$10)+Indata!B$10-Indata!B$12)*(1+Stödberäkningar!G$106)^(F88+Indata!B$10-Indata!B$13)*(1+Indata!B$16)^(Indata!B$13-Indata!B$17)/(1+Indata!B$7)^(F88+Indata!B$10-Indata!B$9)) -> 0.1035256225 | T88: 85 | U88: 27.49911247 | V88: =IF((Indata!B$10+F88)<Indata!B$13,IF((Indata!B$10+F88)<Indata!B$12,(1+Indata!B$14)^(F88-Indata!B$8+Indata!B$10)*(1)^(F88+Indata!B$10-Indata!B$17)/(1+Indata!B$7)^(F88+Indata!B$10-Indata!B$9),(1+Indata!B$14)^((Indata!B$12-Indata!B$10)-Indata!B$8+Indata!B$10)*(1+Indata!B$15)^(F88+Indata!B$10-Indata!B$12)*(1)^(F88+Indata!B$10-Indata!B$17)/(1+Indata!B$7)^(F88+Indata!B$10-Indata!B$9)),(1+Indata!B$14)^((Indata!B$12-Indata!B$10)-Indata!B$8+Indata!B$10)*(1+Indata!B$15)^((Indata!B$13-Indata!B$10)+Indata!B$10-Indata!B$12)*(1+Stödberäkningar!G$106)^(F88+Indata!B$10-Indata!B$13)*(1)^(F88+Indata!B$10-Indata!B$17)/(1+Indata!B$7)^(F88+Indata!B$10-Indata!B$9)) -> 0.06118106656
F89: 86 | G89: 40.04077604 | H89: =IF((Indata!B$10+F89)<Indata!B$13,IF((Indata!B$10+F89)<Indata!B$12,(1+Indata!B$14)^(F89-Indata!B$8+Indata!B$10)*(1+Indata!B$16)^(F89+Indata!B$10-Indata!B$17)/(1+Indata!B$7)^(F89+Indata!B$10-Indata!B$9),(1+Indata!B$14)^((Indata!B$12-Indata!B$10)-Indata!B$8+Indata!B$10)*(1+Indata!B$15)^(F89+Indata!B$10-Indata!B$12)*(1+Indata!B$16)^(F89+Indata!B$10-Indata!B$17)/(1+Indata!B$7)^(F89+Indata!B$10-Indata!B$9)),(1+Indata!B$14)^((Indata!B$12-Indata!B$10)-Indata!B$8+Indata!B$10)*(1+Indata!B$15)^((Indata!B$13-Indata!B$10)+Indata!B$10-Indata!B$12)*(1+Stödberäkningar!G$106)^(F89+Indata!B$10-Indata!B$13)*(1+Indata!B$16)^(Indata!B$13-Indata!B$17)/(1+Indata!B$7)^(F89+Indata!B$10-Indata!B$9)) -> 0.100024756 | T89: 86 | U89: 27.55822462 | V89: =IF((Indata!B$10+F89)<Indata!B$13,IF((Indata!B$10+F89)<Indata!B$12,(1+Indata!B$14)^(F89-Indata!B$8+Indata!B$10)*(1)^(F89+Indata!B$10-Indata!B$17)/(1+Indata!B$7)^(F89+Indata!B$10-Indata!B$9),(1+Indata!B$14)^((Indata!B$12-Indata!B$10)-Indata!B$8+Indata!B$10)*(1+Indata!B$15)^(F89+Indata!B$10-Indata!B$12)*(1)^(F89+Indata!B$10-Indata!B$17)/(1+Indata!B$7)^(F89+Indata!B$10-Indata!B$9)),(1+Indata!B$14)^((Indata!B$12-Indata!B$10)-Indata!B$8+Indata!B$10)*(1+Indata!B$15)^((Indata!B$13-Indata!B$10)+Indata!B$10-Indata!B$12)*(1+Stödberäkningar!G$106)^(F89+Indata!B$10-Indata!B$13)*(1)^(F89+Indata!B$10-Indata!B$17)/(1+Indata!B$7)^(F89+Indata!B$10-Indata!B$9)) -> 0.0591121416
F90: 87 | G90: 40.13741831 | H90: =IF((Indata!B$10+F90)<Indata!B$13,IF((Indata!B$10+F90)<Indata!B$12,(1+Indata!B$14)^(F90-Indata!B$8+Indata!B$10)*(1+Indata!B$16)^(F90+Indata!B$10-Indata!B$17)/(1+Indata!B$7)^(F90+Indata!B$10-Indata!B$9),(1+Indata!B$14)^((Indata!B$12-Indata!B$10)-Indata!B$8+Indata!B$10)*(1+Indata!B$15)^(F90+Indata!B$10-Indata!B$12)*(1+Indata!B$16)^(F90+Indata!B$10-Indata!B$17)/(1+Indata!B$7)^(F90+Indata!B$10-Indata!B$9)),(1+Indata!B$14)^((Indata!B$12-Indata!B$10)-Indata!B$8+Indata!B$10)*(1+Indata!B$15)^((Indata!B$13-Indata!B$10)+Indata!B$10-Indata!B$12)*(1+Stödberäkningar!G$106)^(F90+Indata!B$10-Indata!B$13)*(1+Indata!B$16)^(Indata!B$13-Indata!B$17)/(1+Indata!B$7)^(F90+Indata!B$10-Indata!B$9)) -> 0.09664227636 | T90: 87 | U90: 27.6153378 | V90: =IF((Indata!B$10+F90)<Indata!B$13,IF((Indata!B$10+F90)<Indata!B$12,(1+Indata!B$14)^(F90-Indata!B$8+Indata!B$10)*(1)^(F90+Indata!B$10-Indata!B$17)/(1+Indata!B$7)^(F90+Indata!B$10-Indata!B$9),(1+Indata!B$14)^((Indata!B$12-Indata!B$10)-Indata!B$8+Indata!B$10)*(1+Indata!B$15)^(F90+Indata!B$10-Indata!B$12)*(1)^(F90+Indata!B$10-Indata!B$17)/(1+Indata!B$7)^(F90+Indata!B$10-Indata!B$9)),(1+Indata!B$14)^((Indata!B$12-Indata!B$10)-Indata!B$8+Indata!B$10)*(1+Indata!B$15)^((Indata!B$13-Indata!B$10)+Indata!B$10-Indata!B$12)*(1+Stödberäkningar!G$106)^(F90+Indata!B$10-Indata!B$13)*(1)^(F90+Indata!B$10-Indata!B$17)/(1+Indata!B$7)^(F90+Indata!B$10-Indata!B$9)) -> 0.05711318029
F91: 88 | G91: 40.23079249 | H91: =IF((Indata!B$10+F91)<Indata!B$13,IF((Indata!B$10+F91)<Indata!B$12,(1+Indata!B$14)^(F91-Indata!B$8+Indata!B$10)*(1+Indata!B$16)^(F91+Indata!B$10-Indata!B$17)/(1+Indata!B$7)^(F91+Indata!B$10-Indata!B$9),(1+Indata!B$14)^((Indata!B$12-Indata!B$10)-Indata!B$8+Indata!B$10)*(1+Indata!B$15)^(F91+Indata!B$10-Indata!B$12)*(1+Indata!B$16)^(F91+Indata!B$10-Indata!B$17)/(1+Indata!B$7)^(F91+Indata!B$10-Indata!B$9)),(1+Indata!B$14)^((Indata!B$12-Indata!B$10)-Indata!B$8+Indata!B$10)*(1+Indata!B$15)^((Indata!B$13-Indata!B$10)+Indata!B$10-Indata!B$12)*(1+Stödberäkningar!G$106)^(F91+Indata!B$10-Indata!B$13)*(1+Indata!B$16)^(Indata!B$13-Indata!B$17)/(1+Indata!B$7)^(F91+Indata!B$10-Indata!B$9)) -> 0.09337418006 | T91: 88 | U91: 27.67051961 | V91: =IF((Indata!B$10+F91)<Indata!B$13,IF((Indata!B$10+F91)<Indata!B$12,(1+Indata!B$14)^(F91-Indata!B$8+Indata!B$10)*(1)^(F91+Indata!B$10-Indata!B$17)/(1+Indata!B$7)^(F91+Indata!B$10-Indata!B$9),(1+Indata!B$14)^((Indata!B$12-Indata!B$10)-Indata!B$8+Indata!B$10)*(1+Indata!B$15)^(F91+Indata!B$10-Indata!B$12)*(1)^(F91+Indata!B$10-Indata!B$17)/(1+Indata!B$7)^(F91+Indata!B$10-Indata!B$9)),(1+Indata!B$14)^((Indata!B$12-Indata!B$10)-Indata!B$8+Indata!B$10)*(1+Indata!B$15)^((Indata!B$13-Indata!B$10)+Indata!B$10-Indata!B$12)*(1+Stödberäkningar!G$106)^(F91+Indata!B$10-Indata!B$13)*(1)^(F91+Indata!B$10-Indata!B$17)/(1+Indata!B$7)^(F91+Indata!B$10-Indata!B$9)) -> 0.0551818167
F92: 89 | G92: 40.32100909 | H92: =IF((Indata!B$10+F92)<Indata!B$13,IF((Indata!B$10+F92)<Indata!B$12,(1+Indata!B$14)^(F92-Indata!B$8+Indata!B$10)*(1+Indata!B$16)^(F92+Indata!B$10-Indata!B$17)/(1+Indata!B$7)^(F92+Indata!B$10-Indata!B$9),(1+Indata!B$14)^((Indata!B$12-Indata!B$10)-Indata!B$8+Indata!B$10)*(1+Indata!B$15)^(F92+Indata!B$10-Indata!B$12)*(1+Indata!B$16)^(F92+Indata!B$10-Indata!B$17)/(1+Indata!B$7)^(F92+Indata!B$10-Indata!B$9)),(1+Indata!B$14)^((Indata!B$12-Indata!B$10)-Indata!B$8+Indata!B$10)*(1+Indata!B$15)^((Indata!B$13-Indata!B$10)+Indata!B$10-Indata!B$12)*(1+Stödberäkningar!G$106)^(F92+Indata!B$10-Indata!B$13)*(1+Indata!B$16)^(Indata!B$13-Indata!B$17)/(1+Indata!B$7)^(F92+Indata!B$10-Indata!B$9)) -> 0.09021659909 | T92: 89 | U92: 27.72383538 | V92: =IF((Indata!B$10+F92)<Indata!B$13,IF((Indata!B$10+F92)<Indata!B$12,(1+Indata!B$14)^(F92-Indata!B$8+Indata!B$10)*(1)^(F92+Indata!B$10-Indata!B$17)/(1+Indata!B$7)^(F92+Indata!B$10-Indata!B$9),(1+Indata!B$14)^((Indata!B$12-Indata!B$10)-Indata!B$8+Indata!B$10)*(1+Indata!B$15)^(F92+Indata!B$10-Indata!B$12)*(1)^(F92+Indata!B$10-Indata!B$17)/(1+Indata!B$7)^(F92+Indata!B$10-Indata!B$9)),(1+Indata!B$14)^((Indata!B$12-Indata!B$10)-Indata!B$8+Indata!B$10)*(1+Indata!B$15)^((Indata!B$13-Indata!B$10)+Indata!B$10-Indata!B$12)*(1+Stödberäkningar!G$106)^(F92+Indata!B$10-Indata!B$13)*(1)^(F92+Indata!B$10-Indata!B$17)/(1+Indata!B$7)^(F92+Indata!B$10-Indata!B$9)) -> 0.05331576493
F93: 90 | G93: 40.40817489 | H93: =IF((Indata!B$10+F93)<Indata!B$13,IF((Indata!B$10+F93)<Indata!B$12,(1+Indata!B$14)^(F93-Indata!B$8+Indata!B$10)*(1+Indata!B$16)^(F93+Indata!B$10-Indata!B$17)/(1+Indata!B$7)^(F93+Indata!B$10-Indata!B$9),(1+Indata!B$14)^((Indata!B$12-Indata!B$10)-Indata!B$8+Indata!B$10)*(1+Indata!B$15)^(F93+Indata!B$10-Indata!B$12)*(1+Indata!B$16)^(F93+Indata!B$10-Indata!B$17)/(1+Indata!B$7)^(F93+Indata!B$10-Indata!B$9)),(1+Indata!B$14)^((Indata!B$12-Indata!B$10)-Indata!B$8+Indata!B$10)*(1+Indata!B$15)^((Indata!B$13-Indata!B$10)+Indata!B$10-Indata!B$12)*(1+Stödberäkningar!G$106)^(F93+Indata!B$10-Indata!B$13)*(1+Indata!B$16)^(Indata!B$13-Indata!B$17)/(1+Indata!B$7)^(F93+Indata!B$10-Indata!B$9)) -> 0.08716579622 | T93: 90 | U93: 27.77534819 | V93: =IF((Indata!B$10+F93)<Indata!B$13,IF((Indata!B$10+F93)<Indata!B$12,(1+Indata!B$14)^(F93-Indata!B$8+Indata!B$10)*(1)^(F93+Indata!B$10-Indata!B$17)/(1+Indata!B$7)^(F93+Indata!B$10-Indata!B$9),(1+Indata!B$14)^((Indata!B$12-Indata!B$10)-Indata!B$8+Indata!B$10)*(1+Indata!B$15)^(F93+Indata!B$10-Indata!B$12)*(1)^(F93+Indata!B$10-Indata!B$17)/(1+Indata!B$7)^(F93+Indata!B$10-Indata!B$9)),(1+Indata!B$14)^((Indata!B$12-Indata!B$10)-Indata!B$8+Indata!B$10)*(1+Indata!B$15)^((Indata!B$13-Indata!B$10)+Indata!B$10-Indata!B$12)*(1+Stödberäkningar!G$106)^(F93+Indata!B$10-Indata!B$13)*(1)^(F93+Indata!B$10-Indata!B$17)/(1+Indata!B$7)^(F93+Indata!B$10-Indata!B$9)) -> 0.05151281636
F94: 91 | G94: 40.49239305 | H94: =IF((Indata!B$10+F94)<Indata!B$13,IF((Indata!B$10+F94)<Indata!B$12,(1+Indata!B$14)^(F94-Indata!B$8+Indata!B$10)*(1+Indata!B$16)^(F94+Indata!B$10-Indata!B$17)/(1+Indata!B$7)^(F94+Indata!B$10-Indata!B$9),(1+Indata!B$14)^((Indata!B$12-Indata!B$10)-Indata!B$8+Indata!B$10)*(1+Indata!B$15)^(F94+Indata!B$10-Indata!B$12)*(1+Indata!B$16)^(F94+Indata!B$10-Indata!B$17)/(1+Indata!B$7)^(F94+Indata!B$10-Indata!B$9)),(1+Indata!B$14)^((Indata!B$12-Indata!B$10)-Indata!B$8+Indata!B$10)*(1+Indata!B$15)^((Indata!B$13-Indata!B$10)+Indata!B$10-Indata!B$12)*(1+Stödberäkningar!G$106)^(F94+Indata!B$10-Indata!B$13)*(1+Indata!B$16)^(Indata!B$13-Indata!B$17)/(1+Indata!B$7)^(F94+Indata!B$10-Indata!B$9)) -> 0.0842181606 | T94: 91 | U94: 27.82511903 | V94: =IF((Indata!B$10+F94)<Indata!B$13,IF((Indata!B$10+F94)<Indata!B$12,(1+Indata!B$14)^(F94-Indata!B$8+Indata!B$10)*(1)^(F94+Indata!B$10-Indata!B$17)/(1+Indata!B$7)^(F94+Indata!B$10-Indata!B$9),(1+Indata!B$14)^((Indata!B$12-Indata!B$10)-Indata!B$8+Indata!B$10)*(1+Indata!B$15)^(F94+Indata!B$10-Indata!B$12)*(1)^(F94+Indata!B$10-Indata!B$17)/(1+Indata!B$7)^(F94+Indata!B$10-Indata!B$9)),(1+Indata!B$14)^((Indata!B$12-Indata!B$10)-Indata!B$8+Indata!B$10)*(1+Indata!B$15)^((Indata!B$13-Indata!B$10)+Indata!B$10-Indata!B$12)*(1+Stödberäkningar!G$106)^(F94+Indata!B$10-Indata!B$13)*(1)^(F94+Indata!B$10-Indata!B$17)/(1+Indata!B$7)^(F94+Indata!B$10-Indata!B$9)) -> 0.04977083706
F95: 92 | G95: 40.57376325 | H95: =IF((Indata!B$10+F95)<Indata!B$13,IF((Indata!B$10+F95)<Indata!B$12,(1+Indata!B$14)^(F95-Indata!B$8+Indata!B$10)*(1+Indata!B$16)^(F95+Indata!B$10-Indata!B$17)/(1+Indata!B$7)^(F95+Indata!B$10-Indata!B$9),(1+Indata!B$14)^((Indata!B$12-Indata!B$10)-Indata!B$8+Indata!B$10)*(1+Indata!B$15)^(F95+Indata!B$10-Indata!B$12)*(1+Indata!B$16)^(F95+Indata!B$10-Indata!B$17)/(1+Indata!B$7)^(F95+Indata!B$10-Indata!B$9)),(1+Indata!B$14)^((Indata!B$12-Indata!B$10)-Indata!B$8+Indata!B$10)*(1+Indata!B$15)^((Indata!B$13-Indata!B$10)+Indata!B$10-Indata!B$12)*(1+Stödberäkningar!G$106)^(F95+Indata!B$10-Indata!B$13)*(1+Indata!B$16)^(Indata!B$13-Indata!B$17)/(1+Indata!B$7)^(F95+Indata!B$10-Indata!B$9)) -> 0.08137020348 | T95: 92 | U95: 27.8732068 | V95: =IF((Indata!B$10+F95)<Indata!B$13,IF((Indata!B$10+F95)<Indata!B$12,(1+Indata!B$14)^(F95-Indata!B$8+Indata!B$10)*(1)^(F95+Indata!B$10-Indata!B$17)/(1+Indata!B$7)^(F95+Indata!B$10-Indata!B$9),(1+Indata!B$14)^((Indata!B$12-Indata!B$10)-Indata!B$8+Indata!B$10)*(1+Indata!B$15)^(F95+Indata!B$10-Indata!B$12)*(1)^(F95+Indata!B$10-Indata!B$17)/(1+Indata!B$7)^(F95+Indata!B$10-Indata!B$9)),(1+Indata!B$14)^((Indata!B$12-Indata!B$10)-Indata!B$8+Indata!B$10)*(1+Indata!B$15)^((Indata!B$13-Indata!B$10)+Indata!B$10-Indata!B$12)*(1+Stödberäkningar!G$106)^(F95+Indata!B$10-Indata!B$13)*(1)^(F95+Indata!B$10-Indata!B$17)/(1+Indata!B$7)^(F95+Indata!B$10-Indata!B$9)) -> 0.04808776528
F96: 93 | G96: 40.65238181 | H96: =IF((Indata!B$10+F96)<Indata!B$13,IF((Indata!B$10+F96)<Indata!B$12,(1+Indata!B$14)^(F96-Indata!B$8+Indata!B$10)*(1+Indata!B$16)^(F96+Indata!B$10-Indata!B$17)/(1+Indata!B$7)^(F96+Indata!B$10-Indata!B$9),(1+Indata!B$14)^((Indata!B$12-Indata!B$10)-Indata!B$8+Indata!B$10)*(1+Indata!B$15)^(F96+Indata!B$10-Indata!B$12)*(1+Indata!B$16)^(F96+Indata!B$10-Indata!B$17)/(1+Indata!B$7)^(F96+Indata!B$10-Indata!B$9)),(1+Indata!B$14)^((Indata!B$12-Indata!B$10)-Indata!B$8+Indata!B$10)*(1+Indata!B$15)^((Indata!B$13-Indata!B$10)+Indata!B$10-Indata!B$12)*(1+Stödberäkningar!G$106)^(F96+Indata!B$10-Indata!B$13)*(1+Indata!B$16)^(Indata!B$13-Indata!B$17)/(1+Indata!B$7)^(F96+Indata!B$10-Indata!B$9)) -> 0.07861855409 | T96: 93 | U96: 27.9196684 | V96: =IF((Indata!B$10+F96)<Indata!B$13,IF((Indata!B$10+F96)<Indata!B$12,(1+Indata!B$14)^(F96-Indata!B$8+Indata!B$10)*(1)^(F96+Indata!B$10-Indata!B$17)/(1+Indata!B$7)^(F96+Indata!B$10-Indata!B$9),(1+Indata!B$14)^((Indata!B$12-Indata!B$10)-Indata!B$8+Indata!B$10)*(1+Indata!B$15)^(F96+Indata!B$10-Indata!B$12)*(1)^(F96+Indata!B$10-Indata!B$17)/(1+Indata!B$7)^(F96+Indata!B$10-Indata!B$9)),(1+Indata!B$14)^((Indata!B$12-Indata!B$10)-Indata!B$8+Indata!B$10)*(1+Indata!B$15)^((Indata!B$13-Indata!B$10)+Indata!B$10-Indata!B$12)*(1+Stödberäkningar!G$106)^(F96+Indata!B$10-Indata!B$13)*(1)^(F96+Indata!B$10-Indata!B$17)/(1+Indata!B$7)^(F96+Indata!B$10-Indata!B$9)) -> 0.04646160896
F97: 94 | G97: 40.72834176 | H97: =IF((Indata!B$10+F97)<Indata!B$13,IF((Indata!B$10+F97)<Indata!B$12,(1+Indata!B$14)^(F97-Indata!B$8+Indata!B$10)*(1+Indata!B$16)^(F97+Indata!B$10-Indata!B$17)/(1+Indata!B$7)^(F97+Indata!B$10-Indata!B$9),(1+Indata!B$14)^((Indata!B$12-Indata!B$10)-Indata!B$8+Indata!B$10)*(1+Indata!B$15)^(F97+Indata!B$10-Indata!B$12)*(1+Indata!B$16)^(F97+Indata!B$10-Indata!B$17)/(1+Indata!B$7)^(F97+Indata!B$10-Indata!B$9)),(1+Indata!B$14)^((Indata!B$12-Indata!B$10)-Indata!B$8+Indata!B$10)*(1+Indata!B$15)^((Indata!B$13-Indata!B$10)+Indata!B$10-Indata!B$12)*(1+Stödberäkningar!G$106)^(F97+Indata!B$10-Indata!B$13)*(1+Indata!B$16)^(Indata!B$13-Indata!B$17)/(1+Indata!B$7)^(F97+Indata!B$10-Indata!B$9)) -> 0.07595995564 | T97: 94 | U97: 27.96455885 | V97: =IF((Indata!B$10+F97)<Indata!B$13,IF((Indata!B$10+F97)<Indata!B$12,(1+Indata!B$14)^(F97-Indata!B$8+Indata!B$10)*(1)^(F97+Indata!B$10-Indata!B$17)/(1+Indata!B$7)^(F97+Indata!B$10-Indata!B$9),(1+Indata!B$14)^((Indata!B$12-Indata!B$10)-Indata!B$8+Indata!B$10)*(1+Indata!B$15)^(F97+Indata!B$10-Indata!B$12)*(1)^(F97+Indata!B$10-Indata!B$17)/(1+Indata!B$7)^(F97+Indata!B$10-Indata!B$9)),(1+Indata!B$14)^((Indata!B$12-Indata!B$10)-Indata!B$8+Indata!B$10)*(1+Indata!B$15)^((Indata!B$13-Indata!B$10)+Indata!B$10-Indata!B$12)*(1+Stödberäkningar!G$106)^(F97+Indata!B$10-Indata!B$13)*(1)^(F97+Indata!B$10-Indata!B$17)/(1+Indata!B$7)^(F97+Indata!B$10-Indata!B$9)) -> 0.04489044344
F98: 95 | G98: 40.80173302 | H98: =IF((Indata!B$10+F98)<Indata!B$13,IF((Indata!B$10+F98)<Indata!B$12,(1+Indata!B$14)^(F98-Indata!B$8+Indata!B$10)*(1+Indata!B$16)^(F98+Indata!B$10-Indata!B$17)/(1+Indata!B$7)^(F98+Indata!B$10-Indata!B$9),(1+Indata!B$14)^((Indata!B$12-Indata!B$10)-Indata!B$8+Indata!B$10)*(1+Indata!B$15)^(F98+Indata!B$10-Indata!B$12)*(1+Indata!B$16)^(F98+Indata!B$10-Indata!B$17)/(1+Indata!B$7)^(F98+Indata!B$10-Indata!B$9)),(1+Indata!B$14)^((Indata!B$12-Indata!B$10)-Indata!B$8+Indata!B$10)*(1+Indata!B$15)^((Indata!B$13-Indata!B$10)+Indata!B$10-Indata!B$12)*(1+Stödberäkningar!G$106)^(F98+Indata!B$10-Indata!B$13)*(1+Indata!B$16)^(Indata!B$13-Indata!B$17)/(1+Indata!B$7)^(F98+Indata!B$10-Indata!B$9)) -> 0.07339126149 | T98: 95 | U98: 28.00793126 | V98: =IF((Indata!B$10+F98)<Indata!B$13,IF((Indata!B$10+F98)<Indata!B$12,(1+Indata!B$14)^(F98-Indata!B$8+Indata!B$10)*(1)^(F98+Indata!B$10-Indata!B$17)/(1+Indata!B$7)^(F98+Indata!B$10-Indata!B$9),(1+Indata!B$14)^((Indata!B$12-Indata!B$10)-Indata!B$8+Indata!B$10)*(1+Indata!B$15)^(F98+Indata!B$10-Indata!B$12)*(1)^(F98+Indata!B$10-Indata!B$17)/(1+Indata!B$7)^(F98+Indata!B$10-Indata!B$9)),(1+Indata!B$14)^((Indata!B$12-Indata!B$10)-Indata!B$8+Indata!B$10)*(1+Indata!B$15)^((Indata!B$13-Indata!B$10)+Indata!B$10-Indata!B$12)*(1+Stödberäkningar!G$106)^(F98+Indata!B$10-Indata!B$13)*(1)^(F98+Indata!B$10-Indata!B$17)/(1+Indata!B$7)^(F98+Indata!B$10-Indata!B$9)) -> 0.04337240912
F99: 96 | G99: 40.87264245 | H99: =IF((Indata!B$10+F99)<Indata!B$13,IF((Indata!B$10+F99)<Indata!B$12,(1+Indata!B$14)^(F99-Indata!B$8+Indata!B$10)*(1+Indata!B$16)^(F99+Indata!B$10-Indata!B$17)/(1+Indata!B$7)^(F99+Indata!B$10-Indata!B$9),(1+Indata!B$14)^((Indata!B$12-Indata!B$10)-Indata!B$8+Indata!B$10)*(1+Indata!B$15)^(F99+Indata!B$10-Indata!B$12)*(1+Indata!B$16)^(F99+Indata!B$10-Indata!B$17)/(1+Indata!B$7)^(F99+Indata!B$10-Indata!B$9)),(1+Indata!B$14)^((Indata!B$12-Indata!B$10)-Indata!B$8+Indata!B$10)*(1+Indata!B$15)^((Indata!B$13-Indata!B$10)+Indata!B$10-Indata!B$12)*(1+Stödberäkningar!G$106)^(F99+Indata!B$10-Indata!B$13)*(1+Indata!B$16)^(Indata!B$13-Indata!B$17)/(1+Indata!B$7)^(F99+Indata!B$10-Indata!B$9)) -> 0.07090943139 | T99: 96 | U99: 28.04983697 | V99: =IF((Indata!B$10+F99)<Indata!B$13,IF((Indata!B$10+F99)<Indata!B$12,(1+Indata!B$14)^(F99-Indata!B$8+Indata!B$10)*(1)^(F99+Indata!B$10-Indata!B$17)/(1+Indata!B$7)^(F99+Indata!B$10-Indata!B$9),(1+Indata!B$14)^((Indata!B$12-Indata!B$10)-Indata!B$8+Indata!B$10)*(1+Indata!B$15)^(F99+Indata!B$10-Indata!B$12)*(1)^(F99+Indata!B$10-Indata!B$17)/(1+Indata!B$7)^(F99+Indata!B$10-Indata!B$9)),(1+Indata!B$14)^((Indata!B$12-Indata!B$10)-Indata!B$8+Indata!B$10)*(1+Indata!B$15)^((Indata!B$13-Indata!B$10)+Indata!B$10-Indata!B$12)*(1+Stödberäkningar!G$106)^(F99+Indata!B$10-Indata!B$13)*(1)^(F99+Indata!B$10-Indata!B$17)/(1+Indata!B$7)^(F99+Indata!B$10-Indata!B$9)) -> 0.0419057093
F100: 97 | G100: =G99+H100 -> 40.94115398 | H100: =IF((Indata!B$10+F100)<Indata!B$13,IF((Indata!B$10+F100)<Indata!B$12,(1+Indata!B$14)^(F100-Indata!B$8+Indata!B$10)*(1+Indata!B$16)^(F100+Indata!B$10-Indata!B$17)/(1+Indata!B$7)^(F100+Indata!B$10-Indata!B$9),(1+Indata!B$14)^((Indata!B$12-Indata!B$10)-Indata!B$8+Indata!B$10)*(1+Indata!B$15)^(F100+Indata!B$10-Indata!B$12)*(1+Indata!B$16)^(F100+Indata!B$10-Indata!B$17)/(1+Indata!B$7)^(F100+Indata!B$10-Indata!B$9)),(1+Indata!B$14)^((Indata!B$12-Indata!B$10)-Indata!B$8+Indata!B$10)*(1+Indata!B$15)^((Indata!B$13-Indata!B$10)+Indata!B$10-Indata!B$12)*(1+Stödberäkningar!G$106)^(F100+Indata!B$10-Indata!B$13)*(1+Indata!B$16)^(Indata!B$13-Indata!B$17)/(1+Indata!B$7)^(F100+Indata!B$10-Indata!B$9)) -> 0.06851152791 | T100: 97 | U100: 28.09032557 | V100: =IF((Indata!B$10+F100)<Indata!B$13,IF((Indata!B$10+F100)<Indata!B$12,(1+Indata!B$14)^(F100-Indata!B$8+Indata!B$10)*(1)^(F100+Indata!B$10-Indata!B$17)/(1+Indata!B$7)^(F100+Indata!B$10-Indata!B$9),(1+Indata!B$14)^((Indata!B$12-Indata!B$10)-Indata!B$8+Indata!B$10)*(1+Indata!B$15)^(F100+Indata!B$10-Indata!B$12)*(1)^(F100+Indata!B$10-Indata!B$17)/(1+Indata!B$7)^(F100+Indata!B$10-Indata!B$9)),(1+Indata!B$14)^((Indata!B$12-Indata!B$10)-Indata!B$8+Indata!B$10)*(1+Indata!B$15)^((Indata!B$13-Indata!B$10)+Indata!B$10-Indata!B$12)*(1+Stödberäkningar!G$106)^(F100+Indata!B$10-Indata!B$13)*(1)^(F100+Indata!B$10-Indata!B$17)/(1+Indata!B$7)^(F100+Indata!B$10-Indata!B$9)) -> 0.04048860802
F101: 98 | G101: 41.00734869 | H101: =IF((Indata!B$10+F101)<Indata!B$13,IF((Indata!B$10+F101)<Indata!B$12,(1+Indata!B$14)^(F101-Indata!B$8+Indata!B$10)*(1+Indata!B$16)^(F101+Indata!B$10-Indata!B$17)/(1+Indata!B$7)^(F101+Indata!B$10-Indata!B$9),(1+Indata!B$14)^((Indata!B$12-Indata!B$10)-Indata!B$8+Indata!B$10)*(1+Indata!B$15)^(F101+Indata!B$10-Indata!B$12)*(1+Indata!B$16)^(F101+Indata!B$10-Indata!B$17)/(1+Indata!B$7)^(F101+Indata!B$10-Indata!B$9)),(1+Indata!B$14)^((Indata!B$12-Indata!B$10)-Indata!B$8+Indata!B$10)*(1+Indata!B$15)^((Indata!B$13-Indata!B$10)+Indata!B$10-Indata!B$12)*(1+Stödberäkningar!G$106)^(F101+Indata!B$10-Indata!B$13)*(1+Indata!B$16)^(Indata!B$13-Indata!B$17)/(1+Indata!B$7)^(F101+Indata!B$10-Indata!B$9)) -> 0.06619471296 | T101: 98 | U101: 28.129445 | V101: =IF((Indata!B$10+F101)<Indata!B$13,IF((Indata!B$10+F101)<Indata!B$12,(1+Indata!B$14)^(F101-Indata!B$8+Indata!B$10)*(1)^(F101+Indata!B$10-Indata!B$17)/(1+Indata!B$7)^(F101+Indata!B$10-Indata!B$9),(1+Indata!B$14)^((Indata!B$12-Indata!B$10)-Indata!B$8+Indata!B$10)*(1+Indata!B$15)^(F101+Indata!B$10-Indata!B$12)*(1)^(F101+Indata!B$10-Indata!B$17)/(1+Indata!B$7)^(F101+Indata!B$10-Indata!B$9)),(1+Indata!B$14)^((Indata!B$12-Indata!B$10)-Indata!B$8+Indata!B$10)*(1+Indata!B$15)^((Indata!B$13-Indata!B$10)+Indata!B$10-Indata!B$12)*(1+Stödberäkningar!G$106)^(F101+Indata!B$10-Indata!B$13)*(1)^(F101+Indata!B$10-Indata!B$17)/(1+Indata!B$7)^(F101+Indata!B$10-Indata!B$9)) -> 0.03911942804
F102: 99 | G102: 41.07130494 | H102: =IF((Indata!B$10+F102)<Indata!B$13,IF((Indata!B$10+F102)<Indata!B$12,(1+Indata!B$14)^(F102-Indata!B$8+Indata!B$10)*(1+Indata!B$16)^(F102+Indata!B$10-Indata!B$17)/(1+Indata!B$7)^(F102+Indata!B$10-Indata!B$9),(1+Indata!B$14)^((Indata!B$12-Indata!B$10)-Indata!B$8+Indata!B$10)*(1+Indata!B$15)^(F102+Indata!B$10-Indata!B$12)*(1+Indata!B$16)^(F102+Indata!B$10-Indata!B$17)/(1+Indata!B$7)^(F102+Indata!B$10-Indata!B$9)),(1+Indata!B$14)^((Indata!B$12-Indata!B$10)-Indata!B$8+Indata!B$10)*(1+Indata!B$15)^((Indata!B$13-Indata!B$10)+Indata!B$10-Indata!B$12)*(1+Stödberäkningar!G$106)^(F102+Indata!B$10-Indata!B$13)*(1+Indata!B$16)^(Indata!B$13-Indata!B$17)/(1+Indata!B$7)^(F102+Indata!B$10-Indata!B$9)) -> 0.06395624441 | T102: 99 | U102: 28.16724155 | V102: =IF((Indata!B$10+F102)<Indata!B$13,IF((Indata!B$10+F102)<Indata!B$12,(1+Indata!B$14)^(F102-Indata!B$8+Indata!B$10)*(1)^(F102+Indata!B$10-Indata!B$17)/(1+Indata!B$7)^(F102+Indata!B$10-Indata!B$9),(1+Indata!B$14)^((Indata!B$12-Indata!B$10)-Indata!B$8+Indata!B$10)*(1+Indata!B$15)^(F102+Indata!B$10-Indata!B$12)*(1)^(F102+Indata!B$10-Indata!B$17)/(1+Indata!B$7)^(F102+Indata!B$10-Indata!B$9)),(1+Indata!B$14)^((Indata!B$12-Indata!B$10)-Indata!B$8+Indata!B$10)*(1+Indata!B$15)^((Indata!B$13-Indata!B$10)+Indata!B$10-Indata!B$12)*(1+Stödberäkningar!G$106)^(F102+Indata!B$10-Indata!B$13)*(1)^(F102+Indata!B$10-Indata!B$17)/(1+Indata!B$7)^(F102+Indata!B$10-Indata!B$9)) -> 0.03779654883
F104: Nuvärdefaktor | G104: =VLOOKUP(Indata!B11-1,Stödberäkningar!F3:G102,2) -> 35.66378671 | T104: Nuvärdefaktor | U104: =VLOOKUP(Indata!B11-1,Stödberäkningar!T3:U102,2) -> 24.97153285
F106: Årlig trafiktillväxt efter brytår 2 [%] | G106: 0 | T106: Årlig trafiktillväxt efter brytår 2 [%] | U106: 0
F108: Årlig värdeökning efter brytår 2 [%] | G108: 0
